﻿Department family,Entity,Date of payment,Expense type,Expense area,Supplier,Transaction number,Amount in Sterling,Supplier VAT Registration Number
Department of Health,Guys and St Thomas NHS Foundation Trust,06/11/2020,(89120) Other - Legal fees,(id:42276) Cancer Supportive Services and R&D,BEACHCROFT LLP OFFICE ACCOUNT,id:13451194   ,1142.50
Department of Health,Guys and St Thomas NHS Foundation Trust,13/11/2020,(82000) Provisions & Kitchens,(id:42279) Cancer Supportive Services and R&D,BEWLEYS TEA AND COFFEE LTD,id:13458556   , 403.44
Department of Health,Guys and St Thomas NHS Foundation Trust,06/11/2020,(81200) Medical Surgical Supplies & Equipment,(id:42277) Cancer Supportive Services and R&D,CORPTELUK,id:13430668    ,   7.20
Department of Health,Guys and St Thomas NHS Foundation Trust,06/11/2020,(81200) Medical Surgical Supplies & Equipment,(id:42270) Haematology,TERUMO BCT EUROPE NV/SA  (PREVIOUSLY CARIDIAN),id:13433661,4169.38
Department of Health,Guys and St Thomas NHS Foundation Trust,13/11/2020,(81100) Dressings,(id:42270) Haematology,NHS SUPPLY CHAIN (MAIDSTONE),id:13400692 , 156.98
Department of Health,Guys and St Thomas NHS Foundation Trust,13/11/2020,(81700) Lab Equipment Purchase,(id:42270) Haematology,NHS SUPPLY CHAIN (MAIDSTONE),id:13361014   ,  94.17
Department of Health,Guys and St Thomas NHS Foundation Trust,13/11/2020,(81700) Lab Equipment Purchase,(id:42270) Haematology,NHS SUPPLY CHAIN (MAIDSTONE),id:13385919   ,  77.70
Department of Health,Guys and St Thomas NHS Foundation Trust,27/11/2020,(83500) Furniture & Fittings,(id:42270) Haematology,TECHNIBLINDS LTD,id:12991574  , 667.20
Department of Health,Guys and St Thomas NHS Foundation Trust,27/11/2020,(83610) IT Costs,(id:42267) Haematology,BUSINESS DICTATION LTD,id:13498401   ,1775.99
Department of Health,Guys and St Thomas NHS Foundation Trust,06/11/2020,(83610) IT Costs,(id:42267) Haematology,OFFICE DEPOT UK LTD,id:13392564 , 453.51
Department of Health,Guys and St Thomas NHS Foundation Trust,13/11/2020,(82000) Provisions & Kitchens,(id:42265) Haematology,NHS SUPPLY CHAIN (MAIDSTONE),id:13361014    , 272.06
Department of Health,Guys and St Thomas NHS Foundation Trust,13/11/2020,(82800) Bedding & Linen,(id:42265) Haematology,NHS SUPPLY CHAIN (MAIDSTONE),id:13400692, 164.02
Department of Health,Guys and St Thomas NHS Foundation Trust,13/11/2020,(81200) Medical Surgical Supplies & Equipment,(id:42265) Haematology,NHS SUPPLY CHAIN (MAIDSTONE),id:13400692   ,1910.68
Department of Health,Guys and St Thomas NHS Foundation Trust,27/11/2020,(50522) Unqualified Nursing Staff,(id:42265) Haematology,CARE PROVIDERS HEALTHCARE,id:13510898   , 708.49
Department of Health,Guys and St Thomas NHS Foundation Trust,13/11/2020,(81255) Medical Surgical Supplies & Equipment,(id:42265) Haematology,NHS SUPPLY CHAIN (MAIDSTONE),id:13400692   ,   2.16
Department of Health,Guys and St Thomas NHS Foundation Trust,13/11/2020,(82800) Bedding & Linen,(id:42272) Haematology,NHS SUPPLY CHAIN (MAIDSTONE),id:13385919,  76.32
Department of Health,Guys and St Thomas NHS Foundation Trust,06/11/2020,(81000) Surgical Appliances,(id:42272) Haematology,MEDI UK LTD,id:13437755   ,  53.57
Department of Health,Guys and St Thomas NHS Foundation Trust,06/11/2020,(80205) Drug Costs,(id:42273) Haematology,HEALTHCARE AT HOME LTD,id:13449995 ,6127.00
Department of Health,Guys and St Thomas NHS Foundation Trust,06/11/2020,(80205) Drug Costs,(id:42273) Haematology,HEALTHCARE AT HOME LTD,id:13450179 ,8127.00
Department of Health,Guys and St Thomas NHS Foundation Trust,13/11/2020,(80205) Drug Costs,(id:42273) Haematology,SHIRE PHARMACEUTICALS LTD,id:13467656   ,3760.00
Department of Health,Guys and St Thomas NHS Foundation Trust,13/11/2020,(80205) Drug Costs,(id:42273) Haematology,HEALTHCARE AT HOME LTD,id:13456234 ,2323.40
Department of Health,Guys and St Thomas NHS Foundation Trust,13/11/2020,(80205) Drug Costs,(id:42273) Haematology,HEALTHCARE AT HOME LTD,id:13456354 ,5509.00
Department of Health,Guys and St Thomas NHS Foundation Trust,26/11/2020,(80205) Drug Costs,(id:42273) Haematology,HEALTHCARE AT HOME LTD,id:13505654 , 527.00
Department of Health,Guys and St Thomas NHS Foundation Trust,26/11/2020,(80205) Drug Costs,(id:42273) Haematology,HEALTHCARE AT HOME LTD,id:13505671 ,3967.00
Department of Health,Guys and St Thomas NHS Foundation Trust,26/11/2020,(80205) Drug Costs,(id:42273) Haematology,HEALTHCARE AT HOME LTD,id:13505657 ,    21057.00
Department of Health,Guys and St Thomas NHS Foundation Trust,27/11/2020,(80205) Drug Costs,(id:42273) Haematology,HEALTHCARE AT HOME LTD,id:13509579 ,    -3975.00
Department of Health,Guys and St Thomas NHS Foundation Trust,06/11/2020,(50200) Consultants,(id:202405) Haematology,KINGS COLLEGE LONDON:03529700,id:13348659  ,    12836.05
Department of Health,Guys and St Thomas NHS Foundation Trust,27/11/2020,(50200) Consultants,(id:202405) Haematology,KINGS COLLEGE LONDON:03529700,id:13417474  ,    11473.60
Department of Health,Guys and St Thomas NHS Foundation Trust,27/11/2020,(83610) IT Costs,(id:42128) Haematology,HUMAN TISSUE AUTHORITY:70522200,id:13504619    ,8065.00
Department of Health,Guys and St Thomas NHS Foundation Trust,06/11/2020,(54052) Technical Officers,(id:42128) Haematology,TOTAL ASSIST RECRUITMENT LTD,id:13427134  ,1041.64
Department of Health,Guys and St Thomas NHS Foundation Trust,20/11/2020,(54052) Technical Officers,(id:42128) Haematology,TOTAL ASSIST RECRUITMENT LTD,id:13470626  , 990.41
Department of Health,Guys and St Thomas NHS Foundation Trust,13/11/2020,(82700) Uniforms & Clothing,(id:42258) Oncology Services,NHS SUPPLY CHAIN (MAIDSTONE),id:13385919,  44.09
Department of Health,Guys and St Thomas NHS Foundation Trust,13/11/2020,(83400) Office Equipment,(id:42258) Oncology Services,NHS SUPPLY CHAIN (MAIDSTONE),id:13400692   ,   5.59
Department of Health,Guys and St Thomas NHS Foundation Trust,27/11/2020,(83880) Building & Engineering,(id:42258) Oncology Services,REDLAND CONSTRUCTION LIMITED,id:13508574  ,4530.00
Department of Health,Guys and St Thomas NHS Foundation Trust,06/11/2020,(83755) Rental under Operating Lease,(id:42258) Oncology Services,OXLEAS NHS FOUNDATION TRUST,id:13450655  ,5933.33
Department of Health,Guys and St Thomas NHS Foundation Trust,06/11/2020,(50200) Consultants,(id:42257) Oncology Services,KINGS COLLEGE LONDON:03529700,id:13348659  ,    25962.62
Department of Health,Guys and St Thomas NHS Foundation Trust,13/11/2020,(50200) Consultants,(id:42257) Oncology Services,KINGS COLLEGE LONDON:03529700,id:13417660  ,    24714.43
Department of Health,Guys and St Thomas NHS Foundation Trust,06/11/2020,(89120) Other - Legal fees,(id:42257) Oncology Services,BEACHCROFT LLP OFFICE ACCOUNT,id:13443596, 812.50
Department of Health,Guys and St Thomas NHS Foundation Trust,06/11/2020,(89000) Other - Training courses and conferences,(id:42257) Oncology Services,ROYAL COLLEGE OF PHYSICIANS,id:13417667,3900.00
Department of Health,Guys and St Thomas NHS Foundation Trust,27/11/2020,(50200) Consultants,(id:42261) Oncology Services,KINGS COLLEGE LONDON:03529700,id:13417474  ,    24954.35
Department of Health,Guys and St Thomas NHS Foundation Trust,06/11/2020,(50200) Consultants,(id:42261) Oncology Services,KINGS COLLEGE LONDON:03529700,id:13348659  ,    27439.15
Department of Health,Guys and St Thomas NHS Foundation Trust,13/11/2020,(81700) Lab Equipment Purchase,(id:42261) Oncology Services,NHS SUPPLY CHAIN (MAIDSTONE),id:13400692  ,  13.20
Department of Health,Guys and St Thomas NHS Foundation Trust,13/11/2020,(81700) Lab Equipment Purchase,(id:42261) Oncology Services,NHS SUPPLY CHAIN (MAIDSTONE),id:13385919  ,  92.84
Department of Health,Guys and St Thomas NHS Foundation Trust,13/11/2020,(81200) Medical Surgical Supplies & Equipment,(id:42261) Oncology Services,NHS SUPPLY CHAIN (MAIDSTONE),id:13385919  , 254.26
Department of Health,Guys and St Thomas NHS Foundation Trust,13/11/2020,(89595) Non-Healthcare from Foundation Trusts,(id:42261) Oncology Services,KING'S COLLEGE HOSPITAL NHS FOUNDATION TRUST,id:13410794 ,    57814.00
Department of Health,Guys and St Thomas NHS Foundation Trust,06/11/2020,(81000) Surgical Appliances,(id:42261) Oncology Services,MEDI UK LTD,id:13437754  , 332.65
Department of Health,Guys and St Thomas NHS Foundation Trust,13/11/2020,(81000) Surgical Appliances,(id:42261) Oncology Services,MEDI UK LTD,id:13469554  , 347.59
Department of Health,Guys and St Thomas NHS Foundation Trust,13/11/2020,(81000) Surgical Appliances,(id:42261) Oncology Services,TALAR MADE ORTHOTICS LTD,id:13469474    , 145.72
Department of Health,Guys and St Thomas NHS Foundation Trust,13/11/2020,(81255) Medical Surgical Supplies & Equipment,(id:42260) Oncology Services,NHS SUPPLY CHAIN (MAIDSTONE),id:13385919  ,   1.56
Department of Health,Guys and St Thomas NHS Foundation Trust,13/11/2020,(82000) Provisions & Kitchens,(id:42260) Oncology Services,NHS SUPPLY CHAIN (MAIDSTONE),id:13385919   ,  15.60
Department of Health,Guys and St Thomas NHS Foundation Trust,13/11/2020,(82000) Provisions & Kitchens,(id:42259) Oncology Services,NHS SUPPLY CHAIN (MAIDSTONE),id:13361014   , 140.55
Department of Health,Guys and St Thomas NHS Foundation Trust,06/11/2020,(83500) Furniture & Fittings,(id:42259) Oncology Services,HOSPITAL METALCRAFT LTD,id:13430477    , 784.73
Department of Health,Guys and St Thomas NHS Foundation Trust,13/11/2020,(81100) Dressings,(id:42259) Oncology Services,NHS SUPPLY CHAIN (MAIDSTONE),id:13361014, 109.02
Department of Health,Guys and St Thomas NHS Foundation Trust,13/11/2020,(81100) Dressings,(id:42259) Oncology Services,NHS SUPPLY CHAIN (MAIDSTONE),id:13400692, 327.02
Department of Health,Guys and St Thomas NHS Foundation Trust,13/11/2020,(81255) Medical Surgical Supplies & Equipment,(id:42259) Oncology Services,NHS SUPPLY CHAIN (MAIDSTONE),id:13385919  ,   6.00
Department of Health,Guys and St Thomas NHS Foundation Trust,20/11/2020,(81200) Medical Surgical Supplies & Equipment,(id:42280) Surgical Oncology,Q MEDICAL TECHNOLOGIES LTD,id:13462774    ,    -1429.20
Department of Health,Guys and St Thomas NHS Foundation Trust,27/11/2020,(81200) Medical Surgical Supplies & Equipment,(id:42280) Surgical Oncology,TRIANGLE SURGICAL LTD,id:13498756    , 619.20
Department of Health,Guys and St Thomas NHS Foundation Trust,13/11/2020,(81700) Lab Equipment Purchase,(id:42280) Surgical Oncology,NHS SUPPLY CHAIN (MAIDSTONE),id:13361014  ,  31.18
Department of Health,Guys and St Thomas NHS Foundation Trust,20/11/2020,(82600) Uniforms & Clothing,(id:42280) Surgical Oncology,DICT8 LIMITED,id:13412614,1158.00
Department of Health,Guys and St Thomas NHS Foundation Trust,13/11/2020,(81200) Medical Surgical Supplies & Equipment,(id:243406) Surgical Oncology,NHS SUPPLY CHAIN (MAIDSTONE),id:13385919 ,1390.56
Department of Health,Guys and St Thomas NHS Foundation Trust,13/11/2020,(81700) Lab Equipment Purchase,(id:243406) Surgical Oncology,NHS SUPPLY CHAIN (MAIDSTONE),id:13400692 ,  24.60
Department of Health,Guys and St Thomas NHS Foundation Trust,13/11/2020,(81100) Dressings,(id:243406) Surgical Oncology,NHS SUPPLY CHAIN (MAIDSTONE),id:13361014    ,  71.65
Department of Health,Guys and St Thomas NHS Foundation Trust,27/11/2020,(81200) Medical Surgical Supplies & Equipment,(id:42474) Surgical Oncology,DELTA SURGICAL LTD,id:13488237  ,3247.20
Department of Health,Guys and St Thomas NHS Foundation Trust,13/11/2020,(81700) Lab Equipment Purchase,(id:42474) Surgical Oncology,NHS SUPPLY CHAIN (MAIDSTONE),id:13385919  ,  26.14
Department of Health,Guys and St Thomas NHS Foundation Trust,13/11/2020,(81100) Dressings,(id:42473) Surgical Oncology,NHS SUPPLY CHAIN (MAIDSTONE),id:13361014,  13.92
Department of Health,Guys and St Thomas NHS Foundation Trust,20/11/2020,(81100) Dressings,(id:42473) Surgical Oncology,JOHNSON & JOHNSON MEDICAL LTD,id:13444832    , 556.60
Department of Health,Guys and St Thomas NHS Foundation Trust,27/11/2020,(81200) Medical Surgical Supplies & Equipment,(id:42473) Surgical Oncology,MERCIAN SURGICAL SUPPLY CO LTD,id:13507741,1002.00
Department of Health,Guys and St Thomas NHS Foundation Trust,06/11/2020,(81200) Medical Surgical Supplies & Equipment,(id:42473) Surgical Oncology,JOHNSON & JOHNSON MEDICAL LTD,id:13431500 ,6533.78
Department of Health,Guys and St Thomas NHS Foundation Trust,06/11/2020,(81200) Medical Surgical Supplies & Equipment,(id:42473) Surgical Oncology,MEDTRONIC LTD,id:13440434  , 519.60
Department of Health,Guys and St Thomas NHS Foundation Trust,06/11/2020,(81200) Medical Surgical Supplies & Equipment,(id:42473) Surgical Oncology,JOHNSON & JOHNSON MEDICAL LTD,id:13413562 , 217.74
Department of Health,Guys and St Thomas NHS Foundation Trust,06/11/2020,(81200) Medical Surgical Supplies & Equipment,(id:42473) Surgical Oncology,JOHNSON & JOHNSON MEDICAL LTD,id:13392966 , 590.80
Department of Health,Guys and St Thomas NHS Foundation Trust,13/11/2020,(81200) Medical Surgical Supplies & Equipment,(id:42473) Surgical Oncology,CCMED LTD,id:13464054 ,2242.20
Department of Health,Guys and St Thomas NHS Foundation Trust,13/11/2020,(81400) Medical Surgical Supplies & Equipment,(id:42473) Surgical Oncology,NHS SUPPLY CHAIN ( CAPITAL FUND ONLY),id:13466874   ,    16320.45
Department of Health,Guys and St Thomas NHS Foundation Trust,13/11/2020,(83400) Office Equipment,(id:42473) Surgical Oncology,NHS SUPPLY CHAIN (MAIDSTONE),id:13385919   , 228.00
Department of Health,Guys and St Thomas NHS Foundation Trust,06/11/2020,(81215) Medical Surgical Supplies & Equipment,(id:42475) Surgical Oncology,COCHLEAR EUROPE LTD,id:13433680 ,1068.00
Department of Health,Guys and St Thomas NHS Foundation Trust,13/11/2020,(81215) Medical Surgical Supplies & Equipment,(id:42475) Surgical Oncology,COCHLEAR EUROPE LTD,id:13458385 ,    19203.60
Department of Health,Guys and St Thomas NHS Foundation Trust,27/11/2020,(81225) Medical Surgical Supplies & Equipment,(id:42475) Surgical Oncology,MINERVA HEARING LTD,id:13021898 , 512.40
Department of Health,Guys and St Thomas NHS Foundation Trust,27/11/2020,(81225) Medical Surgical Supplies & Equipment,(id:42475) Surgical Oncology,MINERVA HEARING LTD,id:13021897 , 731.36
Department of Health,Guys and St Thomas NHS Foundation Trust,27/11/2020,(81225) Medical Surgical Supplies & Equipment,(id:42475) Surgical Oncology,NATUS NICOLET UK LTD ( T/A OTOMETRICS UK),id:13497794    , 814.80
Department of Health,Guys and St Thomas NHS Foundation Trust,06/11/2020,(81225) Medical Surgical Supplies & Equipment,(id:42475) Surgical Oncology,COCHLEAR EUROPE LTD,id:13409735 ,5139.60
Department of Health,Guys and St Thomas NHS Foundation Trust,20/11/2020,(81200) Medical Surgical Supplies & Equipment,(id:42472) Surgical Oncology,PHONAK UK LTD,id:13462756  , 696.00
Department of Health,Guys and St Thomas NHS Foundation Trust,06/11/2020,(81100) Dressings,(id:42286) Surgical Oncology,MEDTRONIC LTD,id:13392945,1872.00
Department of Health,Guys and St Thomas NHS Foundation Trust,20/11/2020,(81100) Dressings,(id:42286) Surgical Oncology,MEDTRONIC LTD,id:13441419,1872.00
Department of Health,Guys and St Thomas NHS Foundation Trust,13/11/2020,(81400) Medical Surgical Supplies & Equipment,(id:42286) Surgical Oncology,NHS SUPPLY CHAIN ( CAPITAL FUND ONLY),id:13466814   ,5503.62
Department of Health,Guys and St Thomas NHS Foundation Trust,13/11/2020,(81200) Medical Surgical Supplies & Equipment,(id:42286) Surgical Oncology,NHS SUPPLY CHAIN (MAIDSTONE),id:13361014  ,    11174.84
Department of Health,Guys and St Thomas NHS Foundation Trust,06/11/2020,(81200) Medical Surgical Supplies & Equipment,(id:42284) Surgical Oncology,HOSPITAL METALCRAFT LTD,id:13433847  , 537.60
Department of Health,Guys and St Thomas NHS Foundation Trust,13/11/2020,(81100) Dressings,(id:42470) Surgical Oncology,NHS SUPPLY CHAIN (MAIDSTONE),id:13361014, 453.05
Department of Health,Guys and St Thomas NHS Foundation Trust,13/11/2020,(81200) Medical Surgical Supplies & Equipment,(id:42470) Surgical Oncology,NHS SUPPLY CHAIN (MAIDSTONE),id:13385919  ,3825.69
Department of Health,Guys and St Thomas NHS Foundation Trust,13/11/2020,(81200) Medical Surgical Supplies & Equipment,(id:42470) Surgical Oncology,NHS SUPPLY CHAIN (MAIDSTONE),id:13400692  ,2047.01
Department of Health,Guys and St Thomas NHS Foundation Trust,18/11/2020,(81200) Medical Surgical Supplies & Equipment,(id:42470) Surgical Oncology,KAPITEX HEALTHCARE LTD,id:13377063   , 683.22
Department of Health,Guys and St Thomas NHS Foundation Trust,27/11/2020,(81200) Medical Surgical Supplies & Equipment,(id:42470) Surgical Oncology,STERIS IMS LTD,id:13482918 , 525.00
Department of Health,Guys and St Thomas NHS Foundation Trust,27/11/2020,(50552) Qualified Nursing Staff,(id:42470) Surgical Oncology,MSI GROUP LTD,id:13510708 , 303.11
Department of Health,Guys and St Thomas NHS Foundation Trust,06/11/2020,(50522) Unqualified Nursing Staff,(id:42470) Surgical Oncology,GLOBE LOCUMS LTD,id:13448354 , 232.04
Department of Health,Guys and St Thomas NHS Foundation Trust,13/11/2020,(50552) Qualified Nursing Staff,(id:2182419) Medicine,GLOBE LOCUMS LTD,id:13470522, 531.40
Department of Health,Guys and St Thomas NHS Foundation Trust,20/11/2020,(50552) Qualified Nursing Staff,(id:2182419) Medicine,MSI GROUP LTD,id:13489823   , 665.64
Department of Health,Guys and St Thomas NHS Foundation Trust,20/11/2020,(50552) Qualified Nursing Staff,(id:2182419) Medicine,GLOBE LOCUMS LTD,id:13487603, 417.99
Department of Health,Guys and St Thomas NHS Foundation Trust,13/11/2020,(81100) Dressings,(id:2182419) Medicine,NHS SUPPLY CHAIN (MAIDSTONE),id:13385919  , 246.16
Department of Health,Guys and St Thomas NHS Foundation Trust,13/11/2020,(81100) Dressings,(id:2182419) Medicine,NHS SUPPLY CHAIN (MAIDSTONE),id:13361014  , 334.24
Department of Health,Guys and St Thomas NHS Foundation Trust,13/11/2020,(83400) Office Equipment,(id:2182419) Medicine,NHS SUPPLY CHAIN (MAIDSTONE),id:13385919, 329.15
Department of Health,Guys and St Thomas NHS Foundation Trust,13/11/2020,(83400) Office Equipment,(id:41860) Medicine,NHS SUPPLY CHAIN (MAIDSTONE),id:13400692  ,  78.90
Department of Health,Guys and St Thomas NHS Foundation Trust,13/11/2020,(82800) Bedding & Linen,(id:41860) Medicine,NHS SUPPLY CHAIN (MAIDSTONE),id:13400692   , 156.39
Department of Health,Guys and St Thomas NHS Foundation Trust,13/11/2020,(50552) Qualified Nursing Staff,(id:41860) Medicine,CONTINENTAL NURSE LTD,id:13470295  ,1661.89
Department of Health,Guys and St Thomas NHS Foundation Trust,13/11/2020,(50552) Qualified Nursing Staff,(id:41860) Medicine,MSI GROUP LTD,id:13470437, 352.42
Department of Health,Guys and St Thomas NHS Foundation Trust,27/11/2020,(50552) Qualified Nursing Staff,(id:41860) Medicine,GLOBE LOCUMS LTD,id:13510655  , 333.52
Department of Health,Guys and St Thomas NHS Foundation Trust,06/11/2020,(50552) Qualified Nursing Staff,(id:41860) Medicine,FIRSTPOINT HEALTHCARE LTD,id:13452475   , 609.26
Department of Health,Guys and St Thomas NHS Foundation Trust,20/11/2020,(50552) Qualified Nursing Staff,(id:41860) Medicine,CONTINENTAL NURSE LTD,id:13487764  ,2079.96
Department of Health,Guys and St Thomas NHS Foundation Trust,06/11/2020,(50522) Unqualified Nursing Staff,(id:41860) Medicine,MSI GROUP LTD,id:13448316   , 416.54
Department of Health,Guys and St Thomas NHS Foundation Trust,13/11/2020,(81200) Medical Surgical Supplies & Equipment,(id:41860) Medicine,NHS SUPPLY CHAIN (MAIDSTONE),id:13400692 , 865.98
Department of Health,Guys and St Thomas NHS Foundation Trust,13/11/2020,(83400) Office Equipment,(id:41859) Medicine,NHS SUPPLY CHAIN (MAIDSTONE),id:13400692  ,  62.79
Department of Health,Guys and St Thomas NHS Foundation Trust,13/11/2020,(50552) Qualified Nursing Staff,(id:41859) Medicine,GLOBE LOCUMS LTD,id:13470309  , 286.87
Department of Health,Guys and St Thomas NHS Foundation Trust,27/11/2020,(50552) Qualified Nursing Staff,(id:41859) Medicine,MSI GROUP LTD,id:13510801, 300.99
Department of Health,Guys and St Thomas NHS Foundation Trust,06/11/2020,(50552) Qualified Nursing Staff,(id:41859) Medicine,MSI GROUP LTD,id:13448319, 291.27
Department of Health,Guys and St Thomas NHS Foundation Trust,06/11/2020,(50522) Unqualified Nursing Staff,(id:41859) Medicine,MSI GROUP LTD,id:13448238   , 249.44
Department of Health,Guys and St Thomas NHS Foundation Trust,13/11/2020,(81200) Medical Surgical Supplies & Equipment,(id:41859) Medicine,NHS SUPPLY CHAIN (MAIDSTONE),id:13385919 , 836.79
Department of Health,Guys and St Thomas NHS Foundation Trust,13/11/2020,(83400) Office Equipment,(id:41858) Medicine,NHS SUPPLY CHAIN (MAIDSTONE),id:13361014  ,  49.81
Department of Health,Guys and St Thomas NHS Foundation Trust,13/11/2020,(81255) Medical Surgical Supplies & Equipment,(id:41858) Medicine,NHS SUPPLY CHAIN (MAIDSTONE),id:13400692 ,   4.05
Department of Health,Guys and St Thomas NHS Foundation Trust,13/11/2020,(50522) Unqualified Nursing Staff,(id:41858) Medicine,CARE PROVIDERS HEALTHCARE,id:13470507 , 504.12
Department of Health,Guys and St Thomas NHS Foundation Trust,13/11/2020,(81000) Surgical Appliances,(id:41872) Medicine,TALAR MADE ORTHOTICS LTD,id:13468994   , 342.00
Department of Health,Guys and St Thomas NHS Foundation Trust,27/11/2020,(50552) Qualified Nursing Staff,(id:41872) Medicine,FIRSTPOINT HEALTHCARE LTD,id:13510714   , 347.34
Department of Health,Guys and St Thomas NHS Foundation Trust,06/11/2020,(50552) Qualified Nursing Staff,(id:41872) Medicine,MEDICSPRO LTD,id:13448272, 703.95
Department of Health,Guys and St Thomas NHS Foundation Trust,13/11/2020,(81200) Medical Surgical Supplies & Equipment,(id:41869) Medicine,NHS SUPPLY CHAIN (MAIDSTONE),id:13361014 ,2251.33
Department of Health,Guys and St Thomas NHS Foundation Trust,13/11/2020,(81100) Dressings,(id:41869) Medicine,NHS SUPPLY CHAIN (MAIDSTONE),id:13361014    ,  76.26
Department of Health,Guys and St Thomas NHS Foundation Trust,13/11/2020,(82000) Provisions & Kitchens,(id:41868) Medicine,NHS SUPPLY CHAIN (MAIDSTONE),id:13400692  , 233.81
Department of Health,Guys and St Thomas NHS Foundation Trust,13/11/2020,(84500) Establishment,(id:41880) Medicine,NHS SUPPLY CHAIN (MAIDSTONE),id:13385919,  28.80
Department of Health,Guys and St Thomas NHS Foundation Trust,20/11/2020,(50552) Qualified Nursing Staff,(id:41880) Medicine,CARE PROVIDERS HEALTHCARE,id:13487749   , 656.43
Department of Health,Guys and St Thomas NHS Foundation Trust,13/11/2020,(81200) Medical Surgical Supplies & Equipment,(id:41880) Medicine,NHS SUPPLY CHAIN (MAIDSTONE),id:13400692 , 390.17
Department of Health,Guys and St Thomas NHS Foundation Trust,13/11/2020,(50522) Unqualified Nursing Staff,(id:41880) Medicine,GLOBE LOCUMS LTD,id:13470490, 200.50
Department of Health,Guys and St Thomas NHS Foundation Trust,20/11/2020,(50522) Unqualified Nursing Staff,(id:41880) Medicine,MSI GROUP LTD,id:13487621   , 200.14
Department of Health,Guys and St Thomas NHS Foundation Trust,13/11/2020,(81100) Dressings,(id:41879) Medicine,NHS SUPPLY CHAIN (MAIDSTONE),id:13400692    ,  97.12
Department of Health,Guys and St Thomas NHS Foundation Trust,13/11/2020,(50522) Unqualified Nursing Staff,(id:41879) Medicine,CARE PROVIDERS HEALTHCARE,id:13470554 , 591.68
Department of Health,Guys and St Thomas NHS Foundation Trust,13/11/2020,(50522) Unqualified Nursing Staff,(id:41879) Medicine,GLOBE LOCUMS LTD,id:13470624, 236.30
Department of Health,Guys and St Thomas NHS Foundation Trust,13/11/2020,(81200) Medical Surgical Supplies & Equipment,(id:41879) Medicine,NHS SUPPLY CHAIN (MAIDSTONE),id:13361014 , 762.32
Department of Health,Guys and St Thomas NHS Foundation Trust,13/11/2020,(82000) Provisions & Kitchens,(id:41878) Medicine,NHS SUPPLY CHAIN (MAIDSTONE),id:13400692  , 181.76
Department of Health,Guys and St Thomas NHS Foundation Trust,13/11/2020,(83400) Office Equipment,(id:41878) Medicine,NHS SUPPLY CHAIN (MAIDSTONE),id:13385919  ,  71.78
Department of Health,Guys and St Thomas NHS Foundation Trust,13/11/2020,(82800) Bedding & Linen,(id:41878) Medicine,NHS SUPPLY CHAIN (MAIDSTONE),id:13385919   , 176.95
Department of Health,Guys and St Thomas NHS Foundation Trust,13/11/2020,(81100) Dressings,(id:41878) Medicine,NHS SUPPLY CHAIN (MAIDSTONE),id:13400692    , 147.04
Department of Health,Guys and St Thomas NHS Foundation Trust,13/11/2020,(50522) Unqualified Nursing Staff,(id:41878) Medicine,GLOBE LOCUMS LTD,id:13470582, 221.76
Department of Health,Guys and St Thomas NHS Foundation Trust,13/11/2020,(81700) Lab Equipment Purchase,(id:41878) Medicine,NHS SUPPLY CHAIN (MAIDSTONE),id:13385919 ,  26.51
Department of Health,Guys and St Thomas NHS Foundation Trust,13/11/2020,(81000) Surgical Appliances,(id:41876) Medicine,TALAR MADE ORTHOTICS LTD,id:13468994   , 114.00
Department of Health,Guys and St Thomas NHS Foundation Trust,20/11/2020,(83500) Furniture & Fittings,(id:41881) Medicine,1ST CALL MOBILITY LTD,id:13476504,2046.00
Department of Health,Guys and St Thomas NHS Foundation Trust,20/11/2020,(83500) Furniture & Fittings,(id:41881) Medicine,1ST CALL MOBILITY LTD,id:13476320, 594.00
Department of Health,Guys and St Thomas NHS Foundation Trust,20/11/2020,(83500) Furniture & Fittings,(id:41881) Medicine,1ST CALL MOBILITY LTD,id:13476323, 720.00
Department of Health,Guys and St Thomas NHS Foundation Trust,06/11/2020,(50552) Qualified Nursing Staff,(id:41881) Medicine,GLOBE LOCUMS LTD,id:13448239  , 325.12
Department of Health,Guys and St Thomas NHS Foundation Trust,06/11/2020,(50522) Unqualified Nursing Staff,(id:41881) Medicine,MSI GROUP LTD,id:13448352   , 624.82
Department of Health,Guys and St Thomas NHS Foundation Trust,13/11/2020,(81700) Lab Equipment Purchase,(id:41881) Medicine,NHS SUPPLY CHAIN (MAIDSTONE),id:13400692 ,   6.28
Department of Health,Guys and St Thomas NHS Foundation Trust,13/11/2020,(81200) Medical Surgical Supplies & Equipment,(id:42232) Integrated Therapies and Rehabilitation,DJO UK LTD,id:13433575   , 600.00
Department of Health,Guys and St Thomas NHS Foundation Trust,13/11/2020,(81200) Medical Surgical Supplies & Equipment,(id:42231) Integrated Therapies and Rehabilitation,NHS SUPPLY CHAIN (MAIDSTONE),id:13385919, 224.76
Department of Health,Guys and St Thomas NHS Foundation Trust,13/11/2020,(82600) Uniforms & Clothing,(id:42230) Integrated Therapies and Rehabilitation,NHS SUPPLY CHAIN (MAIDSTONE),id:13400692   ,  27.00
Department of Health,Guys and St Thomas NHS Foundation Trust,11/11/2020,(51862) Physiotherapists,(id:42230) Integrated Therapies and Rehabilitation,PRICEWATERHOUSECOOPERS LLP,id:13466154   ,2425.27
Department of Health,Guys and St Thomas NHS Foundation Trust,11/11/2020,(51472) Occupational Therapists,(id:42240) Integrated Therapies and Rehabilitation,PRICEWATERHOUSECOOPERS LLP,id:13466154 ,1415.96
Department of Health,Guys and St Thomas NHS Foundation Trust,20/11/2020,(81100) Dressings,(id:42239) Integrated Therapies and Rehabilitation,PROMEDICS ORTHOPAEDICS LTD,id:13469954, 491.88
Department of Health,Guys and St Thomas NHS Foundation Trust,13/11/2020,(81225) Medical Surgical Supplies & Equipment,(id:42239) Integrated Therapies and Rehabilitation,NHS SUPPLY CHAIN (MAIDSTONE),id:13400692,   3.24
Department of Health,Guys and St Thomas NHS Foundation Trust,13/11/2020,(81200) Medical Surgical Supplies & Equipment,(id:42239) Integrated Therapies and Rehabilitation,NHS SUPPLY CHAIN (MAIDSTONE),id:13385919,  16.34
Department of Health,Guys and St Thomas NHS Foundation Trust,13/11/2020,(81225) Medical Surgical Supplies & Equipment,(id:590566) Integrated Therapies and Rehabilitation,NHS SUPPLY CHAIN (MAIDSTONE),id:13361014    , 242.88
Department of Health,Guys and St Thomas NHS Foundation Trust,13/11/2020,(81100) Dressings,(id:590530) Integrated Therapies and Rehabilitation,NHS SUPPLY CHAIN (MAIDSTONE),id:13361014  , 433.19
Department of Health,Guys and St Thomas NHS Foundation Trust,13/11/2020,(81100) Dressings,(id:590530) Integrated Therapies and Rehabilitation,BAILEY INSTRUMENTS LIMITED,id:13448014    , 945.00
Department of Health,Guys and St Thomas NHS Foundation Trust,13/11/2020,(81200) Medical Surgical Supplies & Equipment,(id:590490) Integrated Therapies and Rehabilitation,NHS SUPPLY CHAIN (MAIDSTONE),id:13361014    ,  41.04
Department of Health,Guys and St Thomas NHS Foundation Trust,13/11/2020,(83610) IT Costs,(id:590500) Integrated Therapies and Rehabilitation,SMARTBOX ASSISTIVE TECHNOLOGY LTD,id:13429706   ,1728.00
Department of Health,Guys and St Thomas NHS Foundation Trust,27/11/2020,(81200) Medical Surgical Supplies & Equipment,(id:590499) Integrated Therapies and Rehabilitation,INVACARE LTD,id:13490194, 585.60
Department of Health,Guys and St Thomas NHS Foundation Trust,27/11/2020,(81200) Medical Surgical Supplies & Equipment,(id:590499) Integrated Therapies and Rehabilitation,PRIDE MOBILITY PRODUCTS LTD,id:13490934,3297.00
Department of Health,Guys and St Thomas NHS Foundation Trust,06/11/2020,(81225) Medical Surgical Supplies & Equipment,(id:590499) Integrated Therapies and Rehabilitation,PENTONVILLE (RUBBER PRODUCTS) LTD,id:13418494    ,1755.89
Department of Health,Guys and St Thomas NHS Foundation Trust,06/11/2020,(81225) Medical Surgical Supplies & Equipment,(id:590498) Integrated Therapies and Rehabilitation,KEN HALL LTD,id:13419995, 505.98
Department of Health,Guys and St Thomas NHS Foundation Trust,06/11/2020,(81225) Medical Surgical Supplies & Equipment,(id:590498) Integrated Therapies and Rehabilitation,JANE SAUNDERS & MANNING LTD,id:13419067, 582.99
Department of Health,Guys and St Thomas NHS Foundation Trust,27/11/2020,(81225) Medical Surgical Supplies & Equipment,(id:590498) Integrated Therapies and Rehabilitation,JANE SAUNDERS & MANNING LTD,id:13499484, 856.17
Department of Health,Guys and St Thomas NHS Foundation Trust,27/11/2020,(81000) Surgical Appliances,(id:590498) Integrated Therapies and Rehabilitation,THUASNE UK LTD,id:13499180 , 708.00
Department of Health,Guys and St Thomas NHS Foundation Trust,27/11/2020,(81000) Surgical Appliances,(id:590498) Integrated Therapies and Rehabilitation,MEDI UK LTD,id:13492794    , 828.81
Department of Health,Guys and St Thomas NHS Foundation Trust,06/11/2020,(81000) Surgical Appliances,(id:590498) Integrated Therapies and Rehabilitation,A ALGEO LTD,id:13419964    , 500.40
Department of Health,Guys and St Thomas NHS Foundation Trust,20/11/2020,(81000) Surgical Appliances,(id:590498) Integrated Therapies and Rehabilitation,KENWARD ORTHOPAEDIC LTD,id:13489215  ,    17577.83
Department of Health,Guys and St Thomas NHS Foundation Trust,13/11/2020,(81200) Medical Surgical Supplies & Equipment,(id:590496) Integrated Therapies and Rehabilitation,NHS SUPPLY CHAIN (MAIDSTONE),id:13400692    , 591.60
Department of Health,Guys and St Thomas NHS Foundation Trust,13/11/2020,(82000) Provisions & Kitchens,(id:1042419) Integrated Therapies and Rehabilitation,NHS SUPPLY CHAIN (MAIDSTONE),id:13400692    ,  20.11
Department of Health,Guys and St Thomas NHS Foundation Trust,20/11/2020,(83400) Office Equipment,(id:1042419) Integrated Therapies and Rehabilitation,ASSIST SECURITY LIMITED,id:13488795    ,1440.00
Department of Health,Guys and St Thomas NHS Foundation Trust,13/11/2020,(81200) Medical Surgical Supplies & Equipment,(id:42255) Integrated Local Services,NHS SUPPLY CHAIN (MAIDSTONE),id:13400692    ,  65.86
Department of Health,Guys and St Thomas NHS Foundation Trust,13/11/2020,(82800) Bedding & Linen,(id:42255) Integrated Local Services,NHS SUPPLY CHAIN (MAIDSTONE),id:13385919 , 100.50
Department of Health,Guys and St Thomas NHS Foundation Trust,13/11/2020,(82800) Bedding & Linen,(id:42255) Integrated Local Services,NHS SUPPLY CHAIN (MAIDSTONE),id:13361014 , 117.06
Department of Health,Guys and St Thomas NHS Foundation Trust,27/11/2020,(89000) Other - Training courses and conferences,(id:42255) Integrated Local Services,RICHARD KNIGHT,id:13500514,2560.00
Department of Health,Guys and St Thomas NHS Foundation Trust,27/11/2020,(82300) Contract Hotel Services,(id:590563) Integrated Local Services,HEMINGWAYS MARKETING SERVICES,id:13485475 , 990.00
Department of Health,Guys and St Thomas NHS Foundation Trust,27/11/2020,(81200) Medical Surgical Supplies & Equipment,(id:590575) Integrated Local Services,CORPTELUK,id:13491354  ,   7.20
Department of Health,Guys and St Thomas NHS Foundation Trust,27/11/2020,(50200) Consultants,(id:590495) Integrated Local Services,NHS NORTH AND EAST LONDON CSU,id:9587171    , 628.74
Department of Health,Guys and St Thomas NHS Foundation Trust,06/11/2020,(50532) Unqualified Nursing Staff,(id:590495) Integrated Local Services,NURSING 2000 LTD,id:13415691  , 706.89
Department of Health,Guys and St Thomas NHS Foundation Trust,06/11/2020,(50532) Unqualified Nursing Staff,(id:590495) Integrated Local Services,NURSING 2000 LTD,id:13452429  , 706.89
Department of Health,Guys and St Thomas NHS Foundation Trust,13/11/2020,(81100) Dressings,(id:1885424) Integrated Local Services,NHS SUPPLY CHAIN (MAIDSTONE),id:13361014,  15.55
Department of Health,Guys and St Thomas NHS Foundation Trust,26/11/2020,(51862) Physiotherapists,(id:1371419) Integrated Local Services,PRICEWATERHOUSECOOPERS LLP,id:13508314, 764.64
Department of Health,Guys and St Thomas NHS Foundation Trust,03/11/2020,(51832) Physiotherapists,(id:699422) Integrated Local Services,PRICEWATERHOUSECOOPERS LLP,id:13439315 ,3174.92
Department of Health,Guys and St Thomas NHS Foundation Trust,03/11/2020,(51462) Occupational Therapists,(id:590523) Integrated Local Services,PRICEWATERHOUSECOOPERS LLP,id:13439315    ,1236.78
Department of Health,Guys and St Thomas NHS Foundation Trust,26/11/2020,(51832) Physiotherapists,(id:590523) Integrated Local Services,PRICEWATERHOUSECOOPERS LLP,id:13508314 ,1667.46
Department of Health,Guys and St Thomas NHS Foundation Trust,13/11/2020,(81200) Medical Surgical Supplies & Equipment,(id:590492) Integrated Local Services,NHS SUPPLY CHAIN (MAIDSTONE),id:13385919   , 187.20
Department of Health,Guys and St Thomas NHS Foundation Trust,17/11/2020,(51862) Physiotherapists,(id:1888419) Integrated Local Services,PRICEWATERHOUSECOOPERS LLP,id:13480934,1216.95
Department of Health,Guys and St Thomas NHS Foundation Trust,17/11/2020,(53072) Speech Therapists,(id:1888419) Integrated Local Services,PRICEWATERHOUSECOOPERS LLP,id:13480934    ,1133.90
Department of Health,Guys and St Thomas NHS Foundation Trust,13/11/2020,(81225) Medical Surgical Supplies & Equipment,(id:684420) Integrated Local Services,NHS SUPPLY CHAIN (MAIDSTONE),id:13361014   , 384.56
Department of Health,Guys and St Thomas NHS Foundation Trust,11/11/2020,(51462) Occupational Therapists,(id:684420) Integrated Local Services,PRICEWATERHOUSECOOPERS LLP,id:13466154    ,1259.89
Department of Health,Guys and St Thomas NHS Foundation Trust,17/11/2020,(51862) Physiotherapists,(id:684420) Integrated Local Services,PRICEWATERHOUSECOOPERS LLP,id:13480934 ,1836.53
Department of Health,Guys and St Thomas NHS Foundation Trust,17/11/2020,(53072) Speech Therapists,(id:684420) Integrated Local Services,PRICEWATERHOUSECOOPERS LLP,id:13480934,2808.65
Department of Health,Guys and St Thomas NHS Foundation Trust,26/11/2020,(51862) Physiotherapists,(id:684419) Integrated Local Services,PRICEWATERHOUSECOOPERS LLP,id:13508314 ,4995.62
Department of Health,Guys and St Thomas NHS Foundation Trust,20/11/2020,(89595) Non-Healthcare from Foundation Trusts,(id:590503) Integrated Local Services,KING'S COLLEGE HOSPITAL NHS FOUNDATION TRUST,id:13410501  ,3928.39
Department of Health,Guys and St Thomas NHS Foundation Trust,13/11/2020,(83400) Office Equipment,(id:590522) Integrated Local Services,NHS SUPPLY CHAIN (MAIDSTONE),id:13361014    ,  23.62
Department of Health,Guys and St Thomas NHS Foundation Trust,13/11/2020,(81700) Lab Equipment Purchase,(id:590522) Integrated Local Services,NHS SUPPLY CHAIN (MAIDSTONE),id:13385919   ,  43.20
Department of Health,Guys and St Thomas NHS Foundation Trust,13/11/2020,(83400) Office Equipment,(id:590521) Integrated Local Services,NHS SUPPLY CHAIN (MAIDSTONE),id:13361014    ,  36.00
Department of Health,Guys and St Thomas NHS Foundation Trust,27/11/2020,(50552) Qualified Nursing Staff,(id:590521) Integrated Local Services,NURSING 2000 LTD,id:13474563    , 487.78
Department of Health,Guys and St Thomas NHS Foundation Trust,27/11/2020,(50552) Qualified Nursing Staff,(id:590520) Integrated Local Services,YOUR WORLD RECRUITMENT LIMITED(YOUR WORLD HEALTHCARE),id:13487804  , 987.75
Department of Health,Guys and St Thomas NHS Foundation Trust,13/11/2020,(83400) Office Equipment,(id:590471) Integrated Local Services,NHS SUPPLY CHAIN (MAIDSTONE),id:13400692    ,  29.86
Department of Health,Guys and St Thomas NHS Foundation Trust,06/11/2020,(50552) Qualified Nursing Staff,(id:590471) Integrated Local Services,NURSING 2000 LTD,id:13452382    , 502.86
Department of Health,Guys and St Thomas NHS Foundation Trust,13/11/2020,(81700) Lab Equipment Purchase,(id:590535) Integrated Local Services,NHS SUPPLY CHAIN (MAIDSTONE),id:13385919   ,  17.94
Department of Health,Guys and St Thomas NHS Foundation Trust,13/11/2020,(81200) Medical Surgical Supplies & Equipment,(id:590481) Integrated Local Services,NHS SUPPLY CHAIN (MAIDSTONE),id:13398974   ,3970.72
Department of Health,Guys and St Thomas NHS Foundation Trust,13/11/2020,(81200) Medical Surgical Supplies & Equipment,(id:590481) Integrated Local Services,NHS SUPPLY CHAIN (MAIDSTONE),id:13399674   ,    11096.90
Department of Health,Guys and St Thomas NHS Foundation Trust,13/11/2020,(81200) Medical Surgical Supplies & Equipment,(id:590481) Integrated Local Services,NHS SUPPLY CHAIN (MAIDSTONE),id:13399157   , 732.76
Department of Health,Guys and St Thomas NHS Foundation Trust,13/11/2020,(81200) Medical Surgical Supplies & Equipment,(id:590463) Integrated Local Services,NHS SUPPLY CHAIN (MAIDSTONE),id:13361014   , 162.84
Department of Health,Guys and St Thomas NHS Foundation Trust,13/11/2020,(82000) Provisions & Kitchens,(id:590527) Integrated Local Services,NHS SUPPLY CHAIN (MAIDSTONE),id:13400692    ,  65.79
Department of Health,Guys and St Thomas NHS Foundation Trust,13/11/2020,(82000) Provisions & Kitchens,(id:590527) Integrated Local Services,NHS SUPPLY CHAIN (MAIDSTONE),id:13385919    ,  12.90
Department of Health,Guys and St Thomas NHS Foundation Trust,13/11/2020,(83400) Office Equipment,(id:590526) Integrated Local Services,NHS SUPPLY CHAIN (MAIDSTONE),id:13400692    ,  47.62
Department of Health,Guys and St Thomas NHS Foundation Trust,13/11/2020,(83400) Office Equipment,(id:590526) Integrated Local Services,NHS SUPPLY CHAIN (MAIDSTONE),id:13385919    ,  20.62
Department of Health,Guys and St Thomas NHS Foundation Trust,27/11/2020,(83400) Office Equipment,(id:590526) Integrated Local Services,ASSIST SECURITY LIMITED,id:13504554    ,5040.00
Department of Health,Guys and St Thomas NHS Foundation Trust,13/11/2020,(86300) Healthcare from non-NHS bodies,(id:590526) Integrated Local Services,HETHERINGTON GROUP PRACTICE,id:13463394 ,2929.50
Department of Health,Guys and St Thomas NHS Foundation Trust,06/11/2020,(80040) Drug Costs,(id:590491) Integrated Local Services,NHS BUSINESS SERVICES AUTHORITY,id:13411034  ,    86554.49
Department of Health,Guys and St Thomas NHS Foundation Trust,20/11/2020,(50552) Qualified Nursing Staff,(id:4609420) Integrated Local Services,NURSING 2000 LTD,id:13452392   , 739.78
Department of Health,Guys and St Thomas NHS Foundation Trust,27/11/2020,(50552) Qualified Nursing Staff,(id:4609420) Integrated Local Services,NURSING 2000 LTD,id:13474509   , 964.81
Department of Health,Guys and St Thomas NHS Foundation Trust,06/11/2020,(50552) Qualified Nursing Staff,(id:4609420) Integrated Local Services,NURSING 2000 LTD,id:13415700   , 696.64
Department of Health,Guys and St Thomas NHS Foundation Trust,13/11/2020,(81200) Medical Surgical Supplies & Equipment,(id:4263422) Integrated Local Services,NHS SUPPLY CHAIN (MAIDSTONE),id:13385919  , 215.70
Department of Health,Guys and St Thomas NHS Foundation Trust,13/11/2020,(81700) Lab Equipment Purchase,(id:42518) Evelina Womens Services,NHS SUPPLY CHAIN (MAIDSTONE),id:13400692 ,   1.32
Department of Health,Guys and St Thomas NHS Foundation Trust,20/11/2020,(89270) Establishment,(id:42517) Evelina Womens Services,GOSIA HEELEY FERTILITY COUNCELLING,id:13468917    , 675.00
Department of Health,Guys and St Thomas NHS Foundation Trust,13/11/2020,(89270) Establishment,(id:42517) Evelina Womens Services,HCA INTERNATIONAL LTD,id:13460535  , 635.00
Department of Health,Guys and St Thomas NHS Foundation Trust,13/11/2020,(89270) Establishment,(id:42517) Evelina Womens Services,CALLITECH LIMITED T/A MONEYPENNY,id:13452635 ,    10011.74
Department of Health,Guys and St Thomas NHS Foundation Trust,13/11/2020,(89270) Establishment,(id:42517) Evelina Womens Services,YULIYA KOPEIKA,id:13468815    ,    10250.00
Department of Health,Guys and St Thomas NHS Foundation Trust,13/11/2020,(89270) Establishment,(id:42517) Evelina Womens Services,MR TAREK EL-TOUKHY,id:13469375,    18050.00
Department of Health,Guys and St Thomas NHS Foundation Trust,13/11/2020,(83130) Energy Costs,(id:42517) Evelina Womens Services,BOC LTD :02107500,id:13459194  ,4614.67
Department of Health,Guys and St Thomas NHS Foundation Trust,27/11/2020,(81200) Medical Surgical Supplies & Equipment,(id:42517) Evelina Womens Services,IRVINE SCIENTIFIC SALES COMPANY INC,id:13499192    , 871.20
Department of Health,Guys and St Thomas NHS Foundation Trust,27/11/2020,(81200) Medical Surgical Supplies & Equipment,(id:42517) Evelina Womens Services,IRVINE SCIENTIFIC SALES COMPANY INC,id:13515258    , 672.00
Department of Health,Guys and St Thomas NHS Foundation Trust,27/11/2020,(81200) Medical Surgical Supplies & Equipment,(id:42517) Evelina Womens Services,COOK UK LTD,id:12735606   , 898.56
Department of Health,Guys and St Thomas NHS Foundation Trust,06/11/2020,(81200) Medical Surgical Supplies & Equipment,(id:42517) Evelina Womens Services,COOK UK LTD,id:13392814   ,6480.00
Department of Health,Guys and St Thomas NHS Foundation Trust,13/11/2020,(81200) Medical Surgical Supplies & Equipment,(id:42517) Evelina Womens Services,COOK UK LTD,id:13348090   ,4140.00
Department of Health,Guys and St Thomas NHS Foundation Trust,13/11/2020,(81100) Dressings,(id:42513) Evelina Womens Services,NHS SUPPLY CHAIN (MAIDSTONE),id:13400692    , 286.34
Department of Health,Guys and St Thomas NHS Foundation Trust,13/11/2020,(82700) Uniforms & Clothing,(id:42513) Evelina Womens Services,NHS SUPPLY CHAIN (MAIDSTONE),id:13400692    ,  31.68
Department of Health,Guys and St Thomas NHS Foundation Trust,13/11/2020,(81700) Lab Equipment Purchase,(id:42510) Evelina Womens Services,NHS SUPPLY CHAIN (MAIDSTONE),id:13385919 , 393.19
Department of Health,Guys and St Thomas NHS Foundation Trust,13/11/2020,(81225) Medical Surgical Supplies & Equipment,(id:42510) Evelina Womens Services,NHS SUPPLY CHAIN (MAIDSTONE),id:13400692 ,  13.46
Department of Health,Guys and St Thomas NHS Foundation Trust,13/11/2020,(81225) Medical Surgical Supplies & Equipment,(id:42510) Evelina Womens Services,NHS SUPPLY CHAIN (MAIDSTONE),id:13385919 ,   6.73
Department of Health,Guys and St Thomas NHS Foundation Trust,27/11/2020,(81200) Medical Surgical Supplies & Equipment,(id:42509) Evelina Womens Services,MPW (MAWDSLEYS PRE-WHOLESALE),id:13502215,1194.00
Department of Health,Guys and St Thomas NHS Foundation Trust,27/11/2020,(81400) Medical Surgical Supplies & Equipment,(id:42506) Evelina Womens Services,OLYMPUS KEYMED,id:13500570, 462.50
Department of Health,Guys and St Thomas NHS Foundation Trust,06/11/2020,(81200) Medical Surgical Supplies & Equipment,(id:42506) Evelina Womens Services,SCHULTZ MEDICAL (UK) LTD,id:13434454,1218.00
Department of Health,Guys and St Thomas NHS Foundation Trust,13/11/2020,(81200) Medical Surgical Supplies & Equipment,(id:42506) Evelina Womens Services,NHS SUPPLY CHAIN (MAIDSTONE),id:13361014 ,5329.96
Department of Health,Guys and St Thomas NHS Foundation Trust,13/11/2020,(81100) Dressings,(id:42486) Evelina Womens Services,NHS SUPPLY CHAIN (MAIDSTONE),id:13361014    ,    .72
Department of Health,Guys and St Thomas NHS Foundation Trust,06/11/2020,(80010) Drug Costs,(id:42486) Evelina Womens Services,KINGS COLLEGE LONDON:03529700,id:13446754  ,7000.00
Department of Health,Guys and St Thomas NHS Foundation Trust,13/11/2020,(83400) Office Equipment,(id:42497) Evelina Womens Services,NHS SUPPLY CHAIN (MAIDSTONE),id:13385919  ,  41.28
Department of Health,Guys and St Thomas NHS Foundation Trust,13/11/2020,(83400) Office Equipment,(id:42496) Evelina Womens Services,NHS SUPPLY CHAIN (MAIDSTONE),id:13361014  ,   7.27
Department of Health,Guys and St Thomas NHS Foundation Trust,20/11/2020,(80200) Drug Costs,(id:42496) Evelina Womens Services,VIAPATH ANALYTICS LLP,id:13419124,3626.00
Department of Health,Guys and St Thomas NHS Foundation Trust,13/11/2020,(81200) Medical Surgical Supplies & Equipment,(id:42496) Evelina Womens Services,NHS SUPPLY CHAIN (MAIDSTONE),id:13400692 , 134.12
Department of Health,Guys and St Thomas NHS Foundation Trust,13/11/2020,(81700) Lab Equipment Purchase,(id:42496) Evelina Womens Services,NHS SUPPLY CHAIN (MAIDSTONE),id:13385919 , 101.50
Department of Health,Guys and St Thomas NHS Foundation Trust,13/11/2020,(81200) Medical Surgical Supplies & Equipment,(id:42493) Evelina Womens Services,NHS SUPPLY CHAIN (MAIDSTONE),id:13400692 , 568.64
Department of Health,Guys and St Thomas NHS Foundation Trust,13/11/2020,(81700) Lab Equipment Purchase,(id:42493) Evelina Womens Services,NHS SUPPLY CHAIN (MAIDSTONE),id:13361014 ,  44.30
Department of Health,Guys and St Thomas NHS Foundation Trust,13/11/2020,(82600) Uniforms & Clothing,(id:42492) Evelina Womens Services,NHS SUPPLY CHAIN (MAIDSTONE),id:13361014    , 115.32
Department of Health,Guys and St Thomas NHS Foundation Trust,13/11/2020,(82000) Provisions & Kitchens,(id:42492) Evelina Womens Services,NHS SUPPLY CHAIN (MAIDSTONE),id:13385919  ,  85.91
Department of Health,Guys and St Thomas NHS Foundation Trust,13/11/2020,(81200) Medical Surgical Supplies & Equipment,(id:42492) Evelina Womens Services,NHS SUPPLY CHAIN (MAIDSTONE),id:13385919 ,4819.91
Department of Health,Guys and St Thomas NHS Foundation Trust,06/11/2020,(81200) Medical Surgical Supplies & Equipment,(id:42492) Evelina Womens Services,PHILIPS HEALTHCARE,id:13444300 ,2727.60
Department of Health,Guys and St Thomas NHS Foundation Trust,13/11/2020,(81225) Medical Surgical Supplies & Equipment,(id:42492) Evelina Womens Services,NHS SUPPLY CHAIN (MAIDSTONE),id:13385919 , 109.49
Department of Health,Guys and St Thomas NHS Foundation Trust,13/11/2020,(81700) Lab Equipment Purchase,(id:42492) Evelina Womens Services,NHS SUPPLY CHAIN (MAIDSTONE),id:13400692 ,  41.21
Department of Health,Guys and St Thomas NHS Foundation Trust,13/11/2020,(82700) Uniforms & Clothing,(id:42491) Evelina Womens Services,NHS SUPPLY CHAIN (MAIDSTONE),id:13385919    ,  10.56
Department of Health,Guys and St Thomas NHS Foundation Trust,13/11/2020,(82000) Provisions & Kitchens,(id:42491) Evelina Womens Services,NHS SUPPLY CHAIN (MAIDSTONE),id:13400692  , 107.29
Department of Health,Guys and St Thomas NHS Foundation Trust,13/11/2020,(82000) Provisions & Kitchens,(id:42491) Evelina Womens Services,NHS SUPPLY CHAIN (MAIDSTONE),id:13385919  , 171.48
Department of Health,Guys and St Thomas NHS Foundation Trust,13/11/2020,(81700) Lab Equipment Purchase,(id:42491) Evelina Womens Services,NHS SUPPLY CHAIN (MAIDSTONE),id:13361014 ,  66.29
Department of Health,Guys and St Thomas NHS Foundation Trust,13/11/2020,(81700) Lab Equipment Purchase,(id:42491) Evelina Womens Services,NHS SUPPLY CHAIN (MAIDSTONE),id:13400692 ,  25.33
Department of Health,Guys and St Thomas NHS Foundation Trust,13/11/2020,(82700) Uniforms & Clothing,(id:42348) Evelina Central,NHS SUPPLY CHAIN (MAIDSTONE),id:13361014  , 323.72
Department of Health,Guys and St Thomas NHS Foundation Trust,13/11/2020,(83400) Office Equipment,(id:42348) Evelina Central,NHS SUPPLY CHAIN (MAIDSTONE),id:13385919,  64.40
Department of Health,Guys and St Thomas NHS Foundation Trust,13/11/2020,(81225) Medical Surgical Supplies & Equipment,(id:42348) Evelina Central,NHS SUPPLY CHAIN (MAIDSTONE),id:13400692    ,   1.78
Department of Health,Guys and St Thomas NHS Foundation Trust,13/11/2020,(81700) Lab Equipment Purchase,(id:42348) Evelina Central,NHS SUPPLY CHAIN (MAIDSTONE),id:13400692    ,  23.72
Department of Health,Guys and St Thomas NHS Foundation Trust,13/11/2020,(81100) Dressings,(id:42331) Evelina Central,NHS SUPPLY CHAIN (MAIDSTONE),id:13400692  , 461.49
Department of Health,Guys and St Thomas NHS Foundation Trust,13/11/2020,(81700) Lab Equipment Purchase,(id:42331) Evelina Central,NHS SUPPLY CHAIN (MAIDSTONE),id:13361014    ,  46.56
Department of Health,Guys and St Thomas NHS Foundation Trust,13/11/2020,(81700) Lab Equipment Purchase,(id:42331) Evelina Central,NHS SUPPLY CHAIN (MAIDSTONE),id:13385919    ,  35.60
Department of Health,Guys and St Thomas NHS Foundation Trust,13/11/2020,(83400) Office Equipment,(id:42325) Evelina Central,NHS SUPPLY CHAIN (MAIDSTONE),id:13385919,  95.90
Department of Health,Guys and St Thomas NHS Foundation Trust,06/11/2020,(81200) Medical Surgical Supplies & Equipment,(id:42325) Evelina Central,REMSERVE MEDICAL SUPPLIES LTD,id:13442254   ,  12.00
Department of Health,Guys and St Thomas NHS Foundation Trust,27/11/2020,(83410) Office Equipment,(id:2965419) Evelina Central,RICOH UK LTD,id:13516176    , 451.25
Department of Health,Guys and St Thomas NHS Foundation Trust,13/11/2020,(83500) Furniture & Fittings,(id:2709419) Evelina Central,KORN WALL LTD T/A KWICKSCREEN,id:13446841   ,6300.00
Department of Health,Guys and St Thomas NHS Foundation Trust,13/11/2020,(81200) Medical Surgical Supplies & Equipment,(id:42319) Evelina Central,NHS SUPPLY CHAIN (MAIDSTONE),id:13361014    , 224.73
Department of Health,Guys and St Thomas NHS Foundation Trust,13/11/2020,(81200) Medical Surgical Supplies & Equipment,(id:42319) Evelina Central,NHS SUPPLY CHAIN (MAIDSTONE),id:13400692    , 163.86
Department of Health,Guys and St Thomas NHS Foundation Trust,06/11/2020,(81225) Medical Surgical Supplies & Equipment,(id:590444) Evelina Community Services,ARLINGTON LABORATORIES LTD,id:13437715    ,2453.82
Department of Health,Guys and St Thomas NHS Foundation Trust,13/11/2020,(82800) Bedding & Linen,(id:590444) Evelina Community Services,NHS SUPPLY CHAIN (MAIDSTONE),id:13385919    ,  52.80
Department of Health,Guys and St Thomas NHS Foundation Trust,11/11/2020,(51462) Occupational Therapists,(id:706419) Evelina Community Services,PRICEWATERHOUSECOOPERS LLP,id:13466154   ,1266.18
Department of Health,Guys and St Thomas NHS Foundation Trust,03/11/2020,(51262) Dieticians,(id:590412) Evelina Community Services,PRICEWATERHOUSECOOPERS LLP,id:13439315 ,1270.02
Department of Health,Guys and St Thomas NHS Foundation Trust,13/11/2020,(81200) Medical Surgical Supplies & Equipment,(id:590449) Evelina Community Services,NHS SUPPLY CHAIN (MAIDSTONE),id:13385919  ,1332.96
Department of Health,Guys and St Thomas NHS Foundation Trust,06/11/2020,(89000) Other - Training courses and conferences,(id:590452) Evelina Community Services,KINGS COLLEGE LONDON:03529700,id:13418254   , 795.00
Department of Health,Guys and St Thomas NHS Foundation Trust,06/11/2020,(89000) Other - Training courses and conferences,(id:590452) Evelina Community Services,KINGS COLLEGE LONDON:03529700,id:13418214   , 995.00
Department of Health,Guys and St Thomas NHS Foundation Trust,13/11/2020,(50562) Qualified Nursing Staff,(id:590540) Evelina Community Services,ARTHUR RAI MEDICAL SERVICES LTD,id:13470374   ,1317.00
Department of Health,Guys and St Thomas NHS Foundation Trust,06/11/2020,(50562) Qualified Nursing Staff,(id:590540) Evelina Community Services,ARTHUR RAI MEDICAL SERVICES LTD,id:13448351   ,1317.00
Department of Health,Guys and St Thomas NHS Foundation Trust,13/11/2020,(81700) Lab Equipment Purchase,(id:2356419) Evelina Medicine & Neonatology,NHS SUPPLY CHAIN (MAIDSTONE),id:13385919  ,   3.20
Department of Health,Guys and St Thomas NHS Foundation Trust,19/11/2020,(80150) Drug Costs,(id:42350) Evelina Medicine & Neonatology,KANEKA PHARMA EUROPE N.V. (GERMAN BRANCH),id:13297633   ,7929.60
Department of Health,Guys and St Thomas NHS Foundation Trust,06/11/2020,(83400) Office Equipment,(id:42335) Evelina Medicine & Neonatology,PEARSON EDUCATION LTD,id:13421538  ,-843.76
Department of Health,Guys and St Thomas NHS Foundation Trust,13/11/2020,(81100) Dressings,(id:42335) Evelina Medicine & Neonatology,NHS SUPPLY CHAIN (MAIDSTONE),id:13361014  , 270.30
Department of Health,Guys and St Thomas NHS Foundation Trust,27/11/2020,(81200) Medical Surgical Supplies & Equipment,(id:42327) Evelina Medicine & Neonatology,MEDTRONIC LTD,id:13472258    ,3801.60
Department of Health,Guys and St Thomas NHS Foundation Trust,27/11/2020,(81200) Medical Surgical Supplies & Equipment,(id:42327) Evelina Medicine & Neonatology,TECHNO SYSTEMS AS,id:13510494,2250.00
Department of Health,Guys and St Thomas NHS Foundation Trust,06/11/2020,(81200) Medical Surgical Supplies & Equipment,(id:42327) Evelina Medicine & Neonatology,LAPROSURGE LTD,id:13435660   , 613.20
Department of Health,Guys and St Thomas NHS Foundation Trust,06/11/2020,(50552) Qualified Nursing Staff,(id:42327) Evelina Medicine & Neonatology,CONTINENTAL NURSE LTD,id:13448176,1409.61
Department of Health,Guys and St Thomas NHS Foundation Trust,27/11/2020,(84400) Transport,(id:42327) Evelina Medicine & Neonatology,DELTA MEDICAL INTERNATIONAL LTD,id:13355754    ,  36.00
Department of Health,Guys and St Thomas NHS Foundation Trust,13/11/2020,(81225) Medical Surgical Supplies & Equipment,(id:42327) Evelina Medicine & Neonatology,NHS SUPPLY CHAIN (MAIDSTONE),id:13400692    ,  29.36
Department of Health,Guys and St Thomas NHS Foundation Trust,13/11/2020,(81700) Lab Equipment Purchase,(id:42327) Evelina Medicine & Neonatology,NHS SUPPLY CHAIN (MAIDSTONE),id:13361014    ,  52.40
Department of Health,Guys and St Thomas NHS Foundation Trust,13/11/2020,(80010) Drug Costs,(id:1196420) Evelina Medicine & Neonatology,INSULET INTERNATIONAL LTD,id:13468334  , 706.32
Department of Health,Guys and St Thomas NHS Foundation Trust,20/11/2020,(50552) Qualified Nursing Staff,(id:2496419) Evelina Medicine & Neonatology,CONTINENTAL NURSE LTD,id:13487712   ,1935.11
Department of Health,Guys and St Thomas NHS Foundation Trust,13/11/2020,(81200) Medical Surgical Supplies & Equipment,(id:2981419) Evelina Medicine & Neonatology,MEDTRONIC LTD,id:13427521  ,1728.00
Department of Health,Guys and St Thomas NHS Foundation Trust,13/11/2020,(81200) Medical Surgical Supplies & Equipment,(id:41874) Evelina Medicine & Neonatology,NHS SUPPLY CHAIN (MAIDSTONE),id:13385919    , 271.60
Department of Health,Guys and St Thomas NHS Foundation Trust,13/11/2020,(82000) Provisions & Kitchens,(id:41874) Evelina Medicine & Neonatology,NHS SUPPLY CHAIN (MAIDSTONE),id:13385919,  17.69
Department of Health,Guys and St Thomas NHS Foundation Trust,13/11/2020,(82000) Provisions & Kitchens,(id:41874) Evelina Medicine & Neonatology,NHS SUPPLY CHAIN (MAIDSTONE),id:13361014,  17.14
Department of Health,Guys and St Thomas NHS Foundation Trust,13/11/2020,(81200) Medical Surgical Supplies & Equipment,(id:2495419) Evelina Medicine & Neonatology,NHS SUPPLY CHAIN (MAIDSTONE),id:13385919  , 864.00
Department of Health,Guys and St Thomas NHS Foundation Trust,13/11/2020,(81255) Medical Surgical Supplies & Equipment,(id:2495419) Evelina Medicine & Neonatology,NHS SUPPLY CHAIN (MAIDSTONE),id:13400692  , 433.98
Department of Health,Guys and St Thomas NHS Foundation Trust,13/11/2020,(81200) Medical Surgical Supplies & Equipment,(id:42323) Evelina Medicine & Neonatology,NHS SUPPLY CHAIN (MAIDSTONE),id:13385919    , 307.51
Department of Health,Guys and St Thomas NHS Foundation Trust,13/11/2020,(82800) Bedding & Linen,(id:42323) Evelina Medicine & Neonatology,NHS SUPPLY CHAIN (MAIDSTONE),id:13385919 ,  83.78
Department of Health,Guys and St Thomas NHS Foundation Trust,20/11/2020,(81100) Dressings,(id:42315) Evelina Medicine & Neonatology,ULTRASOUND TECHNOLOGIES LTD,id:13439154   , 596.40
Department of Health,Guys and St Thomas NHS Foundation Trust,13/11/2020,(81100) Dressings,(id:42315) Evelina Medicine & Neonatology,NHS SUPPLY CHAIN (MAIDSTONE),id:13400692  , 107.43
Department of Health,Guys and St Thomas NHS Foundation Trust,13/11/2020,(83400) Office Equipment,(id:42315) Evelina Medicine & Neonatology,NHS SUPPLY CHAIN (MAIDSTONE),id:13385919,  91.75
Department of Health,Guys and St Thomas NHS Foundation Trust,13/11/2020,(81700) Lab Equipment Purchase,(id:42315) Evelina Medicine & Neonatology,NHS SUPPLY CHAIN (MAIDSTONE),id:13400692    ,  12.66
Department of Health,Guys and St Thomas NHS Foundation Trust,13/11/2020,(82800) Bedding & Linen,(id:42058) Evelina Medicine & Neonatology,NHS SUPPLY CHAIN (MAIDSTONE),id:13361014 , 234.00
Department of Health,Guys and St Thomas NHS Foundation Trust,13/11/2020,(81200) Medical Surgical Supplies & Equipment,(id:4082419) Evelina Surgery Theatres & PICU,NHS SUPPLY CHAIN (MAIDSTONE),id:13385919 , 794.03
Department of Health,Guys and St Thomas NHS Foundation Trust,13/11/2020,(83400) Office Equipment,(id:4082419) Evelina Surgery Theatres & PICU,NHS SUPPLY CHAIN (MAIDSTONE),id:13385919  , 199.09
Department of Health,Guys and St Thomas NHS Foundation Trust,13/11/2020,(81100) Dressings,(id:4082419) Evelina Surgery Theatres & PICU,NHS SUPPLY CHAIN (MAIDSTONE),id:13385919    , 337.05
Department of Health,Guys and St Thomas NHS Foundation Trust,27/11/2020,(81245) Medical Surgical Supplies & Equipment,(id:42312) Evelina Surgery Theatres & PICU,ABBOTT MEDICAL UK LTD,id:13479835,3720.00
Department of Health,Guys and St Thomas NHS Foundation Trust,13/11/2020,(81200) Medical Surgical Supplies & Equipment,(id:42312) Evelina Surgery Theatres & PICU,COOK UK LTD,id:13414574, 504.00
Department of Health,Guys and St Thomas NHS Foundation Trust,27/11/2020,(81200) Medical Surgical Supplies & Equipment,(id:42312) Evelina Surgery Theatres & PICU,MEDGRAPHICS LTD,id:13495394 , 599.40
Department of Health,Guys and St Thomas NHS Foundation Trust,06/11/2020,(81200) Medical Surgical Supplies & Equipment,(id:42312) Evelina Surgery Theatres & PICU,JOHNSON & JOHNSON MEDICAL LTD,id:13392975  , 684.68
Department of Health,Guys and St Thomas NHS Foundation Trust,20/11/2020,(81200) Medical Surgical Supplies & Equipment,(id:42312) Evelina Surgery Theatres & PICU,COOK UK LTD,id:13423494, 539.40
Department of Health,Guys and St Thomas NHS Foundation Trust,20/11/2020,(81200) Medical Surgical Supplies & Equipment,(id:42312) Evelina Surgery Theatres & PICU,COOK UK LTD,id:13432500, 525.60
Department of Health,Guys and St Thomas NHS Foundation Trust,20/11/2020,(81200) Medical Surgical Supplies & Equipment,(id:42312) Evelina Surgery Theatres & PICU,COOK UK LTD,id:13444741, 789.60
Department of Health,Guys and St Thomas NHS Foundation Trust,30/11/2020,(81200) Medical Surgical Supplies & Equipment,(id:42312) Evelina Surgery Theatres & PICU,BAYLIS MEDICAL CO.INC,id:13125434,4740.00
Department of Health,Guys and St Thomas NHS Foundation Trust,27/11/2020,(81240) Medical Surgical Supplies & Equipment,(id:42312) Evelina Surgery Theatres & PICU,MEDTRONIC LTD,id:13464558   ,3000.00
Department of Health,Guys and St Thomas NHS Foundation Trust,13/11/2020,(81700) Lab Equipment Purchase,(id:42312) Evelina Surgery Theatres & PICU,NHS SUPPLY CHAIN (MAIDSTONE),id:13400692   ,  37.20
Department of Health,Guys and St Thomas NHS Foundation Trust,13/11/2020,(83400) Office Equipment,(id:42351) Evelina Surgery Theatres & PICU,NHS SUPPLY CHAIN (MAIDSTONE),id:13361014    ,   4.75
Department of Health,Guys and St Thomas NHS Foundation Trust,13/11/2020,(81200) Medical Surgical Supplies & Equipment,(id:42351) Evelina Surgery Theatres & PICU,NHS SUPPLY CHAIN (MAIDSTONE),id:13361014   , 368.06
Department of Health,Guys and St Thomas NHS Foundation Trust,13/11/2020,(83400) Office Equipment,(id:41914) Evelina Surgery Theatres & PICU,NHS SUPPLY CHAIN (MAIDSTONE),id:13361014    ,  75.23
Department of Health,Guys and St Thomas NHS Foundation Trust,13/11/2020,(81200) Medical Surgical Supplies & Equipment,(id:41914) Evelina Surgery Theatres & PICU,NHS SUPPLY CHAIN (MAIDSTONE),id:13385919   , 942.41
Department of Health,Guys and St Thomas NHS Foundation Trust,20/11/2020,(50562) Qualified Nursing Staff,(id:41914) Evelina Surgery Theatres & PICU,YOUR WORLD RECRUITMENT LIMITED(YOUR WORLD HEALTHCARE),id:13487743  ,1458.60
Department of Health,Guys and St Thomas NHS Foundation Trust,13/11/2020,(81200) Medical Surgical Supplies & Equipment,(id:41910) Evelina Surgery Theatres & PICU,NHS SUPPLY CHAIN (MAIDSTONE),id:13361014   ,4157.88
Department of Health,Guys and St Thomas NHS Foundation Trust,06/11/2020,(81200) Medical Surgical Supplies & Equipment,(id:1196421) Evelina Surgery Theatres & PICU,JOHNSON & JOHNSON MEDICAL LTD,id:13400857,1263.61
Department of Health,Guys and St Thomas NHS Foundation Trust,13/11/2020,(81200) Medical Surgical Supplies & Equipment,(id:1196421) Evelina Surgery Theatres & PICU,NHS SUPPLY CHAIN (MAIDSTONE),id:13361014 , 510.38
Department of Health,Guys and St Thomas NHS Foundation Trust,13/11/2020,(81200) Medical Surgical Supplies & Equipment,(id:1196421) Evelina Surgery Theatres & PICU,JOHNSON & JOHNSON MEDICAL LTD,id:13418122, 361.03
Department of Health,Guys and St Thomas NHS Foundation Trust,13/11/2020,(82700) Uniforms & Clothing,(id:2498419) Evelina Surgery Theatres & PICU,NHS SUPPLY CHAIN (MAIDSTONE),id:13361014    ,  31.41
Department of Health,Guys and St Thomas NHS Foundation Trust,13/11/2020,(81100) Dressings,(id:431409) Evelina Surgery Theatres & PICU,NHS SUPPLY CHAIN (MAIDSTONE),id:13361014,  35.42
Department of Health,Guys and St Thomas NHS Foundation Trust,13/11/2020,(81200) Medical Surgical Supplies & Equipment,(id:431409) Evelina Surgery Theatres & PICU,NHS SUPPLY CHAIN (MAIDSTONE),id:13361014  ,9587.77
Department of Health,Guys and St Thomas NHS Foundation Trust,13/11/2020,(81200) Medical Surgical Supplies & Equipment,(id:431409) Evelina Surgery Theatres & PICU,LAVENDER MEDICAL LTD,id:13458842,2908.80
Department of Health,Guys and St Thomas NHS Foundation Trust,27/11/2020,(81000) Surgical Appliances,(id:431409) Evelina Surgery Theatres & PICU,JOHN FLORENCE LTD,id:13504615 , 918.42
Department of Health,Guys and St Thomas NHS Foundation Trust,27/11/2020,(81000) Surgical Appliances,(id:431409) Evelina Surgery Theatres & PICU,JOHN FLORENCE LTD,id:13504617 , 921.47
Department of Health,Guys and St Thomas NHS Foundation Trust,27/11/2020,(81000) Surgical Appliances,(id:431409) Evelina Surgery Theatres & PICU,JOHN FLORENCE LTD,id:13504974 , 916.47
Department of Health,Guys and St Thomas NHS Foundation Trust,06/11/2020,(81000) Surgical Appliances,(id:431409) Evelina Surgery Theatres & PICU,JOHN FLORENCE LTD,id:13438834 , 806.11
Department of Health,Guys and St Thomas NHS Foundation Trust,06/11/2020,(81000) Surgical Appliances,(id:431409) Evelina Surgery Theatres & PICU,JOHN FLORENCE LTD,id:13438754 , 826.76
Department of Health,Guys and St Thomas NHS Foundation Trust,06/11/2020,(81000) Surgical Appliances,(id:431409) Evelina Surgery Theatres & PICU,JOHN FLORENCE LTD,id:13438755 , 870.66
Department of Health,Guys and St Thomas NHS Foundation Trust,06/11/2020,(81000) Surgical Appliances,(id:431409) Evelina Surgery Theatres & PICU,JOHN FLORENCE LTD,id:13438814 , 876.40
Department of Health,Guys and St Thomas NHS Foundation Trust,06/11/2020,(81000) Surgical Appliances,(id:431409) Evelina Surgery Theatres & PICU,JOHN FLORENCE LTD,id:13438854 , 936.86
Department of Health,Guys and St Thomas NHS Foundation Trust,13/11/2020,(81000) Surgical Appliances,(id:431409) Evelina Surgery Theatres & PICU,TALAR MADE ORTHOTICS LTD,id:13469034    , 652.69
Department of Health,Guys and St Thomas NHS Foundation Trust,27/11/2020,(81200) Medical Surgical Supplies & Equipment,(id:468410) Evelina Surgery Theatres & PICU,JOHNSON & JOHNSON MEDICAL LTD,id:13472320 ,1044.72
Department of Health,Guys and St Thomas NHS Foundation Trust,13/11/2020,(81200) Medical Surgical Supplies & Equipment,(id:468410) Evelina Surgery Theatres & PICU,NHS SUPPLY CHAIN (MAIDSTONE),id:13385919  ,  34.22
Department of Health,Guys and St Thomas NHS Foundation Trust,13/11/2020,(82800) Bedding & Linen,(id:468409) Evelina Surgery Theatres & PICU,NHS SUPPLY CHAIN (MAIDSTONE),id:13385919    , 121.44
Department of Health,Guys and St Thomas NHS Foundation Trust,13/11/2020,(81550) X Ray Equipment Purchase,(id:468409) Evelina Surgery Theatres & PICU,NHS SUPPLY CHAIN (MAIDSTONE),id:13385919, 116.40
Department of Health,Guys and St Thomas NHS Foundation Trust,20/11/2020,(81100) Dressings,(id:42347) Evelina Surgery Theatres & PICU,SQUADRON MEDICAL LTD,id:13320172    ,   1.58
Department of Health,Guys and St Thomas NHS Foundation Trust,13/11/2020,(81200) Medical Surgical Supplies & Equipment,(id:42347) Evelina Surgery Theatres & PICU,NHS SUPPLY CHAIN (MAIDSTONE),id:13400692   , 190.54
Department of Health,Guys and St Thomas NHS Foundation Trust,13/11/2020,(81200) Medical Surgical Supplies & Equipment,(id:42347) Evelina Surgery Theatres & PICU,NHS SUPPLY CHAIN (MAIDSTONE),id:13361014   , 292.41
Department of Health,Guys and St Thomas NHS Foundation Trust,27/11/2020,(82600) Uniforms & Clothing,(id:42344) Evelina Surgery Theatres & PICU,SHAZI CAZI INTERIOR DESIGN STUDIO,id:13335859 ,1958.40
Department of Health,Guys and St Thomas NHS Foundation Trust,13/11/2020,(82000) Provisions & Kitchens,(id:42339) Evelina Surgery Theatres & PICU,NHS SUPPLY CHAIN (MAIDSTONE),id:13400692    , 207.49
Department of Health,Guys and St Thomas NHS Foundation Trust,13/11/2020,(82800) Bedding & Linen,(id:42339) Evelina Surgery Theatres & PICU,NHS SUPPLY CHAIN (MAIDSTONE),id:13400692, 148.54
Department of Health,Guys and St Thomas NHS Foundation Trust,27/11/2020,(81200) Medical Surgical Supplies & Equipment,(id:42339) Evelina Surgery Theatres & PICU,INTERSURGICAL LTD,id:13509855    , 828.00
Department of Health,Guys and St Thomas NHS Foundation Trust,06/11/2020,(81200) Medical Surgical Supplies & Equipment,(id:42339) Evelina Surgery Theatres & PICU,VYGON (UK) LTD,id:13430914  ,2529.12
Department of Health,Guys and St Thomas NHS Foundation Trust,13/11/2020,(83400) Office Equipment,(id:42339) Evelina Surgery Theatres & PICU,NHS SUPPLY CHAIN (MAIDSTONE),id:13400692    , 284.09
Department of Health,Guys and St Thomas NHS Foundation Trust,13/11/2020,(81225) Medical Surgical Supplies & Equipment,(id:42339) Evelina Surgery Theatres & PICU,NHS SUPPLY CHAIN (MAIDSTONE),id:13385919   ,  54.50
Department of Health,Guys and St Thomas NHS Foundation Trust,27/11/2020,(50200) Consultants,(id:3008419) Evelina R&D and Charity,KINGS COLLEGE LONDON:03529700,id:13417564    ,4927.91
Department of Health,Guys and St Thomas NHS Foundation Trust,13/11/2020,(81100) Dressings,(id:627418) Gastrointestinal Medicine & Surgery,NHS SUPPLY CHAIN (MAIDSTONE),id:13385919 ,  41.40
Department of Health,Guys and St Thomas NHS Foundation Trust,13/11/2020,(81000) Surgical Appliances,(id:41830) Gastrointestinal Medicine & Surgery,TALAR MADE ORTHOTICS LTD,id:13468994 ,  32.26
Department of Health,Guys and St Thomas NHS Foundation Trust,13/11/2020,(82700) Uniforms & Clothing,(id:41958) Gastrointestinal Medicine & Surgery,NHS SUPPLY CHAIN (MAIDSTONE),id:13361014  ,  52.97
Department of Health,Guys and St Thomas NHS Foundation Trust,13/11/2020,(82000) Provisions & Kitchens,(id:41958) Gastrointestinal Medicine & Surgery,NHS SUPPLY CHAIN (MAIDSTONE),id:13385919, 165.64
Department of Health,Guys and St Thomas NHS Foundation Trust,13/11/2020,(82800) Bedding & Linen,(id:41958) Gastrointestinal Medicine & Surgery,NHS SUPPLY CHAIN (MAIDSTONE),id:13400692 , 304.05
Department of Health,Guys and St Thomas NHS Foundation Trust,13/11/2020,(81200) Medical Surgical Supplies & Equipment,(id:41958) Gastrointestinal Medicine & Surgery,NHS SUPPLY CHAIN (MAIDSTONE),id:13400692    , 702.86
Department of Health,Guys and St Thomas NHS Foundation Trust,13/11/2020,(81100) Dressings,(id:41958) Gastrointestinal Medicine & Surgery,NHS SUPPLY CHAIN (MAIDSTONE),id:13400692  , 267.76
Department of Health,Guys and St Thomas NHS Foundation Trust,13/11/2020,(81700) Lab Equipment Purchase,(id:41958) Gastrointestinal Medicine & Surgery,NHS SUPPLY CHAIN (MAIDSTONE),id:13400692    ,  35.58
Department of Health,Guys and St Thomas NHS Foundation Trust,13/11/2020,(82000) Provisions & Kitchens,(id:41954) Gastrointestinal Medicine & Surgery,NHS SUPPLY CHAIN (MAIDSTONE),id:13400692, 127.83
Department of Health,Guys and St Thomas NHS Foundation Trust,13/11/2020,(81200) Medical Surgical Supplies & Equipment,(id:41954) Gastrointestinal Medicine & Surgery,NHS SUPPLY CHAIN (MAIDSTONE),id:13361014    , 621.55
Department of Health,Guys and St Thomas NHS Foundation Trust,13/11/2020,(81100) Dressings,(id:41954) Gastrointestinal Medicine & Surgery,NHS SUPPLY CHAIN (MAIDSTONE),id:13400692  , 311.87
Department of Health,Guys and St Thomas NHS Foundation Trust,13/11/2020,(81700) Lab Equipment Purchase,(id:41954) Gastrointestinal Medicine & Surgery,NHS SUPPLY CHAIN (MAIDSTONE),id:13385919    ,  23.61
Department of Health,Guys and St Thomas NHS Foundation Trust,06/11/2020,(81400) Medical Surgical Supplies & Equipment,(id:41949) Gastrointestinal Medicine & Surgery,LINDSAY SURGICAL SUPPLIES LIMITED,id:13430194    , 933.70
Department of Health,Guys and St Thomas NHS Foundation Trust,06/11/2020,(81200) Medical Surgical Supplies & Equipment,(id:41949) Gastrointestinal Medicine & Surgery,SQUADRON MEDICAL LTD,id:13431775  ,1109.75
Department of Health,Guys and St Thomas NHS Foundation Trust,06/11/2020,(81200) Medical Surgical Supplies & Equipment,(id:41949) Gastrointestinal Medicine & Surgery,JOHNSON & JOHNSON MEDICAL LTD,id:13432160   ,5638.43
Department of Health,Guys and St Thomas NHS Foundation Trust,06/11/2020,(81200) Medical Surgical Supplies & Equipment,(id:41949) Gastrointestinal Medicine & Surgery,JOHNSON & JOHNSON MEDICAL LTD,id:13392619   ,1141.44
Department of Health,Guys and St Thomas NHS Foundation Trust,27/11/2020,(81200) Medical Surgical Supplies & Equipment,(id:41949) Gastrointestinal Medicine & Surgery,JOHNSON & JOHNSON MEDICAL LTD,id:13472306   , 596.07
Department of Health,Guys and St Thomas NHS Foundation Trust,27/11/2020,(81200) Medical Surgical Supplies & Equipment,(id:41949) Gastrointestinal Medicine & Surgery,JOHNSON & JOHNSON MEDICAL LTD,id:13450977   , 898.39
Department of Health,Guys and St Thomas NHS Foundation Trust,13/11/2020,(81200) Medical Surgical Supplies & Equipment,(id:41949) Gastrointestinal Medicine & Surgery,JOHNSON & JOHNSON MEDICAL LTD,id:13427570   ,3350.26
Department of Health,Guys and St Thomas NHS Foundation Trust,13/11/2020,(81200) Medical Surgical Supplies & Equipment,(id:41949) Gastrointestinal Medicine & Surgery,PURPLE SURGICAL UK LTD,id:13460434, 560.03
Department of Health,Guys and St Thomas NHS Foundation Trust,13/11/2020,(81200) Medical Surgical Supplies & Equipment,(id:41949) Gastrointestinal Medicine & Surgery,JOHNSON & JOHNSON MEDICAL LTD,id:13423447   , 898.39
Department of Health,Guys and St Thomas NHS Foundation Trust,13/11/2020,(81200) Medical Surgical Supplies & Equipment,(id:41949) Gastrointestinal Medicine & Surgery,JOHNSON & JOHNSON MEDICAL LTD,id:13423463   , 757.26
Department of Health,Guys and St Thomas NHS Foundation Trust,13/11/2020,(81200) Medical Surgical Supplies & Equipment,(id:41949) Gastrointestinal Medicine & Surgery,MEDTRONIC LTD,id:13440369    ,1805.90
Department of Health,Guys and St Thomas NHS Foundation Trust,13/11/2020,(81200) Medical Surgical Supplies & Equipment,(id:41949) Gastrointestinal Medicine & Surgery,JOHNSON & JOHNSON MEDICAL LTD,id:13427539   ,8023.49
Department of Health,Guys and St Thomas NHS Foundation Trust,20/11/2020,(81200) Medical Surgical Supplies & Equipment,(id:41949) Gastrointestinal Medicine & Surgery,MEDTRONIC LTD,id:13480375    ,2412.00
Department of Health,Guys and St Thomas NHS Foundation Trust,06/11/2020,(81000) Surgical Appliances,(id:41944) Gastrointestinal Medicine & Surgery,MEDI UK LTD,id:13437754    ,  26.02
Department of Health,Guys and St Thomas NHS Foundation Trust,13/11/2020,(81275) Medical Surgical Supplies & Equipment,(id:2367419) Gastrointestinal Medicine & Surgery,NHS SUPPLY CHAIN (MAIDSTONE),id:13361014  ,  12.74
Department of Health,Guys and St Thomas NHS Foundation Trust,13/11/2020,(83400) Office Equipment,(id:2367419) Gastrointestinal Medicine & Surgery,NHS SUPPLY CHAIN (MAIDSTONE),id:13361014   ,   5.51
Department of Health,Guys and St Thomas NHS Foundation Trust,13/11/2020,(81200) Medical Surgical Supplies & Equipment,(id:41957) Gastrointestinal Medicine & Surgery,MEDTRONIC LTD,id:13427522    ,    12960.00
Department of Health,Guys and St Thomas NHS Foundation Trust,13/11/2020,(81700) Lab Equipment Purchase,(id:41957) Gastrointestinal Medicine & Surgery,NHS SUPPLY CHAIN (MAIDSTONE),id:13400692    , 158.40
Department of Health,Guys and St Thomas NHS Foundation Trust,13/11/2020,(82700) Uniforms & Clothing,(id:41917) Gastrointestinal Medicine & Surgery,NHS SUPPLY CHAIN (MAIDSTONE),id:13385919  , 211.87
Department of Health,Guys and St Thomas NHS Foundation Trust,06/11/2020,(81200) Medical Surgical Supplies & Equipment,(id:41917) Gastrointestinal Medicine & Surgery,CANTEL (UK) LTD,id:13401479  ,2066.40
Department of Health,Guys and St Thomas NHS Foundation Trust,06/11/2020,(81200) Medical Surgical Supplies & Equipment,(id:41917) Gastrointestinal Medicine & Surgery,ENDOSOFT LTD,id:13417735,1350.00
Department of Health,Guys and St Thomas NHS Foundation Trust,06/11/2020,(81200) Medical Surgical Supplies & Equipment,(id:41917) Gastrointestinal Medicine & Surgery,BOSTON SCIENTIFIC LTD,id:13382591 ,1914.24
Department of Health,Guys and St Thomas NHS Foundation Trust,06/11/2020,(81200) Medical Surgical Supplies & Equipment,(id:41917) Gastrointestinal Medicine & Surgery,MEDTRONIC LTD,id:13432128    ,4140.00
Department of Health,Guys and St Thomas NHS Foundation Trust,06/11/2020,(81200) Medical Surgical Supplies & Equipment,(id:41917) Gastrointestinal Medicine & Surgery,BOSTON SCIENTIFIC LTD,id:13432123 ,1576.51
Department of Health,Guys and St Thomas NHS Foundation Trust,27/11/2020,(81200) Medical Surgical Supplies & Equipment,(id:41917) Gastrointestinal Medicine & Surgery,MEDTRONIC LTD,id:13450962    ,2760.00
Department of Health,Guys and St Thomas NHS Foundation Trust,20/11/2020,(81230) Medical Surgical Supplies & Equipment,(id:41917) Gastrointestinal Medicine & Surgery,MEDTRONIC LTD,id:13440906    ,3360.00
Department of Health,Guys and St Thomas NHS Foundation Trust,20/11/2020,(81230) Medical Surgical Supplies & Equipment,(id:41917) Gastrointestinal Medicine & Surgery,MEDTRONIC LTD,id:13440904    ,3360.00
Department of Health,Guys and St Thomas NHS Foundation Trust,13/11/2020,(81700) Lab Equipment Purchase,(id:41917) Gastrointestinal Medicine & Surgery,NHS SUPPLY CHAIN (MAIDSTONE),id:13400692    ,   6.34
Department of Health,Guys and St Thomas NHS Foundation Trust,27/11/2020,(86300) Healthcare from non-NHS bodies,(id:2534420) Gastrointestinal Medicine & Surgery,18 WEEK SUPPORT LIMITED,id:13495014    ,    17850.00
Department of Health,Guys and St Thomas NHS Foundation Trust,20/11/2020,(89000) Other - Training courses and conferences,(id:3821419) Cancer Strategy,KINGS COLLEGE LONDON:03529700,id:13462359   ,3330.00
Department of Health,Guys and St Thomas NHS Foundation Trust,13/11/2020,(89270) Establishment,(id:42282) Cancer Strategy,TAIPAN CONSULTING LIMITED,id:13459734 ,8500.00
Department of Health,Guys and St Thomas NHS Foundation Trust,11/11/2020,(89440) Research and Development,(id:4049419) Cardiovascular Services,CLINLOGIX,id:13393336 ,3614.74
Department of Health,Guys and St Thomas NHS Foundation Trust,13/11/2020,(81100) Dressings,(id:780420) Cardiovascular Services,NHS SUPPLY CHAIN (MAIDSTONE),id:13400692   ,1326.32
Department of Health,Guys and St Thomas NHS Foundation Trust,13/11/2020,(83400) Office Equipment,(id:780420) Cardiovascular Services,NHS SUPPLY CHAIN (MAIDSTONE),id:13385919 , 168.00
Department of Health,Guys and St Thomas NHS Foundation Trust,13/11/2020,(81225) Medical Surgical Supplies & Equipment,(id:780420) Cardiovascular Services,NHS SUPPLY CHAIN (MAIDSTONE),id:13385919,   4.85
Department of Health,Guys and St Thomas NHS Foundation Trust,13/11/2020,(82700) Uniforms & Clothing,(id:780420) Cardiovascular Services,NHS SUPPLY CHAIN (MAIDSTONE),id:13361014   ,  31.68
Department of Health,Guys and St Thomas NHS Foundation Trust,13/11/2020,(80010) Drug Costs,(id:780420) Cardiovascular Services,NHS SUPPLY CHAIN (MAIDSTONE),id:13400692  ,  19.44
Department of Health,Guys and St Thomas NHS Foundation Trust,20/11/2020,(50552) Qualified Nursing Staff,(id:780420) Cardiovascular Services,GLOBE LOCUMS LTD,id:13487657 , 324.80
Department of Health,Guys and St Thomas NHS Foundation Trust,13/11/2020,(50522) Unqualified Nursing Staff,(id:780420) Cardiovascular Services,GLOBE LOCUMS LTD,id:13470490    , 200.51
Department of Health,Guys and St Thomas NHS Foundation Trust,13/11/2020,(50522) Unqualified Nursing Staff,(id:780420) Cardiovascular Services,MSI GROUP LTD,id:13470338  , 316.40
Department of Health,Guys and St Thomas NHS Foundation Trust,06/11/2020,(81200) Medical Surgical Supplies & Equipment,(id:639421) Cardiovascular Services,BENTLEY INNOMED GMBH,id:13403615   ,6270.00
Department of Health,Guys and St Thomas NHS Foundation Trust,06/11/2020,(81200) Medical Surgical Supplies & Equipment,(id:639421) Cardiovascular Services,BENTLEY INNOMED GMBH,id:13403575   ,6810.00
Department of Health,Guys and St Thomas NHS Foundation Trust,06/11/2020,(81200) Medical Surgical Supplies & Equipment,(id:639421) Cardiovascular Services,COOK UK LTD,id:13392534  ,1980.00
Department of Health,Guys and St Thomas NHS Foundation Trust,06/11/2020,(81200) Medical Surgical Supplies & Equipment,(id:639421) Cardiovascular Services,BENTLEY INNOMED GMBH,id:13429698   ,3060.00
Department of Health,Guys and St Thomas NHS Foundation Trust,20/11/2020,(81200) Medical Surgical Supplies & Equipment,(id:639421) Cardiovascular Services,BENTLEY INNOMED GMBH,id:13447094   ,3060.00
Department of Health,Guys and St Thomas NHS Foundation Trust,13/11/2020,(82800) Bedding & Linen,(id:41953) Cardiovascular Services,NHS SUPPLY CHAIN (MAIDSTONE),id:13385919   ,  42.12
Department of Health,Guys and St Thomas NHS Foundation Trust,13/11/2020,(82800) Bedding & Linen,(id:41952) Cardiovascular Services,NHS SUPPLY CHAIN (MAIDSTONE),id:13385919   ,  94.73
Department of Health,Guys and St Thomas NHS Foundation Trust,13/11/2020,(83400) Office Equipment,(id:41952) Cardiovascular Services,NHS SUPPLY CHAIN (MAIDSTONE),id:13400692  , 112.54
Department of Health,Guys and St Thomas NHS Foundation Trust,06/11/2020,(81200) Medical Surgical Supplies & Equipment,(id:41950) Cardiovascular Services,COOK UK LTD,id:13398471   ,1068.00
Department of Health,Guys and St Thomas NHS Foundation Trust,06/11/2020,(81200) Medical Surgical Supplies & Equipment,(id:41950) Cardiovascular Services,KIMAL PLC,id:13440416,2204.47
Department of Health,Guys and St Thomas NHS Foundation Trust,20/11/2020,(81200) Medical Surgical Supplies & Equipment,(id:41950) Cardiovascular Services,COOK UK LTD,id:13432490   , 723.60
Department of Health,Guys and St Thomas NHS Foundation Trust,20/11/2020,(81200) Medical Surgical Supplies & Equipment,(id:41950) Cardiovascular Services,COOK UK LTD,id:13423499   , 967.20
Department of Health,Guys and St Thomas NHS Foundation Trust,20/11/2020,(81230) Medical Surgical Supplies & Equipment,(id:41950) Cardiovascular Services,COOK UK LTD,id:13418162   , 792.00
Department of Health,Guys and St Thomas NHS Foundation Trust,06/11/2020,(81000) Surgical Appliances,(id:41950) Cardiovascular Services,TALAR MADE ORTHOTICS LTD,id:13440714   , 114.00
Department of Health,Guys and St Thomas NHS Foundation Trust,13/11/2020,(81255) Medical Surgical Supplies & Equipment,(id:3923419) Cardiovascular Services,NHS SUPPLY CHAIN (MAIDSTONE),id:13361014    ,   3.12
Department of Health,Guys and St Thomas NHS Foundation Trust,20/11/2020,(81200) Medical Surgical Supplies & Equipment,(id:1243419) Cardiovascular Services,WSR MEDICAL SOLUTIONS T/A ROTHBAND,id:13476095   ,  18.00
Department of Health,Guys and St Thomas NHS Foundation Trust,27/11/2020,(81200) Medical Surgical Supplies & Equipment,(id:1243419) Cardiovascular Services,WSR MEDICAL SOLUTIONS T/A ROTHBAND,id:13489899   ,  18.00
Department of Health,Guys and St Thomas NHS Foundation Trust,17/11/2020,(52072) Radiographers,(id:1243419) Cardiovascular Services,PRICEWATERHOUSECOOPERS LLP,id:13480934,1401.07
Department of Health,Guys and St Thomas NHS Foundation Trust,13/11/2020,(50470) Medical Training Grades,(id:42304) Cardiovascular Services,KINGS COLLEGE LONDON:03529700,id:13417706    ,    11957.50
Department of Health,Guys and St Thomas NHS Foundation Trust,11/11/2020,(54062) Technical Officers,(id:42303) Cardiovascular Services,PRICEWATERHOUSECOOPERS LLP,id:13466154  ,1254.07
Department of Health,Guys and St Thomas NHS Foundation Trust,06/11/2020,(81200) Medical Surgical Supplies & Equipment,(id:42303) Cardiovascular Services,NOVACOR UK LTD,id:13434495,1585.92
Department of Health,Guys and St Thomas NHS Foundation Trust,26/11/2020,(54052) Technical Officers,(id:42303) Cardiovascular Services,PRICEWATERHOUSECOOPERS LLP,id:13508314  , 959.50
Department of Health,Guys and St Thomas NHS Foundation Trust,03/11/2020,(54072) Technical Officers,(id:42303) Cardiovascular Services,PRICEWATERHOUSECOOPERS LLP,id:13439315  ,4180.89
Department of Health,Guys and St Thomas NHS Foundation Trust,26/11/2020,(51832) Physiotherapists,(id:42303) Cardiovascular Services,PRICEWATERHOUSECOOPERS LLP,id:13508314    ,1420.83
Department of Health,Guys and St Thomas NHS Foundation Trust,27/11/2020,(83400) Office Equipment,(id:42302) Cardiovascular Services,EDWARDS LIFESCIENCES LTD,id:13507259 ,    25530.00
Department of Health,Guys and St Thomas NHS Foundation Trust,27/11/2020,(83400) Office Equipment,(id:42302) Cardiovascular Services,EDWARDS LIFESCIENCES LTD,id:13507261 ,    25530.00
Department of Health,Guys and St Thomas NHS Foundation Trust,13/11/2020,(83400) Office Equipment,(id:42302) Cardiovascular Services,EDWARDS LIFESCIENCES LTD,id:13470930 ,    25530.00
Department of Health,Guys and St Thomas NHS Foundation Trust,13/11/2020,(82800) Bedding & Linen,(id:42302) Cardiovascular Services,NHS SUPPLY CHAIN (MAIDSTONE),id:13361014   , 220.80
Department of Health,Guys and St Thomas NHS Foundation Trust,13/11/2020,(82800) Bedding & Linen,(id:42302) Cardiovascular Services,NHS SUPPLY CHAIN (MAIDSTONE),id:13400692   , 220.80
Department of Health,Guys and St Thomas NHS Foundation Trust,13/11/2020,(81200) Medical Surgical Supplies & Equipment,(id:42302) Cardiovascular Services,BOSTON SCIENTIFIC LTD,id:13418080   ,1008.00
Department of Health,Guys and St Thomas NHS Foundation Trust,27/11/2020,(81200) Medical Surgical Supplies & Equipment,(id:42302) Cardiovascular Services,VASCULAR PERSPECTIVES LTD,id:13505434    , 540.00
Department of Health,Guys and St Thomas NHS Foundation Trust,06/11/2020,(81200) Medical Surgical Supplies & Equipment,(id:42302) Cardiovascular Services,BOSTON SCIENTIFIC LTD,id:13431896   ,2580.00
Department of Health,Guys and St Thomas NHS Foundation Trust,06/11/2020,(81200) Medical Surgical Supplies & Equipment,(id:42302) Cardiovascular Services,SQUADRON MEDICAL LTD,id:13431857    ,1684.80
Department of Health,Guys and St Thomas NHS Foundation Trust,13/11/2020,(82700) Uniforms & Clothing,(id:42302) Cardiovascular Services,NHS SUPPLY CHAIN (MAIDSTONE),id:13400692    ,  52.97
Department of Health,Guys and St Thomas NHS Foundation Trust,13/11/2020,(81230) Medical Surgical Supplies & Equipment,(id:42302) Cardiovascular Services,ABBOTT MEDICAL UK LTD,id:13462002   ,1560.00
Department of Health,Guys and St Thomas NHS Foundation Trust,13/11/2020,(81225) Medical Surgical Supplies & Equipment,(id:42300) Cardiovascular Services,NHS SUPPLY CHAIN (MAIDSTONE),id:13400692 ,  15.70
Department of Health,Guys and St Thomas NHS Foundation Trust,13/11/2020,(81200) Medical Surgical Supplies & Equipment,(id:42300) Cardiovascular Services,NHS SUPPLY CHAIN (MAIDSTONE),id:13385919 , 499.91
Department of Health,Guys and St Thomas NHS Foundation Trust,13/11/2020,(81100) Dressings,(id:42300) Cardiovascular Services,NHS SUPPLY CHAIN (MAIDSTONE),id:13400692    , 219.25
Department of Health,Guys and St Thomas NHS Foundation Trust,13/11/2020,(50522) Unqualified Nursing Staff,(id:42300) Cardiovascular Services,GLOBE LOCUMS LTD,id:13470490, 200.50
Department of Health,Guys and St Thomas NHS Foundation Trust,27/11/2020,(50522) Unqualified Nursing Staff,(id:42300) Cardiovascular Services,MSI GROUP LTD,id:13510734   , 204.81
Department of Health,Guys and St Thomas NHS Foundation Trust,13/11/2020,(81200) Medical Surgical Supplies & Equipment,(id:42298) Cardiovascular Services,JOHNSON & JOHNSON MEDICAL LTD,id:13418131,1710.00
Department of Health,Guys and St Thomas NHS Foundation Trust,13/11/2020,(81200) Medical Surgical Supplies & Equipment,(id:42298) Cardiovascular Services,HEALTHCARE 21 LTD,id:13432754  ,1864.20
Department of Health,Guys and St Thomas NHS Foundation Trust,13/11/2020,(81200) Medical Surgical Supplies & Equipment,(id:42298) Cardiovascular Services,BOSTON SCIENTIFIC LTD,id:13358335   , 768.00
Department of Health,Guys and St Thomas NHS Foundation Trust,06/11/2020,(81200) Medical Surgical Supplies & Equipment,(id:42298) Cardiovascular Services,ABBOTT MEDICAL UK LTD,id:13417854   ,2064.00
Department of Health,Guys and St Thomas NHS Foundation Trust,20/11/2020,(81200) Medical Surgical Supplies & Equipment,(id:42298) Cardiovascular Services,ABBOTT MEDICAL UK LTD,id:13476107   ,    12606.00
Department of Health,Guys and St Thomas NHS Foundation Trust,20/11/2020,(81200) Medical Surgical Supplies & Equipment,(id:42298) Cardiovascular Services,MEDTRONIC LTD,id:13480354 ,    28668.00
Department of Health,Guys and St Thomas NHS Foundation Trust,30/11/2020,(81200) Medical Surgical Supplies & Equipment,(id:42298) Cardiovascular Services,BAYLIS MEDICAL CO.INC,id:13213935   , 630.00
Department of Health,Guys and St Thomas NHS Foundation Trust,13/11/2020,(81230) Medical Surgical Supplies & Equipment,(id:42298) Cardiovascular Services,ABBOTT MEDICAL UK LTD,id:13458388   , 132.00
Department of Health,Guys and St Thomas NHS Foundation Trust,06/11/2020,(81230) Medical Surgical Supplies & Equipment,(id:42298) Cardiovascular Services,ABBOTT MEDICAL UK LTD,id:13422096   , 132.00
Department of Health,Guys and St Thomas NHS Foundation Trust,13/11/2020,(82800) Bedding & Linen,(id:42298) Cardiovascular Services,NHS SUPPLY CHAIN (MAIDSTONE),id:13385919   , 190.44
Department of Health,Guys and St Thomas NHS Foundation Trust,20/11/2020,(81240) Medical Surgical Supplies & Equipment,(id:42298) Cardiovascular Services,ABBOTT MEDICAL UK LTD,id:13466194   ,3594.00
Department of Health,Guys and St Thomas NHS Foundation Trust,27/11/2020,(81240) Medical Surgical Supplies & Equipment,(id:42298) Cardiovascular Services,MEDTRONIC LTD,id:13464610 ,    17280.00
Department of Health,Guys and St Thomas NHS Foundation Trust,13/11/2020,(83400) Office Equipment,(id:42291) Cardiovascular Services,NHS SUPPLY CHAIN (MAIDSTONE),id:13385919  , 152.08
Department of Health,Guys and St Thomas NHS Foundation Trust,13/11/2020,(82800) Bedding & Linen,(id:42291) Cardiovascular Services,NHS SUPPLY CHAIN (MAIDSTONE),id:13361014   , 195.14
Department of Health,Guys and St Thomas NHS Foundation Trust,13/11/2020,(82800) Bedding & Linen,(id:42290) Cardiovascular Services,NHS SUPPLY CHAIN (MAIDSTONE),id:13385919   , 127.19
Department of Health,Guys and St Thomas NHS Foundation Trust,13/11/2020,(50522) Unqualified Nursing Staff,(id:42290) Cardiovascular Services,GLOBE LOCUMS LTD,id:13470297, 203.77
Department of Health,Guys and St Thomas NHS Foundation Trust,13/11/2020,(81225) Medical Surgical Supplies & Equipment,(id:42290) Cardiovascular Services,NHS SUPPLY CHAIN (MAIDSTONE),id:13385919 ,   4.85
Department of Health,Guys and St Thomas NHS Foundation Trust,13/11/2020,(82800) Bedding & Linen,(id:42293) Cardiovascular Services,NHS SUPPLY CHAIN (MAIDSTONE),id:13400692   ,  60.30
Department of Health,Guys and St Thomas NHS Foundation Trust,13/11/2020,(81225) Medical Surgical Supplies & Equipment,(id:42293) Cardiovascular Services,NHS SUPPLY CHAIN (MAIDSTONE),id:13385919 ,   4.85
Department of Health,Guys and St Thomas NHS Foundation Trust,13/11/2020,(81200) Medical Surgical Supplies & Equipment,(id:42293) Cardiovascular Services,NHS SUPPLY CHAIN (MAIDSTONE),id:13400692 ,6456.29
Department of Health,Guys and St Thomas NHS Foundation Trust,13/11/2020,(81200) Medical Surgical Supplies & Equipment,(id:42293) Cardiovascular Services,NHS SUPPLY CHAIN (MAIDSTONE),id:13385919 , 529.81
Department of Health,Guys and St Thomas NHS Foundation Trust,06/11/2020,(81200) Medical Surgical Supplies & Equipment,(id:42293) Cardiovascular Services,MEDTRONIC LTD,id:13429858 , 540.00
Department of Health,Guys and St Thomas NHS Foundation Trust,06/11/2020,(81200) Medical Surgical Supplies & Equipment,(id:42293) Cardiovascular Services,MEDTRONIC LTD,id:13440655 ,1296.00
Department of Health,Guys and St Thomas NHS Foundation Trust,06/11/2020,(81200) Medical Surgical Supplies & Equipment,(id:42293) Cardiovascular Services,AQUILANT CRITICAL CARE,id:13428514  ,2268.00
Department of Health,Guys and St Thomas NHS Foundation Trust,20/11/2020,(81200) Medical Surgical Supplies & Equipment,(id:42293) Cardiovascular Services,AQUILANT CRITICAL CARE,id:13470754  ,1524.00
Department of Health,Guys and St Thomas NHS Foundation Trust,20/11/2020,(81200) Medical Surgical Supplies & Equipment,(id:42293) Cardiovascular Services,JOHNSON & JOHNSON MEDICAL LTD,id:13432455, 722.06
Department of Health,Guys and St Thomas NHS Foundation Trust,20/11/2020,(81200) Medical Surgical Supplies & Equipment,(id:42293) Cardiovascular Services,MAQUET LIMITED,id:13446280, 781.20
Department of Health,Guys and St Thomas NHS Foundation Trust,27/11/2020,(81200) Medical Surgical Supplies & Equipment,(id:42293) Cardiovascular Services,EDWARDS LIFESCIENCES LTD,id:13507117,1824.00
Department of Health,Guys and St Thomas NHS Foundation Trust,13/11/2020,(81200) Medical Surgical Supplies & Equipment,(id:42293) Cardiovascular Services,EDWARDS LIFESCIENCES LTD,id:13430653,3175.20
Department of Health,Guys and St Thomas NHS Foundation Trust,13/11/2020,(81100) Dressings,(id:42293) Cardiovascular Services,NHS SUPPLY CHAIN (MAIDSTONE),id:13400692    ,2383.70
Department of Health,Guys and St Thomas NHS Foundation Trust,27/11/2020,(81280) Medical Surgical Supplies & Equipment,(id:42293) Cardiovascular Services,EDWARDS LIFESCIENCES LTD,id:13507116,2112.00
Department of Health,Guys and St Thomas NHS Foundation Trust,27/11/2020,(81280) Medical Surgical Supplies & Equipment,(id:42293) Cardiovascular Services,CRYOLIFE EUROPA LTD,id:13462134,1440.00
Department of Health,Guys and St Thomas NHS Foundation Trust,27/11/2020,(81280) Medical Surgical Supplies & Equipment,(id:42293) Cardiovascular Services,CRYOLIFE EUROPA LTD,id:13516681,1440.00
Department of Health,Guys and St Thomas NHS Foundation Trust,27/11/2020,(81280) Medical Surgical Supplies & Equipment,(id:42293) Cardiovascular Services,EDWARDS LIFESCIENCES LTD,id:13507158,3420.00
Department of Health,Guys and St Thomas NHS Foundation Trust,13/11/2020,(81200) Medical Surgical Supplies & Equipment,(id:42292) Cardiovascular Services,SIEMENS HEALTHCARE DIAGNOSTICS LTD,id:13446364,1996.68
Department of Health,Guys and St Thomas NHS Foundation Trust,06/11/2020,(81200) Medical Surgical Supplies & Equipment,(id:42292) Cardiovascular Services,LIVANOVA UK LTD,id:13433656    ,1374.34
Department of Health,Guys and St Thomas NHS Foundation Trust,20/11/2020,(81200) Medical Surgical Supplies & Equipment,(id:42292) Cardiovascular Services,MAQUET LIMITED,id:13446054, 475.20
Department of Health,Guys and St Thomas NHS Foundation Trust,27/11/2020,(81200) Medical Surgical Supplies & Equipment,(id:42292) Cardiovascular Services,LIVANOVA UK LTD,id:13491494    , 565.49
Department of Health,Guys and St Thomas NHS Foundation Trust,13/11/2020,(81100) Dressings,(id:42292) Cardiovascular Services,LIVANOVA UK LTD,id:13449198  , 396.00
Department of Health,Guys and St Thomas NHS Foundation Trust,20/11/2020,(81270) Medical Surgical Supplies & Equipment,(id:42292) Cardiovascular Services,MAQUET LIMITED,id:13445835, 360.00
Department of Health,Guys and St Thomas NHS Foundation Trust,27/11/2020,(81270) Medical Surgical Supplies & Equipment,(id:42292) Cardiovascular Services,MAQUET LIMITED,id:13480358, 180.00
Department of Health,Guys and St Thomas NHS Foundation Trust,13/11/2020,(81100) Dressings,(id:42287) Cardiovascular Services,NHS SUPPLY CHAIN (MAIDSTONE),id:13385919    ,  93.86
Department of Health,Guys and St Thomas NHS Foundation Trust,13/11/2020,(81225) Medical Surgical Supplies & Equipment,(id:42287) Cardiovascular Services,NHS SUPPLY CHAIN (MAIDSTONE),id:13400692 ,  20.54
Department of Health,Guys and St Thomas NHS Foundation Trust,13/11/2020,(81700) Lab Equipment Purchase,(id:42287) Cardiovascular Services,NHS SUPPLY CHAIN (MAIDSTONE),id:13400692 ,  25.33
Department of Health,Guys and St Thomas NHS Foundation Trust,20/11/2020,(50200) Consultants,(id:42368) Clinical Imaging & Med Physics,KING'S COLLEGE HOSPITAL NHS FOUNDATION TRUST,id:13410513    ,1643.65
Department of Health,Guys and St Thomas NHS Foundation Trust,26/11/2020,(50202) Consultants,(id:42368) Clinical Imaging & Med Physics,PRICEWATERHOUSECOOPERS LLP,id:13508314  ,1229.65
Department of Health,Guys and St Thomas NHS Foundation Trust,20/11/2020,(83610) IT Costs,(id:42367) Clinical Imaging & Med Physics,BUSINESS DICTATION LTD,id:13475754    , 859.20
Department of Health,Guys and St Thomas NHS Foundation Trust,20/11/2020,(81200) Medical Surgical Supplies & Equipment,(id:42367) Clinical Imaging & Med Physics,COOK UK LTD,id:13423497 ,1056.00
Department of Health,Guys and St Thomas NHS Foundation Trust,20/11/2020,(81200) Medical Surgical Supplies & Equipment,(id:42367) Clinical Imaging & Med Physics,COOK UK LTD,id:13444749 , 379.20
Department of Health,Guys and St Thomas NHS Foundation Trust,20/11/2020,(81200) Medical Surgical Supplies & Equipment,(id:42367) Clinical Imaging & Med Physics,MACROMED (UK) LTD,id:13488494,2310.00
Department of Health,Guys and St Thomas NHS Foundation Trust,20/11/2020,(81200) Medical Surgical Supplies & Equipment,(id:42367) Clinical Imaging & Med Physics,COOK UK LTD,id:13406287 , 124.80
Department of Health,Guys and St Thomas NHS Foundation Trust,20/11/2020,(81200) Medical Surgical Supplies & Equipment,(id:42367) Clinical Imaging & Med Physics,BARD LTD,id:13436677    , 604.80
Department of Health,Guys and St Thomas NHS Foundation Trust,13/11/2020,(81200) Medical Surgical Supplies & Equipment,(id:42367) Clinical Imaging & Med Physics,VYGON (UK) LTD,id:13471514   , 264.00
Department of Health,Guys and St Thomas NHS Foundation Trust,13/11/2020,(81200) Medical Surgical Supplies & Equipment,(id:42367) Clinical Imaging & Med Physics,BOSTON SCIENTIFIC LTD,id:13427511 ,1260.00
Department of Health,Guys and St Thomas NHS Foundation Trust,20/11/2020,(81200) Medical Surgical Supplies & Equipment,(id:42367) Clinical Imaging & Med Physics,VOLCANO EUROPE BVBA/SPRL,id:13481455   ,1400.00
Department of Health,Guys and St Thomas NHS Foundation Trust,27/11/2020,(81200) Medical Surgical Supplies & Equipment,(id:42367) Clinical Imaging & Med Physics,BOSTON SCIENTIFIC LTD,id:13450950 ,4800.00
Department of Health,Guys and St Thomas NHS Foundation Trust,06/11/2020,(81200) Medical Surgical Supplies & Equipment,(id:42367) Clinical Imaging & Med Physics,SQUADRON MEDICAL LTD,id:13431676  ,2589.80
Department of Health,Guys and St Thomas NHS Foundation Trust,06/11/2020,(81200) Medical Surgical Supplies & Equipment,(id:42367) Clinical Imaging & Med Physics,BOSTON SCIENTIFIC LTD,id:13400824 ,1518.00
Department of Health,Guys and St Thomas NHS Foundation Trust,06/11/2020,(81200) Medical Surgical Supplies & Equipment,(id:42367) Clinical Imaging & Med Physics,BVM MEDICAL LTD,id:13433178  ,1320.00
Department of Health,Guys and St Thomas NHS Foundation Trust,13/11/2020,(81235) Medical Surgical Supplies & Equipment,(id:42367) Clinical Imaging & Med Physics,BOSTON SCIENTIFIC LTD,id:13418082 ,1240.69
Department of Health,Guys and St Thomas NHS Foundation Trust,20/11/2020,(81235) Medical Surgical Supplies & Equipment,(id:42367) Clinical Imaging & Med Physics,BARD LTD,id:13426854    , 893.82
Department of Health,Guys and St Thomas NHS Foundation Trust,06/11/2020,(81235) Medical Surgical Supplies & Equipment,(id:42367) Clinical Imaging & Med Physics,BOSTON SCIENTIFIC LTD,id:13392586 , 912.00
Department of Health,Guys and St Thomas NHS Foundation Trust,20/11/2020,(81230) Medical Surgical Supplies & Equipment,(id:42367) Clinical Imaging & Med Physics,COOK UK LTD,id:13414648 , 300.00
Department of Health,Guys and St Thomas NHS Foundation Trust,20/11/2020,(81230) Medical Surgical Supplies & Equipment,(id:42367) Clinical Imaging & Med Physics,COOK UK LTD,id:13418169 , 312.00
Department of Health,Guys and St Thomas NHS Foundation Trust,27/11/2020,(81230) Medical Surgical Supplies & Equipment,(id:42367) Clinical Imaging & Med Physics,COOK UK LTD,id:13464593 , 762.00
Department of Health,Guys and St Thomas NHS Foundation Trust,06/11/2020,(81230) Medical Surgical Supplies & Equipment,(id:42367) Clinical Imaging & Med Physics,SQUADRON MEDICAL LTD,id:13431674  ,  24.02
Department of Health,Guys and St Thomas NHS Foundation Trust,13/11/2020,(82000) Provisions & Kitchens,(id:42366) Clinical Imaging & Med Physics,NHS SUPPLY CHAIN (MAIDSTONE),id:13400692,   7.80
Department of Health,Guys and St Thomas NHS Foundation Trust,13/11/2020,(82800) Bedding & Linen,(id:42366) Clinical Imaging & Med Physics,NHS SUPPLY CHAIN (MAIDSTONE),id:13400692 , 371.81
Department of Health,Guys and St Thomas NHS Foundation Trust,13/11/2020,(81225) Medical Surgical Supplies & Equipment,(id:42366) Clinical Imaging & Med Physics,NHS SUPPLY CHAIN (MAIDSTONE),id:13400692    ,  30.37
Department of Health,Guys and St Thomas NHS Foundation Trust,27/11/2020,(83400) Office Equipment,(id:4187419) Clinical Imaging & Med Physics,BAYER PLC,id:13483335  ,2112.00
Department of Health,Guys and St Thomas NHS Foundation Trust,27/11/2020,(83400) Office Equipment,(id:4187419) Clinical Imaging & Med Physics,BAYER PLC,id:13487960  ,2112.00
Department of Health,Guys and St Thomas NHS Foundation Trust,27/11/2020,(81200) Medical Surgical Supplies & Equipment,(id:4187419) Clinical Imaging & Med Physics,ADVANCED ACCELERATOR APPLICATIONS (UK & IRELAND) LTD,id:13486616   ,    15658.50
Department of Health,Guys and St Thomas NHS Foundation Trust,27/11/2020,(81200) Medical Surgical Supplies & Equipment,(id:4187419) Clinical Imaging & Med Physics,ADVANCED ACCELERATOR APPLICATIONS (UK & IRELAND) LTD,id:13470900   ,    16690.50
Department of Health,Guys and St Thomas NHS Foundation Trust,27/11/2020,(81200) Medical Surgical Supplies & Equipment,(id:4187419) Clinical Imaging & Med Physics,ADVANCED ACCELERATOR APPLICATIONS (UK & IRELAND) LTD,id:13471394   ,   -39146.22
Department of Health,Guys and St Thomas NHS Foundation Trust,06/11/2020,(81500) X Ray Equipment Purchase,(id:4187419) Clinical Imaging & Med Physics,CURIUM PHARMA UK LTD,id:13421325   ,    10584.00
Department of Health,Guys and St Thomas NHS Foundation Trust,13/11/2020,(82600) Uniforms & Clothing,(id:42372) Clinical Imaging & Med Physics,NHS SUPPLY CHAIN (MAIDSTONE),id:13400692  ,  42.60
Department of Health,Guys and St Thomas NHS Foundation Trust,13/11/2020,(82000) Provisions & Kitchens,(id:42372) Clinical Imaging & Med Physics,NHS SUPPLY CHAIN (MAIDSTONE),id:13400692,  20.95
Department of Health,Guys and St Thomas NHS Foundation Trust,27/11/2020,(83400) Office Equipment,(id:42372) Clinical Imaging & Med Physics,BAYER PLC,id:13421671    ,2112.00
Department of Health,Guys and St Thomas NHS Foundation Trust,27/11/2020,(83400) Office Equipment,(id:42372) Clinical Imaging & Med Physics,BAYER PLC,id:13387094    ,2112.00
Department of Health,Guys and St Thomas NHS Foundation Trust,06/11/2020,(50203) Consultants,(id:42372) Clinical Imaging & Med Physics,KINGS COLLEGE LONDON:03529700,id:13348710    ,9016.01
Department of Health,Guys and St Thomas NHS Foundation Trust,13/11/2020,(81400) Medical Surgical Supplies & Equipment,(id:42372) Clinical Imaging & Med Physics,NHS SUPPLY CHAIN ( CAPITAL FUND ONLY),id:13466799,    47767.64
Department of Health,Guys and St Thomas NHS Foundation Trust,13/11/2020,(81700) Lab Equipment Purchase,(id:42372) Clinical Imaging & Med Physics,NHS SUPPLY CHAIN (MAIDSTONE),id:13400692    ,   1.32
Department of Health,Guys and St Thomas NHS Foundation Trust,06/11/2020,(81275) Medical Surgical Supplies & Equipment,(id:42372) Clinical Imaging & Med Physics,GE HEALTHCARE (50652318),id:13429537   ,4770.00
Department of Health,Guys and St Thomas NHS Foundation Trust,06/11/2020,(81275) Medical Surgical Supplies & Equipment,(id:42372) Clinical Imaging & Med Physics,GE HEALTHCARE UK LTD:00475800,id:13421316   , 630.00
Department of Health,Guys and St Thomas NHS Foundation Trust,20/11/2020,(81275) Medical Surgical Supplies & Equipment,(id:42372) Clinical Imaging & Med Physics,GE HEALTHCARE (50652318),id:13470174   ,1260.00
Department of Health,Guys and St Thomas NHS Foundation Trust,27/11/2020,(81500) X Ray Equipment Purchase,(id:42372) Clinical Imaging & Med Physics,MICROTECHNICA LTD,id:13497414   ,3000.00
Department of Health,Guys and St Thomas NHS Foundation Trust,13/11/2020,(81500) X Ray Equipment Purchase,(id:42372) Clinical Imaging & Med Physics,AMERCARE LTD,id:13464254   ,1048.20
Department of Health,Guys and St Thomas NHS Foundation Trust,18/11/2020,(81500) X Ray Equipment Purchase,(id:42372) Clinical Imaging & Med Physics,ABX GMBH,id:13467097  ,    14603.81
Department of Health,Guys and St Thomas NHS Foundation Trust,27/11/2020,(81500) X Ray Equipment Purchase,(id:42372) Clinical Imaging & Med Physics,CURIUM PHARMA UK LTD,id:13481921, 864.00
Department of Health,Guys and St Thomas NHS Foundation Trust,06/11/2020,(81400) Medical Surgical Supplies & Equipment,(id:42379) Clinical Imaging & Med Physics,KCI MEDICAL LTD,id:13423207  , 502.67
Department of Health,Guys and St Thomas NHS Foundation Trust,06/11/2020,(81400) Medical Surgical Supplies & Equipment,(id:42379) Clinical Imaging & Med Physics,KCI MEDICAL LTD,id:13423210  , 523.53
Department of Health,Guys and St Thomas NHS Foundation Trust,13/11/2020,(81400) Medical Surgical Supplies & Equipment,(id:42379) Clinical Imaging & Med Physics,KCI MEDICAL LTD,id:13423204  , 559.01
Department of Health,Guys and St Thomas NHS Foundation Trust,13/11/2020,(81400) Medical Surgical Supplies & Equipment,(id:42379) Clinical Imaging & Med Physics,TENACORE UK LTD,id:13417626  , 980.00
Department of Health,Guys and St Thomas NHS Foundation Trust,27/11/2020,(81400) Medical Surgical Supplies & Equipment,(id:42379) Clinical Imaging & Med Physics,SOLUS MEDICAL LTD,id:13481686,1320.00
Department of Health,Guys and St Thomas NHS Foundation Trust,20/11/2020,(81200) Medical Surgical Supplies & Equipment,(id:42379) Clinical Imaging & Med Physics,VIAMED,id:13487907 , 612.00
Department of Health,Guys and St Thomas NHS Foundation Trust,13/11/2020,(81200) Medical Surgical Supplies & Equipment,(id:42379) Clinical Imaging & Med Physics,CENTRAL MEDICAL SUPPLIES LTD,id:13462013    , 836.34
Department of Health,Guys and St Thomas NHS Foundation Trust,06/11/2020,(81200) Medical Surgical Supplies & Equipment,(id:42379) Clinical Imaging & Med Physics,TENACORE UK LTD,id:13397454  ,  24.00
Department of Health,Guys and St Thomas NHS Foundation Trust,13/11/2020,(81250) Medical Surgical Supplies & Equipment,(id:1348419) Clinical Imaging & Med Physics,AQUILANT LTD,id:13446508   ,1968.00
Department of Health,Guys and St Thomas NHS Foundation Trust,13/11/2020,(81200) Medical Surgical Supplies & Equipment,(id:1348419) Clinical Imaging & Med Physics,NHS SUPPLY CHAIN (MAIDSTONE),id:13361014  ,4308.00
Department of Health,Guys and St Thomas NHS Foundation Trust,13/11/2020,(81400) Medical Surgical Supplies & Equipment,(id:1348419) Clinical Imaging & Med Physics,PROTECX MEDICAL LTD,id:13460275 ,1782.50
Department of Health,Guys and St Thomas NHS Foundation Trust,13/11/2020,(82000) Provisions & Kitchens,(id:1348419) Clinical Imaging & Med Physics,NHS SUPPLY CHAIN (MAIDSTONE),id:13385919   ,  18.13
Department of Health,Guys and St Thomas NHS Foundation Trust,27/11/2020,(84400) Transport,(id:2625419) Transplant Renal and Urology,IMT MEDICAL TRANSPORT LTD,id:13497254,2825.30
Department of Health,Guys and St Thomas NHS Foundation Trust,13/11/2020,(81100) Dressings,(id:42419) Transplant Renal and Urology,NHS SUPPLY CHAIN (MAIDSTONE),id:13385919    , 192.29
Department of Health,Guys and St Thomas NHS Foundation Trust,13/11/2020,(81700) Lab Equipment Purchase,(id:42419) Transplant Renal and Urology,NHS SUPPLY CHAIN (MAIDSTONE),id:13385919 ,  60.49
Department of Health,Guys and St Thomas NHS Foundation Trust,13/11/2020,(82700) Uniforms & Clothing,(id:969419) Transplant Renal and Urology,NHS SUPPLY CHAIN (MAIDSTONE),id:13361014   ,  52.97
Department of Health,Guys and St Thomas NHS Foundation Trust,13/11/2020,(83400) Office Equipment,(id:969419) Transplant Renal and Urology,LAZERBEAM FIRE AND SECURITY LTD,id:13461574   ,1000.00
Department of Health,Guys and St Thomas NHS Foundation Trust,06/11/2020,(81200) Medical Surgical Supplies & Equipment,(id:42450) Transplant Renal and Urology,JOHNSON & JOHNSON MEDICAL LTD,id:13392635, 585.94
Department of Health,Guys and St Thomas NHS Foundation Trust,13/11/2020,(82000) Provisions & Kitchens,(id:42447) Transplant Renal and Urology,NHS SUPPLY CHAIN (MAIDSTONE),id:13385919  ,   5.76
Department of Health,Guys and St Thomas NHS Foundation Trust,27/11/2020,(83500) Furniture & Fittings,(id:42447) Transplant Renal and Urology,MS STORAGE EQUIPMENT LTD,id:13504916  , 810.00
Department of Health,Guys and St Thomas NHS Foundation Trust,13/11/2020,(81200) Medical Surgical Supplies & Equipment,(id:42447) Transplant Renal and Urology,NHS SUPPLY CHAIN (MAIDSTONE),id:13361014 , 500.80
Department of Health,Guys and St Thomas NHS Foundation Trust,13/11/2020,(81200) Medical Surgical Supplies & Equipment,(id:42447) Transplant Renal and Urology,NHS SUPPLY CHAIN (MAIDSTONE),id:13385919 , 314.04
Department of Health,Guys and St Thomas NHS Foundation Trust,13/11/2020,(81700) Lab Equipment Purchase,(id:42447) Transplant Renal and Urology,NHS SUPPLY CHAIN (MAIDSTONE),id:13361014 , 111.08
Department of Health,Guys and St Thomas NHS Foundation Trust,13/11/2020,(82800) Bedding & Linen,(id:42446) Transplant Renal and Urology,NHS SUPPLY CHAIN (MAIDSTONE),id:13361014   ,  55.20
Department of Health,Guys and St Thomas NHS Foundation Trust,20/11/2020,(81100) Dressings,(id:42446) Transplant Renal and Urology,JOHNSON & JOHNSON MEDICAL LTD,id:13441460   , 556.60
Department of Health,Guys and St Thomas NHS Foundation Trust,13/11/2020,(81700) Lab Equipment Purchase,(id:42446) Transplant Renal and Urology,NHS SUPPLY CHAIN (MAIDSTONE),id:13385919 ,  83.36
Department of Health,Guys and St Thomas NHS Foundation Trust,13/11/2020,(81200) Medical Surgical Supplies & Equipment,(id:42446) Transplant Renal and Urology,NHS SUPPLY CHAIN (MAIDSTONE),id:13400692 ,    10738.40
Department of Health,Guys and St Thomas NHS Foundation Trust,27/11/2020,(81200) Medical Surgical Supplies & Equipment,(id:42446) Transplant Renal and Urology,SIGMACON (UK) LTD,id:13504878  ,    21582.00
Department of Health,Guys and St Thomas NHS Foundation Trust,20/11/2020,(81400) Medical Surgical Supplies & Equipment,(id:42446) Transplant Renal and Urology,GETINGE UK LTD,id:13481860,3036.56
Department of Health,Guys and St Thomas NHS Foundation Trust,27/11/2020,(81200) Medical Surgical Supplies & Equipment,(id:42444) Transplant Renal and Urology,BOSTON SCIENTIFIC LTD,id:13463916   ,1513.56
Department of Health,Guys and St Thomas NHS Foundation Trust,27/11/2020,(81200) Medical Surgical Supplies & Equipment,(id:42444) Transplant Renal and Urology,COOK UK LTD,id:13457216   , 687.60
Department of Health,Guys and St Thomas NHS Foundation Trust,06/11/2020,(81200) Medical Surgical Supplies & Equipment,(id:42444) Transplant Renal and Urology,BOSTON SCIENTIFIC LTD,id:13392939   ,1511.40
Department of Health,Guys and St Thomas NHS Foundation Trust,30/11/2020,(81200) Medical Surgical Supplies & Equipment,(id:42444) Transplant Renal and Urology,PNN MEDICAL A/S,id:11648211    ,1630.00
Department of Health,Guys and St Thomas NHS Foundation Trust,13/11/2020,(82000) Provisions & Kitchens,(id:42443) Transplant Renal and Urology,NHS SUPPLY CHAIN (MAIDSTONE),id:13361014  ,  72.95
Department of Health,Guys and St Thomas NHS Foundation Trust,13/11/2020,(82000) Provisions & Kitchens,(id:42443) Transplant Renal and Urology,NHS SUPPLY CHAIN (MAIDSTONE),id:13400692  ,  44.66
Department of Health,Guys and St Thomas NHS Foundation Trust,13/11/2020,(81200) Medical Surgical Supplies & Equipment,(id:42443) Transplant Renal and Urology,NHS SUPPLY CHAIN (MAIDSTONE),id:13400692 , 454.66
Department of Health,Guys and St Thomas NHS Foundation Trust,13/11/2020,(81200) Medical Surgical Supplies & Equipment,(id:42443) Transplant Renal and Urology,NHS SUPPLY CHAIN (MAIDSTONE),id:13361014 , 531.47
Department of Health,Guys and St Thomas NHS Foundation Trust,20/11/2020,(50552) Qualified Nursing Staff,(id:42443) Transplant Renal and Urology,GLOBE LOCUMS LTD,id:13487825  , 314.56
Department of Health,Guys and St Thomas NHS Foundation Trust,13/11/2020,(83400) Office Equipment,(id:42443) Transplant Renal and Urology,NHS SUPPLY CHAIN (MAIDSTONE),id:13385919  , 157.29
Department of Health,Guys and St Thomas NHS Foundation Trust,13/11/2020,(83400) Office Equipment,(id:42443) Transplant Renal and Urology,NHS SUPPLY CHAIN (MAIDSTONE),id:13400692  ,  33.31
Department of Health,Guys and St Thomas NHS Foundation Trust,27/11/2020,(81200) Medical Surgical Supplies & Equipment,(id:42439) Transplant Renal and Urology,INTUITIVE SURGICAL LTD,id:13506892  ,2412.00
Department of Health,Guys and St Thomas NHS Foundation Trust,27/11/2020,(81200) Medical Surgical Supplies & Equipment,(id:42439) Transplant Renal and Urology,INTUITIVE SURGICAL LTD,id:13506891  ,5400.00
Department of Health,Guys and St Thomas NHS Foundation Trust,27/11/2020,(82800) Bedding & Linen,(id:42439) Transplant Renal and Urology,INTUITIVE SURGICAL LTD,id:13506893    ,4107.60
Department of Health,Guys and St Thomas NHS Foundation Trust,13/11/2020,(81200) Medical Surgical Supplies & Equipment,(id:3671419) Transplant Renal and Urology,NHS SUPPLY CHAIN (MAIDSTONE),id:13385919    ,1262.51
Department of Health,Guys and St Thomas NHS Foundation Trust,27/11/2020,(50552) Qualified Nursing Staff,(id:42435) Transplant Renal and Urology,GLOBE LOCUMS LTD,id:13510600  , 293.25
Department of Health,Guys and St Thomas NHS Foundation Trust,06/11/2020,(50552) Qualified Nursing Staff,(id:42435) Transplant Renal and Urology,GLOBE LOCUMS LTD,id:13448239  , 325.11
Department of Health,Guys and St Thomas NHS Foundation Trust,19/11/2020,(81700) Lab Equipment Purchase,(id:42433) Transplant Renal and Urology,NEOTERYX LLC,id:13239234  ,1010.40
Department of Health,Guys and St Thomas NHS Foundation Trust,06/11/2020,(81200) Medical Surgical Supplies & Equipment,(id:42430) Transplant Renal and Urology,CAPITAL WATER TREATMENT LTD,id:13447734  , 621.02
Department of Health,Guys and St Thomas NHS Foundation Trust,13/11/2020,(81200) Medical Surgical Supplies & Equipment,(id:42428) Transplant Renal and Urology,NHS SUPPLY CHAIN (MAIDSTONE),id:13361014 , 294.05
Department of Health,Guys and St Thomas NHS Foundation Trust,13/11/2020,(81275) Medical Surgical Supplies & Equipment,(id:42428) Transplant Renal and Urology,NHS SUPPLY CHAIN (MAIDSTONE),id:13361014 , 388.80
Department of Health,Guys and St Thomas NHS Foundation Trust,13/11/2020,(81700) Lab Equipment Purchase,(id:42428) Transplant Renal and Urology,NHS SUPPLY CHAIN (MAIDSTONE),id:13385919 , 160.50
Department of Health,Guys and St Thomas NHS Foundation Trust,13/11/2020,(81700) Lab Equipment Purchase,(id:42428) Transplant Renal and Urology,NHS SUPPLY CHAIN (MAIDSTONE),id:13400692 , 187.28
Department of Health,Guys and St Thomas NHS Foundation Trust,13/11/2020,(83400) Office Equipment,(id:42420) Transplant Renal and Urology,NHS SUPPLY CHAIN (MAIDSTONE),id:13400692  ,  83.80
Department of Health,Guys and St Thomas NHS Foundation Trust,13/11/2020,(83400) Office Equipment,(id:42420) Transplant Renal and Urology,NHS SUPPLY CHAIN (MAIDSTONE),id:13385919  , 295.33
Department of Health,Guys and St Thomas NHS Foundation Trust,13/11/2020,(81200) Medical Surgical Supplies & Equipment,(id:42438) Transplant Renal and Urology,NHS SUPPLY CHAIN (MAIDSTONE),id:13385919 ,  95.04
Department of Health,Guys and St Thomas NHS Foundation Trust,13/11/2020,(81200) Medical Surgical Supplies & Equipment,(id:42432) Transplant Renal and Urology,NHS SUPPLY CHAIN (MAIDSTONE),id:13400692 ,  50.40
Department of Health,Guys and St Thomas NHS Foundation Trust,20/11/2020,(81200) Medical Surgical Supplies & Equipment,(id:42422) Transplant Renal and Urology,NXSTAGE MEDICAL UK LIMITED,id:13443214   ,1309.44
Department of Health,Guys and St Thomas NHS Foundation Trust,20/11/2020,(81200) Medical Surgical Supplies & Equipment,(id:42422) Transplant Renal and Urology,NXSTAGE MEDICAL UK LIMITED,id:13433215   ,1057.08
Department of Health,Guys and St Thomas NHS Foundation Trust,20/11/2020,(81200) Medical Surgical Supplies & Equipment,(id:42422) Transplant Renal and Urology,NXSTAGE MEDICAL UK LIMITED,id:13406757   ,1086.24
Department of Health,Guys and St Thomas NHS Foundation Trust,06/11/2020,(81200) Medical Surgical Supplies & Equipment,(id:42422) Transplant Renal and Urology,NXSTAGE MEDICAL UK LIMITED,id:13433835   ,1636.80
Department of Health,Guys and St Thomas NHS Foundation Trust,06/11/2020,(81200) Medical Surgical Supplies & Equipment,(id:42421) Transplant Renal and Urology,BAXTER HEALTHCARE LTD,id:13397952   , 824.19
Department of Health,Guys and St Thomas NHS Foundation Trust,06/11/2020,(81200) Medical Surgical Supplies & Equipment,(id:42421) Transplant Renal and Urology,BAXTER HEALTHCARE LTD,id:13397994   ,1611.34
Department of Health,Guys and St Thomas NHS Foundation Trust,06/11/2020,(81200) Medical Surgical Supplies & Equipment,(id:42025) Dental Services,HENRY SCHEIN,id:13329168, 658.42
Department of Health,Guys and St Thomas NHS Foundation Trust,20/11/2020,(81200) Medical Surgical Supplies & Equipment,(id:42025) Dental Services,HENRY SCHEIN,id:13476374, 676.54
Department of Health,Guys and St Thomas NHS Foundation Trust,27/11/2020,(81200) Medical Surgical Supplies & Equipment,(id:42037) Dental Services,GEISTLICH SONS LTD,id:13490314    , 789.12
Department of Health,Guys and St Thomas NHS Foundation Trust,20/11/2020,(81200) Medical Surgical Supplies & Equipment,(id:42037) Dental Services,3M UNITEK,id:13470036   , 651.17
Department of Health,Guys and St Thomas NHS Foundation Trust,13/11/2020,(82800) Bedding & Linen,(id:42037) Dental Services,NHS SUPPLY CHAIN (MAIDSTONE),id:13361014 ,  70.24
Department of Health,Guys and St Thomas NHS Foundation Trust,06/11/2020,(81200) Medical Surgical Supplies & Equipment,(id:42007) Dental Services,HENRY SCHEIN,id:13433489, 769.63
Department of Health,Guys and St Thomas NHS Foundation Trust,13/11/2020,(81200) Medical Surgical Supplies & Equipment,(id:42007) Dental Services,HENRY SCHEIN,id:13425437, 571.50
Department of Health,Guys and St Thomas NHS Foundation Trust,13/11/2020,(82600) Uniforms & Clothing,(id:42005) Dental Services,NHS SUPPLY CHAIN (MAIDSTONE),id:13361014  , 100.80
Department of Health,Guys and St Thomas NHS Foundation Trust,27/11/2020,(50200) Consultants,(id:2637419) Dental Services,KINGS COLLEGE LONDON:03529700,id:13416415  ,3373.77
Department of Health,Guys and St Thomas NHS Foundation Trust,13/11/2020,(83400) Office Equipment,(id:42015) Dental Services,NHS SUPPLY CHAIN (MAIDSTONE),id:13400692, 100.44
Department of Health,Guys and St Thomas NHS Foundation Trust,06/11/2020,(50470) Medical Training Grades,(id:42033) Dental Services,BRIGHTON AND SUSSEX UNIVERSITY HOSPITALS NHS TRUST,id:13411094 ,1919.04
Department of Health,Guys and St Thomas NHS Foundation Trust,13/11/2020,(81200) Medical Surgical Supplies & Equipment,(id:42027) Dental Services,HOSPITAL METALCRAFT LTD,id:13455760    , 922.57
Department of Health,Guys and St Thomas NHS Foundation Trust,13/11/2020,(83400) Office Equipment,(id:42028) Dental Services,NHS SUPPLY CHAIN (MAIDSTONE),id:13361014, 203.48
Department of Health,Guys and St Thomas NHS Foundation Trust,27/11/2020,(50200) Consultants,(id:42018) Dental Services,KINGS COLLEGE LONDON:03529700,id:13416415    ,1363.71
Department of Health,Guys and St Thomas NHS Foundation Trust,20/11/2020,(81200) Medical Surgical Supplies & Equipment,(id:42016) Dental Services,DENTSPLY IH LTD,id:13330626  , 782.14
Department of Health,Guys and St Thomas NHS Foundation Trust,20/11/2020,(81200) Medical Surgical Supplies & Equipment,(id:42016) Dental Services,DENTSPLY IH LTD,id:13314115  , 898.20
Department of Health,Guys and St Thomas NHS Foundation Trust,27/11/2020,(50200) Consultants,(id:42022) Dental Services,KINGS COLLEGE LONDON:03529700,id:13416415    ,2825.65
Department of Health,Guys and St Thomas NHS Foundation Trust,13/11/2020,(83400) Office Equipment,(id:41996) Dental Services,LAZERBEAM FIRE AND SECURITY LTD,id:13461455  , 825.00
Department of Health,Guys and St Thomas NHS Foundation Trust,13/11/2020,(50200) Consultants,(id:42035) Dental Services,KINGS COLLEGE LONDON:03529700,id:13418255    ,    10927.45
Department of Health,Guys and St Thomas NHS Foundation Trust,27/11/2020,(50200) Consultants,(id:42035) Dental Services,KINGS COLLEGE LONDON:03529700,id:13416415    ,    10927.46
Department of Health,Guys and St Thomas NHS Foundation Trust,13/11/2020,(83400) Office Equipment,(id:42035) Dental Services,GRANTLEIGH LTD,id:13455184    , 714.80
Department of Health,Guys and St Thomas NHS Foundation Trust,13/11/2020,(81200) Medical Surgical Supplies & Equipment,(id:1634433) Dental Services,HENRY SCHEIN,id:13425435   , 734.22
Department of Health,Guys and St Thomas NHS Foundation Trust,13/11/2020,(81200) Medical Surgical Supplies & Equipment,(id:1634433) Dental Services,HENRY SCHEIN,id:13425354   , 839.12
Department of Health,Guys and St Thomas NHS Foundation Trust,20/11/2020,(81200) Medical Surgical Supplies & Equipment,(id:1634433) Dental Services,HENRY SCHEIN,id:13475401   , 938.22
Department of Health,Guys and St Thomas NHS Foundation Trust,27/11/2020,(81200) Medical Surgical Supplies & Equipment,(id:1634432) Dental Services,HENRY SCHEIN,id:13492114   , 688.58
Department of Health,Guys and St Thomas NHS Foundation Trust,13/11/2020,(81200) Medical Surgical Supplies & Equipment,(id:1634429) Dental Services,NHS SUPPLY CHAIN (MAIDSTONE),id:13385919  , 396.90
Department of Health,Guys and St Thomas NHS Foundation Trust,06/11/2020,(81200) Medical Surgical Supplies & Equipment,(id:1634429) Dental Services,HENRY SCHEIN,id:13393855   , 739.80
Department of Health,Guys and St Thomas NHS Foundation Trust,13/11/2020,(89440) Research and Development,(id:4431419) Specialist Ambulatory Services,MHRA,id:13310133    ,3060.00
Department of Health,Guys and St Thomas NHS Foundation Trust,13/11/2020,(81000) Surgical Appliances,(id:42195) Specialist Ambulatory Services,TALAR MADE ORTHOTICS LTD,id:13469515 ,  46.50
Department of Health,Guys and St Thomas NHS Foundation Trust,13/11/2020,(50203) Consultants,(id:42193) Specialist Ambulatory Services,KINGS COLLEGE LONDON:03529700,id:13417054    ,2206.77
Department of Health,Guys and St Thomas NHS Foundation Trust,23/11/2020,(81300) Medical Surgical Supplies & Equipment,(id:42193) Specialist Ambulatory Services,DE LAGE LANDEN LEASING LTD,id:12507044 ,2412.00
Department of Health,Guys and St Thomas NHS Foundation Trust,13/11/2020,(82800) Bedding & Linen,(id:42358) Specialist Ambulatory Services,NHS SUPPLY CHAIN (MAIDSTONE),id:13400692 ,  39.02
Department of Health,Guys and St Thomas NHS Foundation Trust,13/11/2020,(81200) Medical Surgical Supplies & Equipment,(id:42354) Specialist Ambulatory Services,CARDIFF AND VALE UNIVERSITY LOCAL HEALTH BOARD,id:13229094 , 630.00
Department of Health,Guys and St Thomas NHS Foundation Trust,13/11/2020,(89595) Non-Healthcare from Foundation Trusts,(id:42354) Specialist Ambulatory Services,MANCHESTER UNIVERSITY NHS FOUNDATION TRUST,id:11101791, 636.00
Department of Health,Guys and St Thomas NHS Foundation Trust,06/11/2020,(89640) Non-Healthcare from NHS Trusts,(id:42354) Specialist Ambulatory Services,SHEFFIELD CHILDREN'S NHS FOUNDATION TRUST,id:12730000   ,3550.00
Department of Health,Guys and St Thomas NHS Foundation Trust,13/11/2020,(82800) Bedding & Linen,(id:3607419) Specialist Ambulatory Services,NHS SUPPLY CHAIN (MAIDSTONE),id:13400692    ,  40.20
Department of Health,Guys and St Thomas NHS Foundation Trust,13/11/2020,(81200) Medical Surgical Supplies & Equipment,(id:3607419) Specialist Ambulatory Services,NHS SUPPLY CHAIN (MAIDSTONE),id:13400692  , 300.53
Department of Health,Guys and St Thomas NHS Foundation Trust,13/11/2020,(81225) Medical Surgical Supplies & Equipment,(id:255405) Specialist Ambulatory Services,NHS SUPPLY CHAIN (MAIDSTONE),id:13385919   , 208.80
Department of Health,Guys and St Thomas NHS Foundation Trust,13/11/2020,(50200) Consultants,(id:42099) Specialist Ambulatory Services,CROYDON HEALTH SERVICES NHS TRUST,id:13363136,1091.52
Department of Health,Guys and St Thomas NHS Foundation Trust,13/11/2020,(50200) Consultants,(id:42099) Specialist Ambulatory Services,CROYDON HEALTH SERVICES NHS TRUST,id:13363046,1091.52
Department of Health,Guys and St Thomas NHS Foundation Trust,13/11/2020,(81100) Dressings,(id:42091) Specialist Ambulatory Services,NHS SUPPLY CHAIN (MAIDSTONE),id:13400692  , 744.59
Department of Health,Guys and St Thomas NHS Foundation Trust,13/11/2020,(81200) Medical Surgical Supplies & Equipment,(id:42091) Specialist Ambulatory Services,NHS SUPPLY CHAIN (MAIDSTONE),id:13361014    , 437.12
Department of Health,Guys and St Thomas NHS Foundation Trust,06/11/2020,(89595) Non-Healthcare from Foundation Trusts,(id:42065) Specialist Ambulatory Services,UNIVERSITY HOSPITAL SOUTHAMPTON NHS FOUNDATION TRUST,id:13195734,9648.39
Department of Health,Guys and St Thomas NHS Foundation Trust,13/11/2020,(82800) Bedding & Linen,(id:42097) Specialist Ambulatory Services,NHS SUPPLY CHAIN (MAIDSTONE),id:13400692 ,  81.26
Department of Health,Guys and St Thomas NHS Foundation Trust,13/11/2020,(82800) Bedding & Linen,(id:42079) Specialist Ambulatory Services,NHS SUPPLY CHAIN (MAIDSTONE),id:13361014 ,  53.60
Department of Health,Guys and St Thomas NHS Foundation Trust,13/11/2020,(81275) Medical Surgical Supplies & Equipment,(id:42079) Specialist Ambulatory Services,THERAKOS (UK) LIMITED,id:13435598 ,    33696.00
Department of Health,Guys and St Thomas NHS Foundation Trust,20/11/2020,(81275) Medical Surgical Supplies & Equipment,(id:42079) Specialist Ambulatory Services,THERAKOS (UK) LIMITED,id:13466354 ,6739.20
Department of Health,Guys and St Thomas NHS Foundation Trust,27/11/2020,(50552) Qualified Nursing Staff,(id:42079) Specialist Ambulatory Services,CONTINENTAL NURSE LTD,id:13510552,1875.93
Department of Health,Guys and St Thomas NHS Foundation Trust,13/11/2020,(81200) Medical Surgical Supplies & Equipment,(id:391417) Specialist Ambulatory Services,NHS SUPPLY CHAIN (MAIDSTONE),id:13400692   ,   3.02
Department of Health,Guys and St Thomas NHS Foundation Trust,13/11/2020,(54032) Technical Officers,(id:4632421) Specialist Ambulatory Services,TFS HEALTHCARE,id:13474551, 602.64
Department of Health,Guys and St Thomas NHS Foundation Trust,27/11/2020,(84600) Establishment,(id:42061) Specialist Ambulatory Services,VERNOVA HEALTHCARE COMMUNITY INTEREST COMPANY,id:13288514 ,1345.31
Department of Health,Guys and St Thomas NHS Foundation Trust,13/11/2020,(81100) Dressings,(id:42057) Specialist Ambulatory Services,NHS SUPPLY CHAIN (MAIDSTONE),id:13385919  ,   4.08
Department of Health,Guys and St Thomas NHS Foundation Trust,13/11/2020,(83400) Office Equipment,(id:42050) Specialist Ambulatory Services,NHS SUPPLY CHAIN (MAIDSTONE),id:13385919, 156.95
Department of Health,Guys and St Thomas NHS Foundation Trust,27/11/2020,(83610) IT Costs,(id:42050) Specialist Ambulatory Services,KINGSFIELD COMPUTER PRODUCTS LTD,id:13513014    , 703.88
Department of Health,Guys and St Thomas NHS Foundation Trust,13/11/2020,(81225) Medical Surgical Supplies & Equipment,(id:42050) Specialist Ambulatory Services,NHS SUPPLY CHAIN (MAIDSTONE),id:13361014    ,  22.58
Department of Health,Guys and St Thomas NHS Foundation Trust,13/11/2020,(80010) Drug Costs,(id:42050) Specialist Ambulatory Services,DUNELM PHARMACEUTICALS LIMITED,id:13442214    , 912.00
Department of Health,Guys and St Thomas NHS Foundation Trust,13/11/2020,(83400) Office Equipment,(id:590414) Specialist Ambulatory Services,NHS SUPPLY CHAIN (MAIDSTONE),id:13385919    ,  17.03
Department of Health,Guys and St Thomas NHS Foundation Trust,06/11/2020,(81200) Medical Surgical Supplies & Equipment,(id:581409) Pharmacy,AMERCARE LTD,id:13422115 ,1437.00
Department of Health,Guys and St Thomas NHS Foundation Trust,13/11/2020,(81200) Medical Surgical Supplies & Equipment,(id:581409) Pharmacy,NHS SUPPLY CHAIN (MAIDSTONE),id:13400692, 598.36
Department of Health,Guys and St Thomas NHS Foundation Trust,13/11/2020,(82600) Uniforms & Clothing,(id:581409) Pharmacy,NHS SUPPLY CHAIN (MAIDSTONE),id:13385919   ,  27.00
Department of Health,Guys and St Thomas NHS Foundation Trust,27/11/2020,(83400) Office Equipment,(id:581409) Pharmacy,AQUILANT DISTRIBUTION,id:13515834   ,1835.78
Department of Health,Guys and St Thomas NHS Foundation Trust,26/11/2020,(54052) Technical Officers,(id:581409) Pharmacy,PRICEWATERHOUSECOOPERS LLP,id:13508314 ,1004.47
Department of Health,Guys and St Thomas NHS Foundation Trust,13/11/2020,(83400) Office Equipment,(id:42159) Pharmacy,NHS SUPPLY CHAIN (MAIDSTONE),id:13400692  ,   3.60
Department of Health,Guys and St Thomas NHS Foundation Trust,13/11/2020,(81100) Dressings,(id:42159) Pharmacy,NHS SUPPLY CHAIN (MAIDSTONE),id:13361014    ,   6.53
Department of Health,Guys and St Thomas NHS Foundation Trust,11/11/2020,(54052) Technical Officers,(id:42160) Pharmacy,PRICEWATERHOUSECOOPERS LLP,id:13466154  , 970.26
Department of Health,Guys and St Thomas NHS Foundation Trust,26/11/2020,(53632) Pharmacists,(id:42160) Pharmacy,PRICEWATERHOUSECOOPERS LLP,id:13508314    ,1016.01
Department of Health,Guys and St Thomas NHS Foundation Trust,06/11/2020,(84655) Establishment,(id:42178) Medical Specialties,LANGUAGE CONNECT,id:13443895 , 448.20
Department of Health,Guys and St Thomas NHS Foundation Trust,06/11/2020,(84655) Establishment,(id:42178) Medical Specialties,LANGUAGE CONNECT,id:13445394 ,    12518.48
Department of Health,Guys and St Thomas NHS Foundation Trust,13/11/2020,(81700) Lab Equipment Purchase,(id:42217) Medical Specialties,NHS SUPPLY CHAIN (MAIDSTONE),id:13385919, 125.76
Department of Health,Guys and St Thomas NHS Foundation Trust,13/11/2020,(81275) Medical Surgical Supplies & Equipment,(id:42217) Medical Specialties,NHS SUPPLY CHAIN (MAIDSTONE),id:13361014,  89.88
Department of Health,Guys and St Thomas NHS Foundation Trust,06/11/2020,(82000) Provisions & Kitchens,(id:42250) Medical Specialties,AAH PHARMACEUTICALS LTD,id:13421528 ,1246.16
Department of Health,Guys and St Thomas NHS Foundation Trust,13/11/2020,(81200) Medical Surgical Supplies & Equipment,(id:42223) Medical Specialties,MAINLINE INSTRUMENTS LTD,id:13465874    , 972.00
Department of Health,Guys and St Thomas NHS Foundation Trust,06/11/2020,(81200) Medical Surgical Supplies & Equipment,(id:42223) Medical Specialties,AB EHR DIGITAL LTD,id:13404494,5400.00
Department of Health,Guys and St Thomas NHS Foundation Trust,13/11/2020,(83400) Office Equipment,(id:42223) Medical Specialties,NHS SUPPLY CHAIN (MAIDSTONE),id:13400692 ,  51.06
Department of Health,Guys and St Thomas NHS Foundation Trust,20/11/2020,(89600) Non-Healthcare from other NHS bodies,(id:42223) Medical Specialties,NHS BLOOD AND TRANSPLANT,id:13412957,1301.87
Department of Health,Guys and St Thomas NHS Foundation Trust,20/11/2020,(89600) Non-Healthcare from other NHS bodies,(id:42223) Medical Specialties,NHS BLOOD AND TRANSPLANT,id:13451914,1301.87
Department of Health,Guys and St Thomas NHS Foundation Trust,20/11/2020,(89600) Non-Healthcare from other NHS bodies,(id:42223) Medical Specialties,NHS BLOOD AND TRANSPLANT,id:13398977,2306.54
Department of Health,Guys and St Thomas NHS Foundation Trust,13/11/2020,(82000) Provisions & Kitchens,(id:42223) Medical Specialties,NHS SUPPLY CHAIN (MAIDSTONE),id:13361014 , 156.54
Department of Health,Guys and St Thomas NHS Foundation Trust,27/11/2020,(81200) Medical Surgical Supplies & Equipment,(id:42222) Medical Specialties,BEAVER-VISITEC INTERNATIONAL (SALES) LTD,id:13504627   ,4608.00
Department of Health,Guys and St Thomas NHS Foundation Trust,13/11/2020,(81200) Medical Surgical Supplies & Equipment,(id:42221) Medical Specialties,NHS SUPPLY CHAIN (MAIDSTONE),id:13400692, 201.12
Department of Health,Guys and St Thomas NHS Foundation Trust,13/11/2020,(81200) Medical Surgical Supplies & Equipment,(id:42221) Medical Specialties,ALCON EYE CARE UK LIMITED,id:13429774   ,3686.40
Department of Health,Guys and St Thomas NHS Foundation Trust,27/11/2020,(81200) Medical Surgical Supplies & Equipment,(id:42221) Medical Specialties,WESCOTT MEDICAL LTD,id:13491154    ,3690.18
Department of Health,Guys and St Thomas NHS Foundation Trust,27/11/2020,(81200) Medical Surgical Supplies & Equipment,(id:42221) Medical Specialties,BEAVER-VISITEC INTERNATIONAL (SALES) LTD,id:13500676   ,3904.10
Department of Health,Guys and St Thomas NHS Foundation Trust,13/11/2020,(82000) Provisions & Kitchens,(id:42213) Medical Specialties,NHS SUPPLY CHAIN (MAIDSTONE),id:13400692 ,  28.25
Department of Health,Guys and St Thomas NHS Foundation Trust,13/11/2020,(81100) Dressings,(id:42213) Medical Specialties,NHS SUPPLY CHAIN (MAIDSTONE),id:13400692   , 902.33
Department of Health,Guys and St Thomas NHS Foundation Trust,13/11/2020,(50470) Medical Training Grades,(id:42213) Medical Specialties,KINGS COLLEGE LONDON:03529700,id:13417054   ,5325.92
Department of Health,Guys and St Thomas NHS Foundation Trust,13/11/2020,(81000) Surgical Appliances,(id:42213) Medical Specialties,TALAR MADE ORTHOTICS LTD,id:13469135  , 574.07
Department of Health,Guys and St Thomas NHS Foundation Trust,13/11/2020,(81000) Surgical Appliances,(id:42213) Medical Specialties,TALAR MADE ORTHOTICS LTD,id:13468969  , 157.30
Department of Health,Guys and St Thomas NHS Foundation Trust,06/11/2020,(50200) Consultants,(id:42213) Medical Specialties,KINGS COLLEGE LONDON:03529700,id:13348701,3042.04
Department of Health,Guys and St Thomas NHS Foundation Trust,13/11/2020,(81200) Medical Surgical Supplies & Equipment,(id:42209) Medical Specialties,MEDTRONIC LTD,id:13434642, 850.50
Department of Health,Guys and St Thomas NHS Foundation Trust,13/11/2020,(81200) Medical Surgical Supplies & Equipment,(id:42209) Medical Specialties,MEDTRONIC LTD,id:13434638, 567.00
Department of Health,Guys and St Thomas NHS Foundation Trust,06/11/2020,(81200) Medical Surgical Supplies & Equipment,(id:42208) Medical Specialties,DEXCOM INTERNATIONAL LTD,id:13360756    ,1141.50
Department of Health,Guys and St Thomas NHS Foundation Trust,06/11/2020,(81200) Medical Surgical Supplies & Equipment,(id:42208) Medical Specialties,DEXCOM INTERNATIONAL LTD,id:13407865    , 793.50
Department of Health,Guys and St Thomas NHS Foundation Trust,06/11/2020,(81200) Medical Surgical Supplies & Equipment,(id:42208) Medical Specialties,DEXCOM INTERNATIONAL LTD,id:13434692    , 793.50
Department of Health,Guys and St Thomas NHS Foundation Trust,06/11/2020,(81200) Medical Surgical Supplies & Equipment,(id:42208) Medical Specialties,DEXCOM INTERNATIONAL LTD,id:13428269    , 793.50
Department of Health,Guys and St Thomas NHS Foundation Trust,06/11/2020,(81200) Medical Surgical Supplies & Equipment,(id:42208) Medical Specialties,INSULET INTERNATIONAL LTD,id:13421825   , 706.32
Department of Health,Guys and St Thomas NHS Foundation Trust,27/11/2020,(81200) Medical Surgical Supplies & Equipment,(id:42208) Medical Specialties,MEDTRONIC LTD,id:13429571, 527.50
Department of Health,Guys and St Thomas NHS Foundation Trust,27/11/2020,(81200) Medical Surgical Supplies & Equipment,(id:42208) Medical Specialties,DEXCOM INTERNATIONAL LTD,id:13496734    , 793.50
Department of Health,Guys and St Thomas NHS Foundation Trust,27/11/2020,(81200) Medical Surgical Supplies & Equipment,(id:42208) Medical Specialties,DEXCOM INTERNATIONAL LTD,id:13498127    , 793.50
Department of Health,Guys and St Thomas NHS Foundation Trust,27/11/2020,(81200) Medical Surgical Supplies & Equipment,(id:42208) Medical Specialties,DEXCOM INTERNATIONAL LTD,id:13443715    , 793.50
Department of Health,Guys and St Thomas NHS Foundation Trust,27/11/2020,(81200) Medical Surgical Supplies & Equipment,(id:42208) Medical Specialties,MEDTRONIC LTD,id:13434633, 561.43
Department of Health,Guys and St Thomas NHS Foundation Trust,27/11/2020,(81200) Medical Surgical Supplies & Equipment,(id:42208) Medical Specialties,MEDTRONIC LTD,id:13455694, 810.72
Department of Health,Guys and St Thomas NHS Foundation Trust,20/11/2020,(81200) Medical Surgical Supplies & Equipment,(id:42208) Medical Specialties,AIR LIQUIDE (HOMECARE) LTD,id:13462044  ,3642.00
Department of Health,Guys and St Thomas NHS Foundation Trust,20/11/2020,(81200) Medical Surgical Supplies & Equipment,(id:42208) Medical Specialties,MEDTRONIC LTD,id:13483998,3924.36
Department of Health,Guys and St Thomas NHS Foundation Trust,20/11/2020,(81200) Medical Surgical Supplies & Equipment,(id:42208) Medical Specialties,INSULET INTERNATIONAL LTD,id:13468294   ,1418.40
Department of Health,Guys and St Thomas NHS Foundation Trust,20/11/2020,(81200) Medical Surgical Supplies & Equipment,(id:42208) Medical Specialties,DEXCOM INTERNATIONAL LTD,id:13489563    , 793.50
Department of Health,Guys and St Thomas NHS Foundation Trust,20/11/2020,(81200) Medical Surgical Supplies & Equipment,(id:42208) Medical Specialties,ROCHE DIABETES CARE LIMITED,id:13476157 , 597.60
Department of Health,Guys and St Thomas NHS Foundation Trust,27/11/2020,(81200) Medical Surgical Supplies & Equipment,(id:42208) Medical Specialties,DEXCOM INTERNATIONAL LTD,id:13373595    , 793.50
Department of Health,Guys and St Thomas NHS Foundation Trust,27/11/2020,(81200) Medical Surgical Supplies & Equipment,(id:42208) Medical Specialties,MEDTRONIC LTD,id:13330273, 850.50
Department of Health,Guys and St Thomas NHS Foundation Trust,27/11/2020,(81200) Medical Surgical Supplies & Equipment,(id:42208) Medical Specialties,AIR LIQUIDE (HOMECARE) LTD,id:13514616  ,3366.00
Department of Health,Guys and St Thomas NHS Foundation Trust,13/11/2020,(81200) Medical Surgical Supplies & Equipment,(id:42208) Medical Specialties,NHS SUPPLY CHAIN (MAIDSTONE),id:13400692,  84.68
Department of Health,Guys and St Thomas NHS Foundation Trust,27/11/2020,(84656) Establishment,(id:42204) Medical Specialties,DICT8 LIMITED,id:13454154    ,3213.00
Department of Health,Guys and St Thomas NHS Foundation Trust,13/11/2020,(50204) Consultants,(id:302405) Medical Specialties,KING'S COLLEGE HOSPITAL NHS FOUNDATION TRUST,id:13410715    ,2369.29
Department of Health,Guys and St Thomas NHS Foundation Trust,13/11/2020,(82800) Bedding & Linen,(id:42205) Medical Specialties,NHS SUPPLY CHAIN (MAIDSTONE),id:13361014  ,   4.03
Department of Health,Guys and St Thomas NHS Foundation Trust,13/11/2020,(81200) Medical Surgical Supplies & Equipment,(id:42205) Medical Specialties,NHS SUPPLY CHAIN (MAIDSTONE),id:13361014, 216.00
Department of Health,Guys and St Thomas NHS Foundation Trust,06/11/2020,(81200) Medical Surgical Supplies & Equipment,(id:41937) Medical Specialties,MEDTRONIC LTD,id:13432116,3624.00
Department of Health,Guys and St Thomas NHS Foundation Trust,20/11/2020,(81200) Medical Surgical Supplies & Equipment,(id:41937) Medical Specialties,MEDTRONIC LTD,id:13483990,3624.00
Department of Health,Guys and St Thomas NHS Foundation Trust,27/11/2020,(81200) Medical Surgical Supplies & Equipment,(id:41937) Medical Specialties,MEDTRONIC LTD,id:13500563,   -10291.20
Department of Health,Guys and St Thomas NHS Foundation Trust,13/11/2020,(81100) Dressings,(id:41937) Medical Specialties,NHS SUPPLY CHAIN (MAIDSTONE),id:13385919   ,  26.18
Department of Health,Guys and St Thomas NHS Foundation Trust,13/11/2020,(81100) Dressings,(id:41937) Medical Specialties,NHS SUPPLY CHAIN (MAIDSTONE),id:13361014   ,    .66
Department of Health,Guys and St Thomas NHS Foundation Trust,20/11/2020,(81500) X Ray Equipment Purchase,(id:41937) Medical Specialties,OPTIMUS MEDICAL LTD,id:13463198  , 825.00
Department of Health,Guys and St Thomas NHS Foundation Trust,26/11/2020,(52062) Radiographers,(id:41937) Medical Specialties,PRICEWATERHOUSECOOPERS LLP,id:13508314 , 489.89
Department of Health,Guys and St Thomas NHS Foundation Trust,13/11/2020,(81700) Lab Equipment Purchase,(id:41937) Medical Specialties,NHS SUPPLY CHAIN (MAIDSTONE),id:13400692,   6.10
Department of Health,Guys and St Thomas NHS Foundation Trust,13/11/2020,(81200) Medical Surgical Supplies & Equipment,(id:4621419) TAP,NHS SUPPLY CHAIN (MAIDSTONE),id:13361014    ,   8.74
Department of Health,Guys and St Thomas NHS Foundation Trust,20/11/2020,(81400) Medical Surgical Supplies & Equipment,(id:41900) TAP,DRAEGER MEDICAL UK LTD,id:13459517  ,   158527.10
Department of Health,Guys and St Thomas NHS Foundation Trust,13/11/2020,(82800) Bedding & Linen,(id:41897) TAP,NHS SUPPLY CHAIN (MAIDSTONE),id:13385919   , 184.74
Department of Health,Guys and St Thomas NHS Foundation Trust,27/11/2020,(81200) Medical Surgical Supplies & Equipment,(id:41897) TAP,JOHNSON & JOHNSON MEDICAL LTD,id:13463936,1147.18
Department of Health,Guys and St Thomas NHS Foundation Trust,27/11/2020,(81200) Medical Surgical Supplies & Equipment,(id:41897) TAP,JOHNSON & JOHNSON MEDICAL LTD,id:13450977, 447.33
Department of Health,Guys and St Thomas NHS Foundation Trust,27/11/2020,(81200) Medical Surgical Supplies & Equipment,(id:41897) TAP,JOHNSON & JOHNSON MEDICAL LTD,id:13463950, 509.83
Department of Health,Guys and St Thomas NHS Foundation Trust,27/11/2020,(81200) Medical Surgical Supplies & Equipment,(id:41897) TAP,CRYOLIFE EUROPA LTD,id:13500517, 726.00
Department of Health,Guys and St Thomas NHS Foundation Trust,06/11/2020,(81200) Medical Surgical Supplies & Equipment,(id:41897) TAP,JOHNSON & JOHNSON MEDICAL LTD,id:13392978, 688.14
Department of Health,Guys and St Thomas NHS Foundation Trust,06/11/2020,(81200) Medical Surgical Supplies & Equipment,(id:41897) TAP,JOHNSON & JOHNSON MEDICAL LTD,id:13392605, 295.40
Department of Health,Guys and St Thomas NHS Foundation Trust,27/11/2020,(81100) Dressings,(id:41897) TAP,ELIS UK LIMITED,id:13366255  , 630.59
Department of Health,Guys and St Thomas NHS Foundation Trust,06/11/2020,(81100) Dressings,(id:41897) TAP,ELIS UK LIMITED,id:13421890  , 524.51
Department of Health,Guys and St Thomas NHS Foundation Trust,20/11/2020,(81100) Dressings,(id:41897) TAP,JOHNSON & JOHNSON MEDICAL LTD,id:13440964   , 678.78
Department of Health,Guys and St Thomas NHS Foundation Trust,13/11/2020,(81225) Medical Surgical Supplies & Equipment,(id:41897) TAP,NHS SUPPLY CHAIN (MAIDSTONE),id:13361014 ,  92.11
Department of Health,Guys and St Thomas NHS Foundation Trust,13/11/2020,(82600) Uniforms & Clothing,(id:41894) TAP,NHS SUPPLY CHAIN (MAIDSTONE),id:13400692    ,  16.49
Department of Health,Guys and St Thomas NHS Foundation Trust,13/11/2020,(83400) Office Equipment,(id:41894) TAP,NHS SUPPLY CHAIN (MAIDSTONE),id:13361014  ,  84.56
Department of Health,Guys and St Thomas NHS Foundation Trust,13/11/2020,(83400) Office Equipment,(id:41894) TAP,NHS SUPPLY CHAIN (MAIDSTONE),id:13400692  ,  41.35
Department of Health,Guys and St Thomas NHS Foundation Trust,06/11/2020,(81200) Medical Surgical Supplies & Equipment,(id:41894) TAP,JOHNSON & JOHNSON MEDICAL LTD,id:13413532, 172.64
Department of Health,Guys and St Thomas NHS Foundation Trust,20/11/2020,(81200) Medical Surgical Supplies & Equipment,(id:41894) TAP,JOHNSON & JOHNSON MEDICAL LTD,id:13440970,  90.00
Department of Health,Guys and St Thomas NHS Foundation Trust,13/11/2020,(82600) Uniforms & Clothing,(id:41883) TAP,NHS SUPPLY CHAIN (MAIDSTONE),id:13361014    , 179.89
Department of Health,Guys and St Thomas NHS Foundation Trust,13/11/2020,(81700) Lab Equipment Purchase,(id:41883) TAP,NHS SUPPLY CHAIN (MAIDSTONE),id:13385919 ,  23.73
Department of Health,Guys and St Thomas NHS Foundation Trust,13/11/2020,(81200) Medical Surgical Supplies & Equipment,(id:41883) TAP,NHS SUPPLY CHAIN (MAIDSTONE),id:13385919 , 860.40
Department of Health,Guys and St Thomas NHS Foundation Trust,06/11/2020,(81200) Medical Surgical Supplies & Equipment,(id:41883) TAP,JOHNSON & JOHNSON MEDICAL LTD,id:13413569, 302.74
Department of Health,Guys and St Thomas NHS Foundation Trust,06/11/2020,(81200) Medical Surgical Supplies & Equipment,(id:41883) TAP,JOHNSON & JOHNSON MEDICAL LTD,id:13392649, 108.77
Department of Health,Guys and St Thomas NHS Foundation Trust,06/11/2020,(81200) Medical Surgical Supplies & Equipment,(id:41883) TAP,JOHNSON & JOHNSON MEDICAL LTD,id:13392636, 125.87
Department of Health,Guys and St Thomas NHS Foundation Trust,20/11/2020,(81200) Medical Surgical Supplies & Equipment,(id:41883) TAP,TAILORED FIRE & SECURITY (MANCHESTER) LTD,id:13474600   ,2000.00
Department of Health,Guys and St Thomas NHS Foundation Trust,13/11/2020,(50552) Qualified Nursing Staff,(id:41883) TAP,CONTINENTAL NURSE LTD,id:13470310  , 981.49
Department of Health,Guys and St Thomas NHS Foundation Trust,13/11/2020,(82000) Provisions & Kitchens,(id:41883) TAP,NHS SUPPLY CHAIN (MAIDSTONE),id:13400692  , 142.51
Department of Health,Guys and St Thomas NHS Foundation Trust,13/11/2020,(83400) Office Equipment,(id:41883) TAP,NHS SUPPLY CHAIN (MAIDSTONE),id:13361014  , 326.82
Department of Health,Guys and St Thomas NHS Foundation Trust,13/11/2020,(82800) Bedding & Linen,(id:41907) TAP,NHS SUPPLY CHAIN (MAIDSTONE),id:13400692   , 354.49
Department of Health,Guys and St Thomas NHS Foundation Trust,20/11/2020,(81200) Medical Surgical Supplies & Equipment,(id:41907) TAP,VYGON (UK) LTD,id:13444799,  93.00
Department of Health,Guys and St Thomas NHS Foundation Trust,13/11/2020,(81100) Dressings,(id:41907) TAP,NHS SUPPLY CHAIN (MAIDSTONE),id:13361014    ,  78.71
Department of Health,Guys and St Thomas NHS Foundation Trust,13/11/2020,(81230) Medical Surgical Supplies & Equipment,(id:41906) TAP,NHS SUPPLY CHAIN (MAIDSTONE),id:13385919 , 533.64
Department of Health,Guys and St Thomas NHS Foundation Trust,13/11/2020,(81255) Medical Surgical Supplies & Equipment,(id:41906) TAP,NHS SUPPLY CHAIN (MAIDSTONE),id:13361014 ,  57.91
Department of Health,Guys and St Thomas NHS Foundation Trust,13/11/2020,(82800) Bedding & Linen,(id:41905) TAP,NHS SUPPLY CHAIN (MAIDSTONE),id:13400692   ,  67.09
Department of Health,Guys and St Thomas NHS Foundation Trust,20/11/2020,(81200) Medical Surgical Supplies & Equipment,(id:41905) TAP,PAJUNK UK MEDICAL PRODUCTS LTD,id:13464234    ,3286.92
Department of Health,Guys and St Thomas NHS Foundation Trust,06/11/2020,(81200) Medical Surgical Supplies & Equipment,(id:2549419) TAP,DRAEGER MEDICAL UK LTD,id:13440044, 735.84
Department of Health,Guys and St Thomas NHS Foundation Trust,13/11/2020,(81100) Dressings,(id:41913) TAP,NHS SUPPLY CHAIN (MAIDSTONE),id:13400692    ,  76.61
Department of Health,Guys and St Thomas NHS Foundation Trust,13/11/2020,(82700) Uniforms & Clothing,(id:41918) TAP,NHS SUPPLY CHAIN (MAIDSTONE),id:13400692    ,  63.36
Department of Health,Guys and St Thomas NHS Foundation Trust,13/11/2020,(82800) Bedding & Linen,(id:41918) TAP,NHS SUPPLY CHAIN (MAIDSTONE),id:13361014   , 468.00
Department of Health,Guys and St Thomas NHS Foundation Trust,13/11/2020,(81200) Medical Surgical Supplies & Equipment,(id:41918) TAP,NHS SUPPLY CHAIN (MAIDSTONE),id:13400692 ,1112.86
Department of Health,Guys and St Thomas NHS Foundation Trust,27/11/2020,(81200) Medical Surgical Supplies & Equipment,(id:41918) TAP,MEDTRONIC LTD,id:13472260 ,    12916.80
Department of Health,Guys and St Thomas NHS Foundation Trust,27/11/2020,(81200) Medical Surgical Supplies & Equipment,(id:41918) TAP,JMW RESOURCES LTD,id:13396674  ,    -1200.00
Department of Health,Guys and St Thomas NHS Foundation Trust,06/11/2020,(81200) Medical Surgical Supplies & Equipment,(id:41918) TAP,JOHNSON & JOHNSON MEDICAL LTD,id:13400854, 252.34
Department of Health,Guys and St Thomas NHS Foundation Trust,13/11/2020,(82000) Provisions & Kitchens,(id:41916) TAP,NHS SUPPLY CHAIN (MAIDSTONE),id:13400692  ,   9.22
Department of Health,Guys and St Thomas NHS Foundation Trust,13/11/2020,(82800) Bedding & Linen,(id:41916) TAP,NHS SUPPLY CHAIN (MAIDSTONE),id:13361014   ,  29.03
Department of Health,Guys and St Thomas NHS Foundation Trust,13/11/2020,(82800) Bedding & Linen,(id:41916) TAP,NHS SUPPLY CHAIN (MAIDSTONE),id:13385919   ,  80.87
Department of Health,Guys and St Thomas NHS Foundation Trust,13/11/2020,(81100) Dressings,(id:41916) TAP,NHS SUPPLY CHAIN (MAIDSTONE),id:13385919    ,  50.54
Department of Health,Guys and St Thomas NHS Foundation Trust,13/11/2020,(81200) Medical Surgical Supplies & Equipment,(id:41916) TAP,NHS SUPPLY CHAIN (MAIDSTONE),id:13400692 , 755.45
Department of Health,Guys and St Thomas NHS Foundation Trust,13/11/2020,(83400) Office Equipment,(id:41916) TAP,NHS SUPPLY CHAIN (MAIDSTONE),id:13400692  , 145.02
Department of Health,Guys and St Thomas NHS Foundation Trust,13/11/2020,(81100) Dressings,(id:41924) TAP,NHS SUPPLY CHAIN (MAIDSTONE),id:13385919    ,   3.26
Department of Health,Guys and St Thomas NHS Foundation Trust,13/11/2020,(82800) Bedding & Linen,(id:41923) TAP,NHS SUPPLY CHAIN (MAIDSTONE),id:13385919   ,  80.40
Department of Health,Guys and St Thomas NHS Foundation Trust,13/11/2020,(84550) Establishment,(id:41922) TAP,CORPTELUK,id:13463282    ,1298.18
Department of Health,Guys and St Thomas NHS Foundation Trust,13/11/2020,(81200) Medical Surgical Supplies & Equipment,(id:884419) Surgery,NHS SUPPLY CHAIN (MAIDSTONE),id:13385919 ,  52.94
Department of Health,Guys and St Thomas NHS Foundation Trust,13/11/2020,(81100) Dressings,(id:884419) Surgery,NHS SUPPLY CHAIN (MAIDSTONE),id:13400692    ,  11.64
Department of Health,Guys and St Thomas NHS Foundation Trust,13/11/2020,(82800) Bedding & Linen,(id:884419) Surgery,NHS SUPPLY CHAIN (MAIDSTONE),id:13385919   ,   6.77
Department of Health,Guys and St Thomas NHS Foundation Trust,13/11/2020,(81255) Medical Surgical Supplies & Equipment,(id:42485) Surgery,NHS SUPPLY CHAIN (MAIDSTONE),id:13361014  ,    .62
Department of Health,Guys and St Thomas NHS Foundation Trust,13/11/2020,(84656) Establishment,(id:42485) Surgery,DICT8 LIMITED,id:13468674 , 843.96
Department of Health,Guys and St Thomas NHS Foundation Trust,13/11/2020,(81700) Lab Equipment Purchase,(id:42485) Surgery,NHS SUPPLY CHAIN (MAIDSTONE),id:13385919  ,  20.93
Department of Health,Guys and St Thomas NHS Foundation Trust,13/11/2020,(81700) Lab Equipment Purchase,(id:42485) Surgery,NHS SUPPLY CHAIN (MAIDSTONE),id:13361014  ,  21.14
Department of Health,Guys and St Thomas NHS Foundation Trust,13/11/2020,(81700) Lab Equipment Purchase,(id:42485) Surgery,NHS SUPPLY CHAIN (MAIDSTONE),id:13400692  ,  11.86
Department of Health,Guys and St Thomas NHS Foundation Trust,13/11/2020,(81000) Surgical Appliances,(id:42485) Surgery,TALAR MADE ORTHOTICS LTD,id:13468960    ,  46.50
Department of Health,Guys and St Thomas NHS Foundation Trust,13/11/2020,(82000) Provisions & Kitchens,(id:42485) Surgery,NHS SUPPLY CHAIN (MAIDSTONE),id:13385919   , 221.75
Department of Health,Guys and St Thomas NHS Foundation Trust,13/11/2020,(81100) Dressings,(id:42485) Surgery,NHS SUPPLY CHAIN (MAIDSTONE),id:13400692, 395.35
Department of Health,Guys and St Thomas NHS Foundation Trust,13/11/2020,(81200) Medical Surgical Supplies & Equipment,(id:42484) Surgery,HEALTHCARE 21 LTD,id:13432734   ,3132.00
Department of Health,Guys and St Thomas NHS Foundation Trust,20/11/2020,(81200) Medical Surgical Supplies & Equipment,(id:42484) Surgery,HEALTHCARE 21 LTD,id:13446453   , 636.00
Department of Health,Guys and St Thomas NHS Foundation Trust,20/11/2020,(81200) Medical Surgical Supplies & Equipment,(id:42484) Surgery,SEVERN HEALTHCARE TECHNOLOGIES LTD,id:13488239 ,1362.00
Department of Health,Guys and St Thomas NHS Foundation Trust,13/11/2020,(81100) Dressings,(id:42484) Surgery,NHS SUPPLY CHAIN (MAIDSTONE),id:13361014, 168.39
Department of Health,Guys and St Thomas NHS Foundation Trust,13/11/2020,(81100) Dressings,(id:42484) Surgery,NHS SUPPLY CHAIN (MAIDSTONE),id:13385919, 172.43
Department of Health,Guys and St Thomas NHS Foundation Trust,13/11/2020,(83400) Office Equipment,(id:42484) Surgery,NHS SUPPLY CHAIN (MAIDSTONE),id:13361014   ,   1.19
Department of Health,Guys and St Thomas NHS Foundation Trust,20/11/2020,(81200) Medical Surgical Supplies & Equipment,(id:42483) Surgery,MERCIAN SURGICAL SUPPLY CO LTD,id:13462314, 828.00
Department of Health,Guys and St Thomas NHS Foundation Trust,20/11/2020,(83500) Furniture & Fittings,(id:42483) Surgery,ANETIC AID LTD,id:13476514   ,1280.40
Department of Health,Guys and St Thomas NHS Foundation Trust,13/11/2020,(81100) Dressings,(id:42483) Surgery,NHS SUPPLY CHAIN (MAIDSTONE),id:13385919, 127.80
Department of Health,Guys and St Thomas NHS Foundation Trust,06/11/2020,(81200) Medical Surgical Supplies & Equipment,(id:42467) Surgery,JOHNSON & JOHNSON MEDICAL LTD,id:13413539 , 920.83
Department of Health,Guys and St Thomas NHS Foundation Trust,06/11/2020,(81200) Medical Surgical Supplies & Equipment,(id:42467) Surgery,JOHNSON & JOHNSON MEDICAL LTD,id:13392974 , 576.60
Department of Health,Guys and St Thomas NHS Foundation Trust,13/11/2020,(81200) Medical Surgical Supplies & Equipment,(id:42467) Surgery,NHS SUPPLY CHAIN (MAIDSTONE),id:13361014  ,2823.98
Department of Health,Guys and St Thomas NHS Foundation Trust,13/11/2020,(81225) Medical Surgical Supplies & Equipment,(id:42467) Surgery,NHS SUPPLY CHAIN (MAIDSTONE),id:13385919  ,  24.37
Department of Health,Guys and St Thomas NHS Foundation Trust,13/11/2020,(81100) Dressings,(id:42466) Surgery,NHS SUPPLY CHAIN (MAIDSTONE),id:13400692,2359.48
Department of Health,Guys and St Thomas NHS Foundation Trust,13/11/2020,(81225) Medical Surgical Supplies & Equipment,(id:42466) Surgery,NHS SUPPLY CHAIN (MAIDSTONE),id:13361014  , 247.68
Department of Health,Guys and St Thomas NHS Foundation Trust,13/11/2020,(81225) Medical Surgical Supplies & Equipment,(id:42466) Surgery,NHS SUPPLY CHAIN (MAIDSTONE),id:13400692  ,  74.40
Department of Health,Guys and St Thomas NHS Foundation Trust,13/11/2020,(82700) Uniforms & Clothing,(id:42465) Surgery,NHS SUPPLY CHAIN (MAIDSTONE),id:13361014,  31.68
Department of Health,Guys and St Thomas NHS Foundation Trust,13/11/2020,(82000) Provisions & Kitchens,(id:42465) Surgery,NHS SUPPLY CHAIN (MAIDSTONE),id:13361014   , 217.66
Department of Health,Guys and St Thomas NHS Foundation Trust,13/11/2020,(82000) Provisions & Kitchens,(id:42465) Surgery,NHS SUPPLY CHAIN (MAIDSTONE),id:13400692   , 127.08
Department of Health,Guys and St Thomas NHS Foundation Trust,13/11/2020,(81225) Medical Surgical Supplies & Equipment,(id:42465) Surgery,NHS SUPPLY CHAIN (MAIDSTONE),id:13361014  ,  83.14
Department of Health,Guys and St Thomas NHS Foundation Trust,13/11/2020,(81225) Medical Surgical Supplies & Equipment,(id:42465) Surgery,NHS SUPPLY CHAIN (MAIDSTONE),id:13400692  ,  78.29
Department of Health,Guys and St Thomas NHS Foundation Trust,13/11/2020,(81100) Dressings,(id:42465) Surgery,NHS SUPPLY CHAIN (MAIDSTONE),id:13385919, 174.08
Department of Health,Guys and St Thomas NHS Foundation Trust,13/11/2020,(81000) Surgical Appliances,(id:42465) Surgery,TALAR MADE ORTHOTICS LTD,id:13469034    , 101.50
Department of Health,Guys and St Thomas NHS Foundation Trust,13/11/2020,(81255) Medical Surgical Supplies & Equipment,(id:42465) Surgery,NHS SUPPLY CHAIN (MAIDSTONE),id:13385919  ,   1.87
Department of Health,Guys and St Thomas NHS Foundation Trust,13/11/2020,(83400) Office Equipment,(id:42464) Surgery,NHS SUPPLY CHAIN (MAIDSTONE),id:13361014   , 300.24
Department of Health,Guys and St Thomas NHS Foundation Trust,13/11/2020,(82600) Uniforms & Clothing,(id:42463) Surgery,NHS SUPPLY CHAIN (MAIDSTONE),id:13385919,  35.97
Department of Health,Guys and St Thomas NHS Foundation Trust,13/11/2020,(83400) Office Equipment,(id:42463) Surgery,NHS SUPPLY CHAIN (MAIDSTONE),id:13361014   , 115.32
Department of Health,Guys and St Thomas NHS Foundation Trust,13/11/2020,(83400) Office Equipment,(id:42463) Surgery,NHS SUPPLY CHAIN (MAIDSTONE),id:13385919   ,2073.51
Department of Health,Guys and St Thomas NHS Foundation Trust,13/11/2020,(81000) Surgical Appliances,(id:42461) Surgery,TALAR MADE ORTHOTICS LTD,id:13468967    , 516.00
Department of Health,Guys and St Thomas NHS Foundation Trust,13/11/2020,(81200) Medical Surgical Supplies & Equipment,(id:42459) Surgery,NHS SUPPLY CHAIN (MAIDSTONE),id:13385919  , 282.18
Department of Health,Guys and St Thomas NHS Foundation Trust,13/11/2020,(81255) Medical Surgical Supplies & Equipment,(id:42459) Surgery,NHS SUPPLY CHAIN (MAIDSTONE),id:13400692  ,   4.32
Department of Health,Guys and St Thomas NHS Foundation Trust,13/11/2020,(82700) Uniforms & Clothing,(id:42458) Surgery,NHS SUPPLY CHAIN (MAIDSTONE),id:13361014,  81.57
Department of Health,Guys and St Thomas NHS Foundation Trust,13/11/2020,(82800) Bedding & Linen,(id:42458) Surgery,NHS SUPPLY CHAIN (MAIDSTONE),id:13361014    ,  23.41
Department of Health,Guys and St Thomas NHS Foundation Trust,13/11/2020,(81100) Dressings,(id:42458) Surgery,NHS SUPPLY CHAIN (MAIDSTONE),id:13361014, 273.68
Department of Health,Guys and St Thomas NHS Foundation Trust,13/11/2020,(81225) Medical Surgical Supplies & Equipment,(id:42458) Surgery,NHS SUPPLY CHAIN (MAIDSTONE),id:13400692  ,   9.70
Department of Health,Guys and St Thomas NHS Foundation Trust,13/11/2020,(83400) Office Equipment,(id:41863) PACCS,NHS SUPPLY CHAIN (MAIDSTONE),id:13385919,  50.14
Department of Health,Guys and St Thomas NHS Foundation Trust,06/11/2020,(81200) Medical Surgical Supplies & Equipment,(id:41863) PACCS,RESMED (UK) LTD,id:13429689  ,4800.00
Department of Health,Guys and St Thomas NHS Foundation Trust,13/11/2020,(81200) Medical Surgical Supplies & Equipment,(id:41863) PACCS,RESMED (UK) LTD,id:13468371  ,3387.60
Department of Health,Guys and St Thomas NHS Foundation Trust,13/11/2020,(81200) Medical Surgical Supplies & Equipment,(id:41863) PACCS,RESMED (UK) LTD,id:13459394  ,4488.00
Department of Health,Guys and St Thomas NHS Foundation Trust,13/11/2020,(81200) Medical Surgical Supplies & Equipment,(id:41863) PACCS,RESMED (UK) LTD,id:13468372  ,4800.00
Department of Health,Guys and St Thomas NHS Foundation Trust,27/11/2020,(81255) Medical Surgical Supplies & Equipment,(id:41863) PACCS,REMSERVE MEDICAL SUPPLIES LTD,id:13512120   ,3792.00
Department of Health,Guys and St Thomas NHS Foundation Trust,13/11/2020,(82600) Uniforms & Clothing,(id:41935) PACCS,NHS SUPPLY CHAIN (MAIDSTONE),id:13400692  ,   5.29
Department of Health,Guys and St Thomas NHS Foundation Trust,27/11/2020,(81200) Medical Surgical Supplies & Equipment,(id:41935) PACCS,BREAS MEDICAL LTD,id:13486230,    15000.00
Department of Health,Guys and St Thomas NHS Foundation Trust,13/11/2020,(81000) Surgical Appliances,(id:41935) PACCS,TALAR MADE ORTHOTICS LTD,id:13469515 ,  93.00
Department of Health,Guys and St Thomas NHS Foundation Trust,30/11/2020,(89440) Research and Development,(id:256460) PACCS,CASTOR EDC,id:13520754    , 545.21
Department of Health,Guys and St Thomas NHS Foundation Trust,18/11/2020,(81200) Medical Surgical Supplies & Equipment,(id:4620419) PACCS,KAPITEX HEALTHCARE LTD,id:13113840   ,3510.34
Department of Health,Guys and St Thomas NHS Foundation Trust,13/11/2020,(81200) Medical Surgical Supplies & Equipment,(id:4620419) PACCS,B.BRAUN MEDICAL LTD,id:13446497 , 541.19
Department of Health,Guys and St Thomas NHS Foundation Trust,13/11/2020,(81200) Medical Surgical Supplies & Equipment,(id:4620419) PACCS,EDWARDS LIFESCIENCES LTD,id:12978894 ,6685.44
Department of Health,Guys and St Thomas NHS Foundation Trust,13/11/2020,(81200) Medical Surgical Supplies & Equipment,(id:4620419) PACCS,PHILIPS HEALTHCARE,id:13446163  ,    10248.00
Department of Health,Guys and St Thomas NHS Foundation Trust,27/11/2020,(81200) Medical Surgical Supplies & Equipment,(id:3135419) PACCS,DRAEGER MEDICAL UK LTD,id:13502298   ,1636.32
Department of Health,Guys and St Thomas NHS Foundation Trust,13/11/2020,(81200) Medical Surgical Supplies & Equipment,(id:2545419) PACCS,DRAEGER MEDICAL UK LTD,id:13417664   , 561.60
Department of Health,Guys and St Thomas NHS Foundation Trust,13/11/2020,(81100) Dressings,(id:2121419) PACCS,NHS SUPPLY CHAIN (MAIDSTONE),id:13361014,  82.51
Department of Health,Guys and St Thomas NHS Foundation Trust,13/11/2020,(82700) Uniforms & Clothing,(id:2121419) PACCS,NHS SUPPLY CHAIN (MAIDSTONE),id:13361014,  31.68
Department of Health,Guys and St Thomas NHS Foundation Trust,13/11/2020,(82800) Bedding & Linen,(id:2121419) PACCS,NHS SUPPLY CHAIN (MAIDSTONE),id:13361014    ,   9.87
Department of Health,Guys and St Thomas NHS Foundation Trust,13/11/2020,(81700) Lab Equipment Purchase,(id:1842421) PACCS,NHS SUPPLY CHAIN (MAIDSTONE),id:13400692  ,  37.51
Department of Health,Guys and St Thomas NHS Foundation Trust,13/11/2020,(81100) Dressings,(id:1842421) PACCS,NHS SUPPLY CHAIN (MAIDSTONE),id:13400692, 424.45
Department of Health,Guys and St Thomas NHS Foundation Trust,13/11/2020,(82800) Bedding & Linen,(id:1842421) PACCS,NHS SUPPLY CHAIN (MAIDSTONE),id:13385919    ,   7.74
Department of Health,Guys and St Thomas NHS Foundation Trust,13/11/2020,(81225) Medical Surgical Supplies & Equipment,(id:1842421) PACCS,NHS SUPPLY CHAIN (MAIDSTONE),id:13400692  ,  62.68
Department of Health,Guys and St Thomas NHS Foundation Trust,13/11/2020,(83400) Office Equipment,(id:1842421) PACCS,NHS SUPPLY CHAIN (MAIDSTONE),id:13361014   ,  90.67
Department of Health,Guys and St Thomas NHS Foundation Trust,13/11/2020,(81200) Medical Surgical Supplies & Equipment,(id:863419) PACCS,NHS SUPPLY CHAIN (MAIDSTONE),id:13385919   , 396.00
Department of Health,Guys and St Thomas NHS Foundation Trust,20/11/2020,(81200) Medical Surgical Supplies & Equipment,(id:863419) PACCS,MEDTRONIC LTD,id:13480174   , 864.00
Department of Health,Guys and St Thomas NHS Foundation Trust,13/11/2020,(83400) Office Equipment,(id:41931) PACCS,NHS SUPPLY CHAIN (MAIDSTONE),id:13400692,  79.22
Department of Health,Guys and St Thomas NHS Foundation Trust,13/11/2020,(82800) Bedding & Linen,(id:41931) PACCS,NHS SUPPLY CHAIN (MAIDSTONE),id:13361014 ,  22.37
Department of Health,Guys and St Thomas NHS Foundation Trust,27/11/2020,(50522) Unqualified Nursing Staff,(id:41931) PACCS,GLOBE LOCUMS LTD,id:13510711   , 264.62
Department of Health,Guys and St Thomas NHS Foundation Trust,06/11/2020,(50522) Unqualified Nursing Staff,(id:41931) PACCS,GLOBE LOCUMS LTD,id:13448354   , 232.03
Department of Health,Guys and St Thomas NHS Foundation Trust,20/11/2020,(50522) Unqualified Nursing Staff,(id:41931) PACCS,GLOBE LOCUMS LTD,id:13487506   , 355.97
Department of Health,Guys and St Thomas NHS Foundation Trust,13/11/2020,(81700) Lab Equipment Purchase,(id:41931) PACCS,NHS SUPPLY CHAIN (MAIDSTONE),id:13361014    ,  12.68
Department of Health,Guys and St Thomas NHS Foundation Trust,13/11/2020,(81700) Lab Equipment Purchase,(id:41931) PACCS,NHS SUPPLY CHAIN (MAIDSTONE),id:13400692    ,   6.36
Department of Health,Guys and St Thomas NHS Foundation Trust,06/11/2020,(82600) Uniforms & Clothing,(id:41928) PACCS,FISHER & PAYKEL HEALTHCARE LTD,id:13411906,1296.00
Department of Health,Guys and St Thomas NHS Foundation Trust,27/11/2020,(83500) Furniture & Fittings,(id:41928) PACCS,DISPOSABLE CUBICLE CURTAINS LIMITED T/A HYGENICA,id:13499493 , 537.64
Department of Health,Guys and St Thomas NHS Foundation Trust,13/11/2020,(82800) Bedding & Linen,(id:41928) PACCS,NHS SUPPLY CHAIN (MAIDSTONE),id:13400692 , 579.31
Department of Health,Guys and St Thomas NHS Foundation Trust,13/11/2020,(82800) Bedding & Linen,(id:41928) PACCS,NHS SUPPLY CHAIN (MAIDSTONE),id:13385919 ,1022.85
Department of Health,Guys and St Thomas NHS Foundation Trust,06/11/2020,(80100) Drug Costs,(id:41928) PACCS,BOC LTD :02107500,id:13368134  , 662.40
Department of Health,Guys and St Thomas NHS Foundation Trust,13/11/2020,(81100) Dressings,(id:41928) PACCS,NHS SUPPLY CHAIN (MAIDSTONE),id:13385919  ,1250.35
Department of Health,Guys and St Thomas NHS Foundation Trust,13/11/2020,(81200) Medical Surgical Supplies & Equipment,(id:41928) PACCS,FISHER & PAYKEL HEALTHCARE LTD,id:13449236  ,1471.68
Department of Health,Guys and St Thomas NHS Foundation Trust,06/11/2020,(81200) Medical Surgical Supplies & Equipment,(id:41928) PACCS,FISHER & PAYKEL HEALTHCARE LTD,id:13390127  , 367.92
Department of Health,Guys and St Thomas NHS Foundation Trust,27/11/2020,(81200) Medical Surgical Supplies & Equipment,(id:41928) PACCS,DRAEGER MEDICAL UK LTD,id:13493194,1339.20
Department of Health,Guys and St Thomas NHS Foundation Trust,27/11/2020,(81200) Medical Surgical Supplies & Equipment,(id:41928) PACCS,CHALICE MEDICAL LTD,id:13481689   ,4320.00
Department of Health,Guys and St Thomas NHS Foundation Trust,13/11/2020,(50522) Unqualified Nursing Staff,(id:41928) PACCS,GLOBE LOCUMS LTD,id:13470624   , 236.31
Department of Health,Guys and St Thomas NHS Foundation Trust,27/11/2020,(50522) Unqualified Nursing Staff,(id:41928) PACCS,GLOBE LOCUMS LTD,id:13510912   , 202.70
Department of Health,Guys and St Thomas NHS Foundation Trust,27/11/2020,(50522) Unqualified Nursing Staff,(id:41928) PACCS,CARE PROVIDERS HEALTHCARE,id:13510689    , 252.06
Department of Health,Guys and St Thomas NHS Foundation Trust,13/11/2020,(81000) Surgical Appliances,(id:41928) PACCS,TALAR MADE ORTHOTICS LTD,id:13468960 ,  73.58
Department of Health,Guys and St Thomas NHS Foundation Trust,20/11/2020,(50562) Qualified Nursing Staff,(id:41928) PACCS,PULSE HEALTHCARE LIMITED,id:13487601  , 767.54
Department of Health,Guys and St Thomas NHS Foundation Trust,20/11/2020,(50562) Qualified Nursing Staff,(id:41928) PACCS,JUST NURSES (NURSCO HEALTHCARE LIMITED),id:13487610  , 444.86
Department of Health,Guys and St Thomas NHS Foundation Trust,20/11/2020,(50562) Qualified Nursing Staff,(id:41928) PACCS,JUST NURSES (NURSCO HEALTHCARE LIMITED),id:13487612  , 444.86
Department of Health,Guys and St Thomas NHS Foundation Trust,20/11/2020,(50562) Qualified Nursing Staff,(id:41928) PACCS,JUST NURSES (NURSCO HEALTHCARE LIMITED),id:13487838  , 459.00
Department of Health,Guys and St Thomas NHS Foundation Trust,13/11/2020,(50562) Qualified Nursing Staff,(id:41928) PACCS,PULSE HEALTHCARE LIMITED,id:13470470  , 431.60
Department of Health,Guys and St Thomas NHS Foundation Trust,13/11/2020,(50562) Qualified Nursing Staff,(id:41928) PACCS,MEDICSPRO LTD,id:13470510   , 502.21
Department of Health,Guys and St Thomas NHS Foundation Trust,13/11/2020,(50562) Qualified Nursing Staff,(id:41928) PACCS,JUST NURSES (NURSCO HEALTHCARE LIMITED),id:13470388  , 559.31
Department of Health,Guys and St Thomas NHS Foundation Trust,27/11/2020,(50562) Qualified Nursing Staff,(id:41928) PACCS,MEDICSPRO LTD,id:13510877   , 421.20
Department of Health,Guys and St Thomas NHS Foundation Trust,27/11/2020,(50562) Qualified Nursing Staff,(id:41928) PACCS,JUST NURSES (NURSCO HEALTHCARE LIMITED),id:13510817  , 889.71
Department of Health,Guys and St Thomas NHS Foundation Trust,27/11/2020,(50562) Qualified Nursing Staff,(id:41928) PACCS,JUST NURSES (NURSCO HEALTHCARE LIMITED),id:13510670  , 444.86
Department of Health,Guys and St Thomas NHS Foundation Trust,27/11/2020,(50562) Qualified Nursing Staff,(id:41928) PACCS,JUST NURSES (NURSCO HEALTHCARE LIMITED),id:13510827  , 444.86
Department of Health,Guys and St Thomas NHS Foundation Trust,27/11/2020,(50562) Qualified Nursing Staff,(id:41928) PACCS,JUST NURSES (NURSCO HEALTHCARE LIMITED),id:13510760  , 459.00
Department of Health,Guys and St Thomas NHS Foundation Trust,06/11/2020,(50562) Qualified Nursing Staff,(id:41928) PACCS,CONTINENTAL NURSE LTD,id:13448168,2393.55
Department of Health,Guys and St Thomas NHS Foundation Trust,06/11/2020,(50562) Qualified Nursing Staff,(id:41928) PACCS,JUST NURSES (NURSCO HEALTHCARE LIMITED),id:13448283  , 444.86
Department of Health,Guys and St Thomas NHS Foundation Trust,06/11/2020,(50562) Qualified Nursing Staff,(id:41928) PACCS,JUST NURSES (NURSCO HEALTHCARE LIMITED),id:13448245  , 444.86
Department of Health,Guys and St Thomas NHS Foundation Trust,06/11/2020,(50562) Qualified Nursing Staff,(id:41928) PACCS,JUST NURSES (NURSCO HEALTHCARE LIMITED),id:13448357  , 903.85
Department of Health,Guys and St Thomas NHS Foundation Trust,06/11/2020,(50562) Qualified Nursing Staff,(id:41928) PACCS,JUST NURSES (NURSCO HEALTHCARE LIMITED),id:13448324  , 480.21
Department of Health,Guys and St Thomas NHS Foundation Trust,13/11/2020,(82800) Bedding & Linen,(id:41927) PACCS,NHS SUPPLY CHAIN (MAIDSTONE),id:13400692 , 381.41
Department of Health,Guys and St Thomas NHS Foundation Trust,27/11/2020,(81200) Medical Surgical Supplies & Equipment,(id:41927) PACCS,DRAEGER MEDICAL UK LTD,id:13502290, 652.80
Department of Health,Guys and St Thomas NHS Foundation Trust,13/11/2020,(82800) Bedding & Linen,(id:41919) PACCS,NHS SUPPLY CHAIN (MAIDSTONE),id:13400692 ,  11.23
Department of Health,Guys and St Thomas NHS Foundation Trust,20/11/2020,(81200) Medical Surgical Supplies & Equipment,(id:41864) PACCS,OLYMPUS KEYMED,id:13463354   ,9136.44
Department of Health,Guys and St Thomas NHS Foundation Trust,20/11/2020,(89280) Other - Consultancy costs,(id:3055419) Chief Executive,DYNAMIC FUTURES LLP,id:13486901   ,    12420.00
Department of Health,Guys and St Thomas NHS Foundation Trust,06/11/2020,(50203) Consultants,(id:42680) Chief Executive,KINGS COLLEGE LONDON:03529700,id:13348703    ,1600.16
Department of Health,Guys and St Thomas NHS Foundation Trust,06/11/2020,(83630) IT Costs,(id:987420) Hosted Services,PROVIDENT CRM LIMITED,id:13451315    ,    10080.00
Department of Health,Guys and St Thomas NHS Foundation Trust,06/11/2020,(83630) IT Costs,(id:987420) Hosted Services,PROVIDENT CRM LIMITED,id:13439214    ,    25200.00
Department of Health,Guys and St Thomas NHS Foundation Trust,06/11/2020,(89280) Other - Consultancy costs,(id:987420) Hosted Services,SOUTH LONDON AND MAUDSLEY NHS FOUNDATION TRUST,id:13406414  ,    13531.00
Department of Health,Guys and St Thomas NHS Foundation Trust,06/11/2020,(50150) Directors & Senior Managers,(id:221408) Hosted Services,KINGS COLLEGE LONDON:03529700,id:13348707  ,7256.97
Department of Health,Guys and St Thomas NHS Foundation Trust,06/11/2020,(50150) Directors & Senior Managers,(id:221408) Hosted Services,KINGS COLLEGE LONDON:03529700,id:13437794  ,4169.36
Department of Health,Guys and St Thomas NHS Foundation Trust,20/11/2020,(50150) Directors & Senior Managers,(id:221408) Hosted Services,SOUTH LONDON AND MAUDSLEY NHS FOUNDATION TRUST,id:13440155,    14374.69
Department of Health,Guys and St Thomas NHS Foundation Trust,27/11/2020,(89440) Research and Development,(id:653425) Department of Strategy,ROYAL BROMPTON AND HAREFIELD NHS FOUNDATION TRUST,id:13503858   ,    68139.51
Department of Health,Guys and St Thomas NHS Foundation Trust,06/11/2020,(83400) Office Equipment,(id:42814) Communications,O2 UK LIMITED,id:13450414 ,1176.00
Department of Health,Guys and St Thomas NHS Foundation Trust,13/11/2020,(83400) Office Equipment,(id:49447) Debtors (I&E Rechargable),NHS SUPPLY CHAIN (MAIDSTONE),id:13361014, 112.58
Department of Health,Guys and St Thomas NHS Foundation Trust,13/11/2020,(89120) Other - Legal fees,(id:42573) Central Services,BEACHCROFT LLP OFFICE ACCOUNT,id:13440274 , 582.00
Department of Health,Guys and St Thomas NHS Foundation Trust,20/11/2020,(84400) Transport,(id:42579) Central Services,STARCROSS TRADING LTD T/A BEARS,id:13481564   ,1290.16
Department of Health,Guys and St Thomas NHS Foundation Trust,20/11/2020,(84400) Transport,(id:42579) Central Services,STARCROSS TRADING LTD T/A BEARS,id:13488194   ,1312.83
Department of Health,Guys and St Thomas NHS Foundation Trust,20/11/2020,(84400) Transport,(id:42579) Central Services,STARCROSS TRADING LTD T/A BEARS,id:13488156   ,1477.54
Department of Health,Guys and St Thomas NHS Foundation Trust,20/11/2020,(84400) Transport,(id:42579) Central Services,STARCROSS TRADING LTD T/A BEARS,id:13481720   ,1494.00
Department of Health,Guys and St Thomas NHS Foundation Trust,20/11/2020,(84400) Transport,(id:42579) Central Services,CMAC GROUP UK LTD,id:13444389  ,    10179.34
Department of Health,Guys and St Thomas NHS Foundation Trust,20/11/2020,(84400) Transport,(id:42579) Central Services,STARCROSS TRADING LTD T/A BEARS,id:13480597   ,1783.40
Department of Health,Guys and St Thomas NHS Foundation Trust,20/11/2020,(84400) Transport,(id:42579) Central Services,STARCROSS TRADING LTD T/A BEARS,id:13481508   ,1934.74
Department of Health,Guys and St Thomas NHS Foundation Trust,06/11/2020,(84400) Transport,(id:42579) Central Services,STARCROSS TRADING LTD T/A BEARS,id:13443334   , 524.90
Department of Health,Guys and St Thomas NHS Foundation Trust,06/11/2020,(84400) Transport,(id:42579) Central Services,STARCROSS TRADING LTD T/A BEARS,id:13444200   ,1200.00
Department of Health,Guys and St Thomas NHS Foundation Trust,06/11/2020,(84400) Transport,(id:42579) Central Services,STARCROSS TRADING LTD T/A BEARS,id:13443174   ,1525.86
Department of Health,Guys and St Thomas NHS Foundation Trust,06/11/2020,(84400) Transport,(id:42579) Central Services,STARCROSS TRADING LTD T/A BEARS,id:13444216   ,2025.00
Department of Health,Guys and St Thomas NHS Foundation Trust,06/11/2020,(84400) Transport,(id:42579) Central Services,STARCROSS TRADING LTD T/A BEARS,id:13444210   ,2800.00
Department of Health,Guys and St Thomas NHS Foundation Trust,06/11/2020,(84400) Transport,(id:42579) Central Services,STARCROSS TRADING LTD T/A BEARS,id:13444185   ,3790.82
Department of Health,Guys and St Thomas NHS Foundation Trust,06/11/2020,(84400) Transport,(id:42579) Central Services,STARCROSS TRADING LTD T/A BEARS,id:13442843   ,4217.29
Department of Health,Guys and St Thomas NHS Foundation Trust,06/11/2020,(84400) Transport,(id:42579) Central Services,STARCROSS TRADING LTD T/A BEARS,id:13444189   ,4785.54
Department of Health,Guys and St Thomas NHS Foundation Trust,06/11/2020,(84400) Transport,(id:42579) Central Services,STARCROSS TRADING LTD T/A BEARS,id:13443274   ,6315.23
Department of Health,Guys and St Thomas NHS Foundation Trust,06/11/2020,(84400) Transport,(id:42579) Central Services,STARCROSS TRADING LTD T/A BEARS,id:13444180   ,6404.35
Department of Health,Guys and St Thomas NHS Foundation Trust,20/11/2020,(84400) Transport,(id:42579) Central Services,STARCROSS TRADING LTD T/A BEARS,id:13481708   , 850.00
Department of Health,Guys and St Thomas NHS Foundation Trust,20/11/2020,(84400) Transport,(id:42579) Central Services,STARCROSS TRADING LTD T/A BEARS,id:13480942   , 871.92
Department of Health,Guys and St Thomas NHS Foundation Trust,20/11/2020,(84400) Transport,(id:42579) Central Services,STARCROSS TRADING LTD T/A BEARS,id:13481695   , 924.83
Department of Health,Guys and St Thomas NHS Foundation Trust,20/11/2020,(84400) Transport,(id:42579) Central Services,STARCROSS TRADING LTD T/A BEARS,id:13488075   , 950.00
Department of Health,Guys and St Thomas NHS Foundation Trust,20/11/2020,(84400) Transport,(id:42579) Central Services,STARCROSS TRADING LTD T/A BEARS,id:13486435   ,3082.54
Department of Health,Guys and St Thomas NHS Foundation Trust,20/11/2020,(84400) Transport,(id:42579) Central Services,STARCROSS TRADING LTD T/A BEARS,id:13481734   ,3375.00
Department of Health,Guys and St Thomas NHS Foundation Trust,20/11/2020,(84400) Transport,(id:42579) Central Services,STARCROSS TRADING LTD T/A BEARS,id:13481862   ,3462.78
Department of Health,Guys and St Thomas NHS Foundation Trust,20/11/2020,(84400) Transport,(id:42579) Central Services,STARCROSS TRADING LTD T/A BEARS,id:13486414   ,4127.59
Department of Health,Guys and St Thomas NHS Foundation Trust,20/11/2020,(84400) Transport,(id:42579) Central Services,STARCROSS TRADING LTD T/A BEARS,id:13481816   ,6651.00
Department of Health,Guys and St Thomas NHS Foundation Trust,20/11/2020,(84400) Transport,(id:42579) Central Services,STARCROSS TRADING LTD T/A BEARS,id:13486535   ,6962.28
Department of Health,Guys and St Thomas NHS Foundation Trust,20/11/2020,(84400) Transport,(id:42579) Central Services,STARCROSS TRADING LTD T/A BEARS,id:13480894   ,7859.26
Department of Health,Guys and St Thomas NHS Foundation Trust,20/11/2020,(84400) Transport,(id:42579) Central Services,STARCROSS TRADING LTD T/A BEARS,id:13486515   ,    10200.00
Department of Health,Guys and St Thomas NHS Foundation Trust,20/11/2020,(84400) Transport,(id:42579) Central Services,STARCROSS TRADING LTD T/A BEARS,id:13480947   ,    22880.00
Department of Health,Guys and St Thomas NHS Foundation Trust,20/11/2020,(84400) Transport,(id:42579) Central Services,STARCROSS TRADING LTD T/A BEARS,id:13481678   ,-675.00
Department of Health,Guys and St Thomas NHS Foundation Trust,27/11/2020,(84400) Transport,(id:42579) Central Services,STARCROSS TRADING LTD T/A BEARS,id:13516679   ,2243.00
Department of Health,Guys and St Thomas NHS Foundation Trust,27/11/2020,(84400) Transport,(id:42579) Central Services,STARCROSS TRADING LTD T/A BEARS,id:13516703   ,5829.25
Department of Health,Guys and St Thomas NHS Foundation Trust,27/11/2020,(84400) Transport,(id:42579) Central Services,SAVOY VENTURES LTD.,id:13503598,    66500.00
Department of Health,Guys and St Thomas NHS Foundation Trust,06/11/2020,(84000) Transport,(id:42579) Central Services,ALLSTAR BUSINESS SOLUTIONS LTD (ARVAL),id:13444275 ,    22722.32
Department of Health,Guys and St Thomas NHS Foundation Trust,13/11/2020,(81700) Lab Equipment Purchase,(id:42566) Central Services,NHS SUPPLY CHAIN (MAIDSTONE),id:13400692   ,  15.54
Department of Health,Guys and St Thomas NHS Foundation Trust,27/11/2020,(82600) Uniforms & Clothing,(id:42535) Central Services,FOSTER REFRIDGERATOR UK LTD,id:13506294  ,1732.00
Department of Health,Guys and St Thomas NHS Foundation Trust,06/11/2020,(55422) Ancillary Staff,(id:42527) Central Services,REED EMPLOYMENT PLC,id:13427393    , 107.78
Department of Health,Guys and St Thomas NHS Foundation Trust,27/11/2020,(83400) Office Equipment,(id:42526) Central Services,FRANKE COFFEE SYSTEMS UK LTD,id:13288454    , 663.02
Department of Health,Guys and St Thomas NHS Foundation Trust,19/11/2020,(83400) Office Equipment,(id:42538) Central Services,PELICAN PROCUREMENT SERVICES LTD,id:13485494,4683.34
Department of Health,Guys and St Thomas NHS Foundation Trust,27/11/2020,(82400) Contract Hotel Services,(id:42538) Central Services,ELIS UK LIMITED,id:13506214,1800.51
Department of Health,Guys and St Thomas NHS Foundation Trust,20/11/2020,(83500) Furniture & Fittings,(id:4629421) Asset Management,AMMO & COMPANY LTD,id:13446755   ,1455.60
Department of Health,Guys and St Thomas NHS Foundation Trust,06/11/2020,(83500) Furniture & Fittings,(id:4629421) Asset Management,KEY STRUCTURES LTD,id:13437514   ,4808.16
Department of Health,Guys and St Thomas NHS Foundation Trust,13/11/2020,(83500) Furniture & Fittings,(id:4629421) Asset Management,AMMO & COMPANY LTD,id:13438574   ,3582.00
Department of Health,Guys and St Thomas NHS Foundation Trust,13/11/2020,(83880) Building & Engineering,(id:2719419) Asset Management,GRANTLEIGH LTD,id:13446363,2661.00
Department of Health,Guys and St Thomas NHS Foundation Trust,13/11/2020,(83710) Rates,(id:2718419) Asset Management,LONDON BOROUGH OF LAMBETH:24845200,id:12956516  ,    41040.00
Department of Health,Guys and St Thomas NHS Foundation Trust,27/11/2020,(83710) Rates,(id:1552419) Asset Management,LONDON BOROUGH OF SOUTHWARK:04102500,id:12956522,    35910.00
Department of Health,Guys and St Thomas NHS Foundation Trust,13/11/2020,(83710) Rates,(id:1552419) Asset Management,LONDON BOROUGH OF SOUTHWARK:04102500,id:12956522,    35910.00
Department of Health,Guys and St Thomas NHS Foundation Trust,20/11/2020,(83400) Office Equipment,(id:3950421) Essentia Community Services,GOLDEN THREAD FIRE LTD,id:13443601  ,    22268.40
Department of Health,Guys and St Thomas NHS Foundation Trust,13/11/2020,(83880) Building & Engineering,(id:1649419) Essentia Community Services,MASKOLD ENVIRONMENTAL LTD,id:13423218   ,1166.00
Department of Health,Guys and St Thomas NHS Foundation Trust,13/11/2020,(83110) Energy Costs,(id:1116425) Essentia Community Services,EDF ENERGY,id:13468834   ,2760.16
Department of Health,Guys and St Thomas NHS Foundation Trust,13/11/2020,(83110) Energy Costs,(id:1116425) Essentia Community Services,EDF ENERGY,id:13468797   ,    -2754.88
Department of Health,Guys and St Thomas NHS Foundation Trust,13/11/2020,(83110) Energy Costs,(id:1116421) Essentia Community Services,BRITISH GAS BUSINESS:70299300,id:13474974    ,1467.76
Department of Health,Guys and St Thomas NHS Foundation Trust,27/11/2020,(83343) Premises Services,(id:1116419) Essentia Community Services,INITIAL WASHROOM SOLUTIONS,id:13467854  , 747.98
Department of Health,Guys and St Thomas NHS Foundation Trust,13/11/2020,(83343) Premises Services,(id:1116419) Essentia Community Services,BYWATERS (LEYTON) LTD,id:13473974  , 445.41
Department of Health,Guys and St Thomas NHS Foundation Trust,13/11/2020,(83110) Energy Costs,(id:1116429) Essentia Community Services,EDF ENERGY,id:13468694   ,2314.60
Department of Health,Guys and St Thomas NHS Foundation Trust,27/11/2020,(83110) Energy Costs,(id:1116426) Essentia Community Services,SWITCH2 ENERGY LTD,id:13507747, 551.99
Department of Health,Guys and St Thomas NHS Foundation Trust,13/11/2020,(83710) Rates,(id:1129419) Essentia Community Services,LONDON BOROUGH OF SOUTHWARK:04102500,id:12956536    ,    25695.60
Department of Health,Guys and St Thomas NHS Foundation Trust,13/11/2020,(83400) Office Equipment,(id:492593) Essentia Community Services,NHS SUPPLY CHAIN (MAIDSTONE),id:13385919  , 259.98
Department of Health,Guys and St Thomas NHS Foundation Trust,13/11/2020,(83881) Building & Engineering,(id:492601) Essentia Community Services,WCS GROUP,id:13402025, 468.75
Department of Health,Guys and St Thomas NHS Foundation Trust,13/11/2020,(83881) Building & Engineering,(id:492601) Essentia Community Services,SIEMSATEC LIMITED,id:13400593  , 552.50
Department of Health,Guys and St Thomas NHS Foundation Trust,27/11/2020,(84000) Transport,(id:492418) Essentia Community Services,ALLSTAR BUSINESS SOLUTIONS LTD (ARVAL),id:13509434    , 561.85
Department of Health,Guys and St Thomas NHS Foundation Trust,27/11/2020,(83881) Building & Engineering,(id:2528419) Essentia Community Services,REDLAND CONSTRUCTION LIMITED,id:13508474,6990.00
Department of Health,Guys and St Thomas NHS Foundation Trust,20/11/2020,(83342) Premises Services,(id:492421) Essentia Commercial,PHS GROUP,id:13483297   ,1026.04
Department of Health,Guys and St Thomas NHS Foundation Trust,20/11/2020,(83342) Premises Services,(id:492421) Essentia Commercial,PHS GROUP,id:13483277   ,2079.11
Department of Health,Guys and St Thomas NHS Foundation Trust,20/11/2020,(83342) Premises Services,(id:492421) Essentia Commercial,PHS GROUP,id:13483307   ,2095.73
Department of Health,Guys and St Thomas NHS Foundation Trust,06/11/2020,(83342) Premises Services,(id:492421) Essentia Commercial,SRCL LTD,id:13433596    , 733.48
Department of Health,Guys and St Thomas NHS Foundation Trust,06/11/2020,(89270) Establishment,(id:492421) Essentia Commercial,ACM ENVIRONMENTALPLC,id:13442594 ,1666.66
Department of Health,Guys and St Thomas NHS Foundation Trust,27/11/2020,(83343) Premises Services,(id:3142420) Essentia Commercial,VEOLIA ES CLEANAWAY UK LTD,id:13508254,  96.92
Department of Health,Guys and St Thomas NHS Foundation Trust,20/11/2020,(83360) Premises Services,(id:2614419) Guys Site services,CITY & KENT CLEANING LTD,id:13462054   ,    -6285.42
Department of Health,Guys and St Thomas NHS Foundation Trust,13/11/2020,(83400) Office Equipment,(id:4624420) Guys Site services,ARC-UK TECHNOLOGIES LTD,id:13418977,5256.00
Department of Health,Guys and St Thomas NHS Foundation Trust,20/11/2020,(83400) Office Equipment,(id:42662) Guys Site services,STIRLING MEDICAL & SCIENTIFIC,id:13449594 , 978.86
Department of Health,Guys and St Thomas NHS Foundation Trust,06/11/2020,(83400) Office Equipment,(id:42662) Guys Site services,STIRLING MEDICAL & SCIENTIFIC,id:13407194 ,1368.00
Department of Health,Guys and St Thomas NHS Foundation Trust,20/11/2020,(55642) Maintenance Staff,(id:42662) Guys Site services,MORGAN HUNT UK LTD,id:13487719 , 966.60
Department of Health,Guys and St Thomas NHS Foundation Trust,20/11/2020,(55642) Maintenance Staff,(id:42662) Guys Site services,MORGAN HUNT UK LTD,id:13487614 , 966.60
Department of Health,Guys and St Thomas NHS Foundation Trust,13/11/2020,(83880) Building & Engineering,(id:42662) Guys Site services,G&M BUILDING CONTRACTORS ESSEX LTD,id:13395514,1097.00
Department of Health,Guys and St Thomas NHS Foundation Trust,20/11/2020,(83880) Building & Engineering,(id:42662) Guys Site services,GRANTLEIGH LTD,id:13418874, 860.00
Department of Health,Guys and St Thomas NHS Foundation Trust,13/11/2020,(83400) Office Equipment,(id:4624419) Guys Site services,CITY & KENT CLEANING LTD,id:13454394    , 540.00
Department of Health,Guys and St Thomas NHS Foundation Trust,20/11/2020,(83400) Office Equipment,(id:4624419) Guys Site services,CITY & KENT CLEANING LTD,id:13487950    , 700.56
Department of Health,Guys and St Thomas NHS Foundation Trust,13/11/2020,(83400) Office Equipment,(id:42545) Guys Site services,OFFICE DEPOT UK LTD,id:13325047 ,1148.16
Department of Health,Guys and St Thomas NHS Foundation Trust,06/11/2020,(83880) Building & Engineering,(id:4628419) Guys Site services,ACORN MECHANICAL PIPEWORK SERVICES LTD - ACORM MPS,id:13426315  ,    12493.01
Department of Health,Guys and St Thomas NHS Foundation Trust,13/11/2020,(83880) Building & Engineering,(id:4628419) Guys Site services,G&M BUILDING CONTRACTORS ESSEX LTD,id:13426747   ,4997.00
Department of Health,Guys and St Thomas NHS Foundation Trust,20/11/2020,(83880) Building & Engineering,(id:2507419) Guys Site services,ABBEY LIFTCARE LTD,id:13433682    ,1763.51
Department of Health,Guys and St Thomas NHS Foundation Trust,27/11/2020,(83881) Building & Engineering,(id:2507419) Guys Site services,AIREDALE INTERNATIONAL AIR CONDITIONING LTD,id:13398154    ,3308.67
Department of Health,Guys and St Thomas NHS Foundation Trust,20/11/2020,(83400) Office Equipment,(id:1270419) Guys Site services,EDWARDES BROS (DULWICH) LTD,id:13476557 , 863.40
Department of Health,Guys and St Thomas NHS Foundation Trust,06/11/2020,(83400) Office Equipment,(id:197408) Guys Site services,PALL EUROPE LTD,id:13417894    , 873.24
Department of Health,Guys and St Thomas NHS Foundation Trust,27/11/2020,(83880) Building & Engineering,(id:197407) Guys Site services,CHUBB FIRE AND SECURITY LTD,id:12282551 , 444.74
Department of Health,Guys and St Thomas NHS Foundation Trust,27/11/2020,(83880) Building & Engineering,(id:42634) Guys Site services,BROWNINGS ELECTRIC CO LTD,id:13344817    ,1488.00
Department of Health,Guys and St Thomas NHS Foundation Trust,13/11/2020,(83400) Office Equipment,(id:42632) Guys Site services,RICHMONDS OF LONDON LTD,id:13455185  ,1012.01
Department of Health,Guys and St Thomas NHS Foundation Trust,06/11/2020,(83400) Office Equipment,(id:42631) Guys Site services,RICHMONDS OF LONDON LTD,id:13434334  , 525.60
Department of Health,Guys and St Thomas NHS Foundation Trust,20/11/2020,(83400) Office Equipment,(id:42631) Guys Site services,EQUIAX LTD,id:13448674, 720.00
Department of Health,Guys and St Thomas NHS Foundation Trust,13/11/2020,(83400) Office Equipment,(id:42631) Guys Site services,DUPAL UK LTD,id:13426717   ,1800.00
Department of Health,Guys and St Thomas NHS Foundation Trust,27/11/2020,(83400) Office Equipment,(id:42631) Guys Site services,SETON,id:13504722,1962.65
Department of Health,Guys and St Thomas NHS Foundation Trust,06/11/2020,(83880) Building & Engineering,(id:42631) Guys Site services,SOCOTEC UK LTD,id:13360474, 800.00
Department of Health,Guys and St Thomas NHS Foundation Trust,06/11/2020,(83880) Building & Engineering,(id:42631) Guys Site services,EQUIAX LTD,id:13449434    ,1091.00
Department of Health,Guys and St Thomas NHS Foundation Trust,06/11/2020,(83880) Building & Engineering,(id:42631) Guys Site services,ACORN MECHANICAL PIPEWORK SERVICES LTD - ACORM MPS,id:13426354    ,8932.19
Department of Health,Guys and St Thomas NHS Foundation Trust,20/11/2020,(83880) Building & Engineering,(id:42631) Guys Site services,EQUIAX LTD,id:13423834    ,4197.50
Department of Health,Guys and St Thomas NHS Foundation Trust,20/11/2020,(83880) Building & Engineering,(id:42631) Guys Site services,SCHNEIDER ELECTRIC,id:13482752 ,1370.00
Department of Health,Guys and St Thomas NHS Foundation Trust,20/11/2020,(83880) Building & Engineering,(id:42631) Guys Site services,BRINSON STANILAND PARTNERSHIP,id:13449554,7308.00
Department of Health,Guys and St Thomas NHS Foundation Trust,20/11/2020,(83880) Building & Engineering,(id:42631) Guys Site services,AIREDALE INTERNATIONAL AIR CONDITIONING LTD,id:13481527 ,    19003.00
Department of Health,Guys and St Thomas NHS Foundation Trust,27/11/2020,(83880) Building & Engineering,(id:42631) Guys Site services,OMNIA-KLENZ LTD,id:13449199    ,9730.00
Department of Health,Guys and St Thomas NHS Foundation Trust,20/11/2020,(83880) Building & Engineering,(id:42630) Guys Site services,D S VANDER & SON CIS6,id:13449817   ,2114.00
Department of Health,Guys and St Thomas NHS Foundation Trust,27/11/2020,(83880) Building & Engineering,(id:42630) Guys Site services,J C COMMISSIONING LTD CIS6,id:13504975   , 850.00
Department of Health,Guys and St Thomas NHS Foundation Trust,27/11/2020,(83400) Office Equipment,(id:1271419) STH Site Services,PIPES & VALVES LTD,id:13508377 ,1507.12
Department of Health,Guys and St Thomas NHS Foundation Trust,20/11/2020,(83400) Office Equipment,(id:1271419) STH Site Services,MATRIX A I LTD,id:13487959,1587.48
Department of Health,Guys and St Thomas NHS Foundation Trust,20/11/2020,(83881) Building & Engineering,(id:197406) STH Site Services,TESGL LTD,id:13447655,6487.66
Department of Health,Guys and St Thomas NHS Foundation Trust,06/11/2020,(83880) Building & Engineering,(id:42643) STH Site Services,EQUIAX LTD,id:13423833,1754.00
Department of Health,Guys and St Thomas NHS Foundation Trust,13/11/2020,(82800) Bedding & Linen,(id:42642) STH Site Services,NHS SUPPLY CHAIN (MAIDSTONE),id:13361014    ,  46.82
Department of Health,Guys and St Thomas NHS Foundation Trust,20/11/2020,(83400) Office Equipment,(id:42640) STH Site Services,MAITLAND ENGINEERING LTD,id:13479194  , 564.00
Department of Health,Guys and St Thomas NHS Foundation Trust,06/11/2020,(83880) Building & Engineering,(id:42638) STH Site Services,ACORN MECHANICAL PIPEWORK SERVICES LTD - ACORM MPS,id:13435214,4155.82
Department of Health,Guys and St Thomas NHS Foundation Trust,06/11/2020,(83880) Building & Engineering,(id:42638) STH Site Services,SPIRAX-SARCO LTD CIS5,id:13447894    , 510.00
Department of Health,Guys and St Thomas NHS Foundation Trust,06/11/2020,(83880) Building & Engineering,(id:42638) STH Site Services,SOCOTEC UK LTD,id:13409503 ,1920.00
Department of Health,Guys and St Thomas NHS Foundation Trust,06/11/2020,(83880) Building & Engineering,(id:42638) STH Site Services,TESGL LTD,id:13358034 ,3370.50
Department of Health,Guys and St Thomas NHS Foundation Trust,27/11/2020,(83880) Building & Engineering,(id:42638) STH Site Services,AFI-UPLIFT LTD,id:13480635 , 579.69
Department of Health,Guys and St Thomas NHS Foundation Trust,27/11/2020,(83880) Building & Engineering,(id:42638) STH Site Services,ALLWEATHER REFRIGERATION LTD CIS6,id:13412146  ,2981.16
Department of Health,Guys and St Thomas NHS Foundation Trust,27/11/2020,(83880) Building & Engineering,(id:42638) STH Site Services,ARTIC BUILDING SERVICES LTD,id:13515115   ,6579.00
Department of Health,Guys and St Thomas NHS Foundation Trust,13/11/2020,(83880) Building & Engineering,(id:42638) STH Site Services,ACORN MECHANICAL PIPEWORK SERVICES LTD - ACORM MPS,id:13435275,4982.27
Department of Health,Guys and St Thomas NHS Foundation Trust,13/11/2020,(83880) Building & Engineering,(id:42638) STH Site Services,ABBEY LIFTCARE LTD,id:13469874  , 720.00
Department of Health,Guys and St Thomas NHS Foundation Trust,13/11/2020,(83880) Building & Engineering,(id:42638) STH Site Services,DUCTBUSTERS LTD,id:13407596,2855.00
Department of Health,Guys and St Thomas NHS Foundation Trust,13/11/2020,(83880) Building & Engineering,(id:42638) STH Site Services,TESGL LTD,id:13435094 ,3389.64
Department of Health,Guys and St Thomas NHS Foundation Trust,20/11/2020,(55652) Maintenance Staff,(id:42637) STH Site Services,MORGAN HUNT UK LTD,id:13487559  , 773.86
Department of Health,Guys and St Thomas NHS Foundation Trust,20/11/2020,(55652) Maintenance Staff,(id:42637) STH Site Services,MORGAN HUNT UK LTD,id:13487769  ,1319.76
Department of Health,Guys and St Thomas NHS Foundation Trust,20/11/2020,(55642) Maintenance Staff,(id:42637) STH Site Services,COMMUNITY RESOURCING LTD (T/A RESOURCING GROUP),id:13487517   , 708.50
Department of Health,Guys and St Thomas NHS Foundation Trust,27/11/2020,(83400) Office Equipment,(id:42585) STH Site Services,H C SLINGSBY PLC,id:13255399,4856.40
Department of Health,Guys and St Thomas NHS Foundation Trust,13/11/2020,(83880) Building & Engineering,(id:42585) STH Site Services,ANVEN MANAGEMENT SERVICES,id:13467100,1000.00
Department of Health,Guys and St Thomas NHS Foundation Trust,20/11/2020,(83880) Building & Engineering,(id:199405) STH Site Services,QUALITY & SERVICE LTD (Q&S),id:13479612  ,4304.58
Department of Health,Guys and St Thomas NHS Foundation Trust,13/11/2020,(83880) Building & Engineering,(id:4625420) STH Site Services,ARC-UK TECHNOLOGIES LTD,id:13463081,1400.00
Department of Health,Guys and St Thomas NHS Foundation Trust,13/11/2020,(83880) Building & Engineering,(id:4625420) STH Site Services,CITY & KENT CLEANING LTD,id:13420376    ,4940.00
Department of Health,Guys and St Thomas NHS Foundation Trust,27/11/2020,(83880) Building & Engineering,(id:4625420) STH Site Services,GRANTLEIGH LTD,id:13480674    ,2535.00
Department of Health,Guys and St Thomas NHS Foundation Trust,27/11/2020,(83880) Building & Engineering,(id:4625420) STH Site Services,GRANTLEIGH LTD,id:13480694    ,3067.00
Department of Health,Guys and St Thomas NHS Foundation Trust,27/11/2020,(83880) Building & Engineering,(id:4625420) STH Site Services,GRANTLEIGH LTD,id:13507592    ,8820.00
Department of Health,Guys and St Thomas NHS Foundation Trust,27/11/2020,(83880) Building & Engineering,(id:4625420) STH Site Services,GRANTLEIGH LTD,id:13507591    ,6000.00
Department of Health,Guys and St Thomas NHS Foundation Trust,06/11/2020,(83400) Office Equipment,(id:42664) STH Site Services,J.P.MCDOUGALL LTD T/A DULUX DECORATOR CENTRES,id:13412148 , 577.80
Department of Health,Guys and St Thomas NHS Foundation Trust,13/11/2020,(83880) Building & Engineering,(id:42664) STH Site Services,GRANTLEIGH LTD,id:13417692 ,2376.00
Department of Health,Guys and St Thomas NHS Foundation Trust,13/11/2020,(83880) Building & Engineering,(id:42664) STH Site Services,WPG REFURBISHMENTS LTD CIS6,id:13462760   , 725.00
Department of Health,Guys and St Thomas NHS Foundation Trust,13/11/2020,(83880) Building & Engineering,(id:42664) STH Site Services,WPG REFURBISHMENTS LTD CIS6,id:13462757   ,1180.00
Department of Health,Guys and St Thomas NHS Foundation Trust,13/11/2020,(83880) Building & Engineering,(id:42664) STH Site Services,CITY & KENT CLEANING LTD,id:13420179 ,1054.00
Department of Health,Guys and St Thomas NHS Foundation Trust,20/11/2020,(83880) Building & Engineering,(id:42664) STH Site Services,ALL LONDON GLASS UK LTD,id:13478275  , 790.00
Department of Health,Guys and St Thomas NHS Foundation Trust,20/11/2020,(83400) Office Equipment,(id:4625419) STH Site Services,CITY & KENT CLEANING LTD,id:13487954, 862.84
Department of Health,Guys and St Thomas NHS Foundation Trust,20/11/2020,(83400) Office Equipment,(id:4625419) STH Site Services,CITY & KENT CLEANING LTD,id:13487943,2868.36
Department of Health,Guys and St Thomas NHS Foundation Trust,13/11/2020,(83400) Office Equipment,(id:42548) STH Site Services,NHS SUPPLY CHAIN (MAIDSTONE),id:13361014   ,1229.72
Department of Health,Guys and St Thomas NHS Foundation Trust,13/11/2020,(83400) Office Equipment,(id:42548) STH Site Services,OFFICE DEPOT UK LTD,id:13426772  ,2417.69
Department of Health,Guys and St Thomas NHS Foundation Trust,13/11/2020,(83400) Office Equipment,(id:42548) STH Site Services,OFFICE DEPOT UK LTD,id:13418015  ,3645.00
Department of Health,Guys and St Thomas NHS Foundation Trust,20/11/2020,(83400) Office Equipment,(id:42548) STH Site Services,CITY & KENT CLEANING LTD,id:13485794  , 590.40
Department of Health,Guys and St Thomas NHS Foundation Trust,06/11/2020,(83880) Building & Engineering,(id:42548) STH Site Services,ALL CLEAN SERVICES LTD,id:13369203   ,5615.32
Department of Health,Guys and St Thomas NHS Foundation Trust,20/11/2020,(83360) Premises Services,(id:42548) STH Site Services,ALLSOP & FRANCIS LTD,id:13477495, 518.40
Department of Health,Guys and St Thomas NHS Foundation Trust,13/11/2020,(82800) Bedding & Linen,(id:42599) Sterile Services,NHS SUPPLY CHAIN (MAIDSTONE),id:13385919,  70.80
Department of Health,Guys and St Thomas NHS Foundation Trust,13/11/2020,(81100) Dressings,(id:42599) Sterile Services,ELIS UK LIMITED,id:13468366    , 573.60
Department of Health,Guys and St Thomas NHS Foundation Trust,27/11/2020,(81100) Dressings,(id:42599) Sterile Services,ELIS UK LIMITED,id:13507758    , 487.90
Department of Health,Guys and St Thomas NHS Foundation Trust,27/11/2020,(81100) Dressings,(id:42599) Sterile Services,ELIS UK LIMITED,id:13461259    , 550.90
Department of Health,Guys and St Thomas NHS Foundation Trust,27/11/2020,(81100) Dressings,(id:42599) Sterile Services,HEALTH EDGE SOLUTIONS LTD,id:13490035    ,1039.80
Department of Health,Guys and St Thomas NHS Foundation Trust,06/11/2020,(81100) Dressings,(id:42599) Sterile Services,ELIS UK LIMITED,id:13421477    , 653.60
Department of Health,Guys and St Thomas NHS Foundation Trust,06/11/2020,(83610) IT Costs,(id:42599) Sterile Services,OFFICE DEPOT UK LTD,id:13431884 , 518.30
Department of Health,Guys and St Thomas NHS Foundation Trust,13/11/2020,(82000) Provisions & Kitchens,(id:42599) Sterile Services,NHS SUPPLY CHAIN (MAIDSTONE),id:13385919    ,   2.88
Department of Health,Guys and St Thomas NHS Foundation Trust,13/11/2020,(83340) Premises Services,(id:42576) Security & Waste Services,BYWATERS (LEYTON) LTD,id:13427817 , 684.84
Department of Health,Guys and St Thomas NHS Foundation Trust,13/11/2020,(83340) Premises Services,(id:42576) Security & Waste Services,BYWATERS (LEYTON) LTD,id:13427897 ,    12718.17
Department of Health,Guys and St Thomas NHS Foundation Trust,27/11/2020,(83400) Office Equipment,(id:42576) Security & Waste Services,TERMINIX UK LTD (MITIE),id:13509876,8162.60
Department of Health,Guys and St Thomas NHS Foundation Trust,13/11/2020,(82800) Bedding & Linen,(id:42576) Security & Waste Services,NHS SUPPLY CHAIN (MAIDSTONE),id:13361014 ,  60.84
Department of Health,Guys and St Thomas NHS Foundation Trust,20/11/2020,(89270) Establishment,(id:42540) Security & Waste Services,ASSIST SECURITY LIMITED,id:13488876   ,4320.00
Department of Health,Guys and St Thomas NHS Foundation Trust,20/11/2020,(84500) Establishment,(id:42542) Security & Waste Services,ASSIST SECURITY LIMITED,id:13488874   ,2520.00
Department of Health,Guys and St Thomas NHS Foundation Trust,27/11/2020,(82600) Uniforms & Clothing,(id:590618) Finance Director,1ST BIOTECH LIMITED,id:13502287    , 630.00
Department of Health,Guys and St Thomas NHS Foundation Trust,27/11/2020,(82600) Uniforms & Clothing,(id:590618) Finance Director,1ST BIOTECH LIMITED,id:13495214    ,1607.40
Department of Health,Guys and St Thomas NHS Foundation Trust,27/11/2020,(82600) Uniforms & Clothing,(id:590618) Finance Director,1ST BIOTECH LIMITED,id:13492994    , 705.00
Department of Health,Guys and St Thomas NHS Foundation Trust,13/11/2020,(82600) Uniforms & Clothing,(id:590618) Finance Director,1ST BIOTECH LIMITED,id:13469154    ,2451.60
Department of Health,Guys and St Thomas NHS Foundation Trust,13/11/2020,(82600) Uniforms & Clothing,(id:590618) Finance Director,1ST BIOTECH LIMITED,id:13466260    , 673.80
Department of Health,Guys and St Thomas NHS Foundation Trust,06/11/2020,(82600) Uniforms & Clothing,(id:590618) Finance Director,1ST BIOTECH LIMITED,id:13433554    ,2440.80
Department of Health,Guys and St Thomas NHS Foundation Trust,27/11/2020,(89280) Other - Consultancy costs,(id:42709) Finance Director,BEACHCROFT LLP OFFICE ACCOUNT,id:13318278    , 739.40
Department of Health,Guys and St Thomas NHS Foundation Trust,20/11/2020,(83765) Rent,(id:42709) Finance Director,OMNICELL LTD,id:13482914  ,3659.70
Department of Health,Guys and St Thomas NHS Foundation Trust,20/11/2020,(83765) Rent,(id:42709) Finance Director,OMNICELL LTD,id:12110231  ,4176.00
Department of Health,Guys and St Thomas NHS Foundation Trust,20/11/2020,(84400) Transport,(id:4269419) Finance Director,CEVA LOGISTICS LIMITED,id:13475783,    56650.00
Department of Health,Guys and St Thomas NHS Foundation Trust,20/11/2020,(84400) Transport,(id:4269419) Finance Director,CEVA LOGISTICS LIMITED,id:13475775,    94640.35
Department of Health,Guys and St Thomas NHS Foundation Trust,06/11/2020,(55422) Ancillary Staff,(id:177407) Finance Director,REED EMPLOYMENT PLC,id:13427339   , 853.80
Department of Health,Guys and St Thomas NHS Foundation Trust,20/11/2020,(89280) Other - Consultancy costs,(id:847436) Finance Director,LEEDS AND YORK PARTNERSHIP NHS FOUNDATION TRUST,id:13481603, 851.40
